{"text_format":"1","workbook":"xlsx","n_sheets":18,"sheets":["Инструкция","Титульный","Параметры","Территории","Тарифы (со схемой)","Тарифы (без схемы)","Плата за подключение","Информация о предложениях","Информация о товарах","Сведения об изменениях","Публикация информации","Комментарий","Columns","Reference","Rows","RegistryMunicipal","Ошибки и предупреждения","SheetList"],"not_rendered":{"charts":0,"images":17,"macros":1,"external_links":3,"defined_names":223,"comments":0,"pivot_tables":0},"unopened":[],"bounds":{"document_bytes":16777216,"sheet_cells":100000,"rows_first":2000,"rows_last":500,"rows_between":2000,"halvings":0,"cell_chars":16384,"cell_head_chars":4096},"cells_cut":0,"cells_raw":0,"read":"whole","date_system":"1900"}

{"sheet":"Инструкция","index":0,"n_rows":129,"n_cols":16,"rows_kept":129,"cut":false,"hidden":false,"merged":[[89,5,89,23],[86,5,88,23],[128,4,128,16],[126,1,126,24],[66,4,80,23],[111,4,111,23],[113,5,113,18],[127,1,127,24],[115,5,115,23],[81,4,81,23],[101,4,105,23],[106,4,110,23],[91,4,92,23],[85,5,85,23],[93,4,100,23],[1,1,1,8],[53,4,53,5],[52,6,52,10],[53,6,53,9],[83,4,84,23],[22,5,22,12],[22,15,22,23],[36,4,50,23],[23,15,23,23],[52,4,52,5],[51,4,51,23],[21,5,21,12],[21,15,21,23],[2,1,2,2],[4,1,4,24],[6,4,19,23]]}
[]
[null,{"$f":"\"Код шаблона: \" & Getcode()","v":"Код шаблона: ELPASS.JKH.OPEN.INFO.REQUEST.WARM"}]
[null,{"$f":"\"Версия \" & Getversion() & \" от \" & GetTemplateDate()","v":"Версия 1.0 от 01.10.2017"}]
[]
[null,{"$f":"GetTemplateName()","v":"Предложение об установлении тарифов в сфере теплоснабжения и информация о способах приобретения, стоимости и объемах товаров, необходимых для производства регулируемых товаров и (или) оказания регулируемых услуг"}]
[]
[null,null,null,null,"• На рабочем месте должна быть установлена полная версия приложения Microsoft Office Excel 2007 SP3, 2010, 2013, 2016. Microsoft Office Excel 2003 или иные офисные пакеты не поддерживаются.\n\n• Для корректной работы отчёта требуется включить макросы и выбрать низкий уровень безопасности:\nВ меню MS Excel 2007/2010: Параметры Excel | Центр управления безопасностью | Параметры центра управления безопасностью | Параметры макросов | Включить все макросы | ОК\n\n• Не рекомендуется снимать защиту с листов и каким-либо образом модифицировать защищаемые формулы и расчётные поля. В случае внесения несанкционированных изменений отчёт будет отклонён системой\n\n• При сохранении не следует выбирать формат XLSX (Книга Excel), так как в указанном формате макросы, необходимые для работы отчёта, безвозвратно удаляются, а также форматы XLS или XLSB. Должен использоваться формат XLSM\n\n"]
[]
[]
[]
[]
[]
[]
[]
[]
[]
[]
[]
[]
[]
[]
[null,null,null,null,"A"," - не обязательные для заполнения",null,null,null,null,null,null,null,null,"A"," - обязательные для заполнения"]
[null,null,null,null,"A"," - заполняемые автоматически",null,null,null,null,null,null,null,null,"A"," - незаполняемые поля"]
[]
[]
[]
[]
[]
[]
[]
[]
[]
[]
[]
[]
[]
[null,null,null,null,"• При сохранении отчета осуществляется проверка корректности данных, в том числе на наличие значений в ячейках, обязательных для заполнения\n\n• Если какая-то ячейка не удовлетворяет условию проверки, на лист «Ошибки и предупреждения» добавляется гиперссылка на данную ячейку и указывается причина ошибки\n\n• В колонке «Статус» для каждого сообщения возможны 2 значения: ошибка и предупреждение\n\n• При наличии сообщений со статусом «Ошибка» отчет будет отклонён системой\n\n• Сообщения со статусом «Предупреждение» носят информационный характер, и такой отчет будет принят системой"]
[]
[]
[]
[]
[]
[]
[]
[]
[]
[]
[]
[]
[]
[]
[null,null,null,null,"Служба технической поддержки группы компаний \"Экстрим\""]
[null,null,null,null,"E-mail:",null,"rek@xrm.ru"]
[null,null,null,null,"Телефон:",null,"(343) 2222-139"]
[]
[]
[]
[]
[]
[]
[]
[]
[]
[]
[]
[]
[null,null,null,null,"• На листах «Титульный», «Параметры» и «Территории» обязательно заполните все ячейки голубого цвета. \nДалее нажмите кнопку «Начать заполнение отчета». Отобразятся листы для заполнения.\n\n• Если в поле, обязательном для заполнении, для вашей организации показатель отсутствует, введите в поле «0» (для числовых показателей) и «-» (для текстовых).\n\n• Вводите дату непосредственно в ячейку в формате - 'ДД.ММ.ГГГГ'.\n\n• Для добавления гиперссылки дважды щелкните левой кнопкой мыши по ячейке и только после этого  вставьте скопированный элемент.\n\n• Добавьте комментарии к раскрываемым сведениям на листе «Комментарии» (при необходимости).\n"]
[]
[]
[]
[]
[]
[]
[]
[]
[]
[]
[]
[]
[]
[]
[null,null,null,null,"Шаблон разработан в соответствии с:"]
[]
[null,null,null,"   •","Постановлением Правительства РФ от 5 июля 2013 г. № 570 «О стандартах раскрытия информации теплоснабжающими организациями, теплосетевыми организациями и органами регулирования»:\n"]
[]
[null,null,null,null,null,"II. Стандарты раскрытия информации регулируемыми организациями\n"]
[null,null,null,null,null,"15. Регулируемой организацией подлежит раскрытию информация согласно единым формам раскрытия информации, утвержденным Федеральной антимонопольной службой, при этом до утверждения указанных форм, информация раскрывается в свободной форме:"]
[]
[]
[null,null,null,null,null,"к) о предложении регулируемой организации об установлении тарифов в сфере теплоснабжения;"]
[]
[null,null,null,null,"Обязательность раскрытия информации и сроки раскрытия устанавливаются в соответствие с Постановления Правительства РФ от 05 июля 2013 г. № 570:"]
[]
[null,null,null,null,"3. Регулируемыми организациями информация раскрывается путем:\nа) обязательного опубликования на официальном сайте в информационно-телекоммуникационной сети \"Интернет\" (далее - сеть \"Интернет\") органа исполнительной власти субъекта Российской Федерации в области государственного регулирования цен (тарифов), и (или) на официальном сайте органа местного самоуправления поселения или городского округа в случае их наделения в соответствии с законом субъекта Российской Федерации полномочиями по государственному регулированию цен (тарифов), и (или) на сайте в сети \"Интернет\", предназначенном для размещения информации по вопросам регулирования тарифов, определяемом Правительством Российской Федерации;"]
[]
[]
[]
[]
[]
[]
[]
[null,null,null,null,"11. Регулируемые организации в течение 10 дней со дня размещения информации на своем официальном сайте в сети \"Интернет\" сообщают в орган исполнительной власти субъекта Российской Федерации в области государственного регулирования цен (тарифов) о раскрытии соответствующей информации с указанием адреса страницы сайта в сети \"Интернет\", на которой размещена эта информация."]
[]
[]
[]
[]
[null,null,null,null,"Регулируемые организации в течение 10 дней со дня опубликования информации в официальных печатных изданиях в случае, предусмотренном пунктом 10 настоящего документа, сообщают в орган исполнительной власти субъекта Российской Федерации в области государственного регулирования цен (тарифов) о раскрытии соответствующей информации с указанием наименования, номера и даты официального печатного издания, в котором опубликована эта информация."]
[]
[]
[]
[]
[]
[]
[]
[]
[]
[]
[]
[]
[]
[null,null,null,null,"Гиперссылки на листах вводите, не нарушая цвет ячейки (если копируете гиперссылку из браузера, то выполните двойной щелчок левой кнопки мыши по ячейке и только после этого можете вставить скопированный элемент)."]
[]
[]
[]
[]
[]
[null,{"$f":"IF(GetMode()=\"DEBUG\", \"Режим отладки\", \"\")","v":""}]
[null,"2017 © Общество с ограниченной ответственностью \"Элвинг\""]
[null,null,null,null,"http://elpass.ru"]

{"sheet":"Титульный","index":1,"n_rows":45,"n_cols":5,"rows_kept":45,"cut":false,"hidden":false,"merged":[[3,3,3,4],[32,3,32,4],[26,3,26,4],[22,3,22,4],[38,3,38,4],[9,3,9,4],[17,3,17,4]]}
[]
[]
[null,null,null,{"$f":"Getcode()","v":"ELPASS.JKH.OPEN.INFO.REQUEST.WARM"},{"$f":"version","v":"Версия 1.0 от 01.10.2017"}]
[null,null,null,{"$f":"GetTemplateName()","v":"Предложение об установлении тарифов в сфере теплоснабжения и информация о способах приобретения, стоимости и объемах товаров, необходимых для производства регулируемых товаров и (или) оказания регулируемых услуг"}]
[]
[null,null,null,"Субъект РФ","Республика Башкортостан"]
[]
[null,null,null,"Отчетный период","2018"]
[]
[null,null,null,"Сведения о регулируемой организации"]
[null,null,null,"Полное наименование организации","Общество с ограниченной ответственностью \"Кумертауские Тепловые сети\""]
[null,null,null,"Сокращенное наименование организации (при наличии)","ООО \"Кумертауские Тепловые сети\""]
[null,null,null,"ОГРН","1120262000561"]
[null,null,null,"ИНН","0262018654"]
[null,null,null,"КПП","026201001"]
[null,null,null,"Режим налогообложения","Общий"]
[]
[null,null,null,"Сведения о филиале"]
[null,null,null,"Является ли данное юридическое лицо филиалом другой организации",""]
[null,null,null,"Наименование филиала"]
[null,null,null,"КПП филиала",""]
[]
[null,null,null,"Адрес регулируемой организации"]
[null,null,null,"Юридический адрес","453300, г.Кумертау, РБ, ул. 40 лет Победы д.7"]
[null,null,null,"Почтовый адрес","453300, г.Кумертау, РБ, ул. 40 лет Победы д.7"]
[]
[null,null,null,"Руководитель регулируемой организации"]
[null,null,null,"Фамилия","Цветков"]
[null,null,null,"Имя","Александр"]
[null,null,null,"Отчество (при наличии)","Васильевич"]
[null,null,null,"Контактный телефон","(34761) 4-30-10"]
[]
[null,null,null,"Главный бухгалтер регулируемой организации"]
[null,null,null,"Фамилия","Абсалямова"]
[null,null,null,"Имя","Татьяна"]
[null,null,null,"Отчество (при наличии)","Николаевна"]
[null,null,null,"Контактный телефон","(34761) 4-26-22"]
[]
[null,null,null,"Должностное лицо, ответственное за составление формы"]
["L11.1","Ответственный.ФИО",null,"Фамилия","Искандаров"]
[null,null,null,"Имя","Ильдар"]
[null,null,null,"Отчество (при наличии)","Рафикович"]
["L11.2","Ответственный.Должность",null,"Должность","Начальник ПЭО"]
["L11.3","Ответственный.Телефон",null,"Контактный телефон","(34761) 4-30-10"]
["L11.4","Ответственный. E-Mail",null,"e-mail","gortep@mail.ru"]

{"sheet":"Параметры","index":2,"n_rows":35,"n_cols":9,"rows_kept":35,"cut":false,"hidden":false,"merged":[[16,3,16,5],[19,4,21,4],[19,6,21,6],[2,3,2,5],[7,3,7,5],[8,3,8,5],[9,3,9,5],[11,3,11,5],[12,3,12,5],[13,3,13,5],[14,3,14,5],[3,3,3,6],[19,5,21,5],[19,3,21,3],[5,3,5,5],[6,3,6,5]]}
[]
[]
[null,null,null,{"$f":"Getcode()","v":"ELPASS.JKH.OPEN.INFO.REQUEST.WARM"},null,null,{"$f":"version","v":"Версия 1.0 от 01.10.2017"}]
[null,null,null,{"$f":"GetTemplateName()","v":"Предложение об установлении тарифов в сфере теплоснабжения и информация о способах приобретения, стоимости и объемах товаров, необходимых для производства регулируемых товаров и (или) оказания регулируемых услуг"}]
[]
[null,null,null,"Вид деятельности",null,null,"Передача тепловой энергии и теплоносителя"]
[null,null,null,"Укажите порядковый номер отчета",null,null,8]
[null,null,null,"Тип отчета",null,null,"Первичное раскрытие информации"]
[null,null,null,"Дата внесения изменений в информацию, подлежащую раскрытию",null,null,null,null,"fff"]
[null,null,null,"По решению организации информация раскрыта на ее официальном сайте в сети Интернет?",null,null,"да"]
[]
[null,null,null,"Дата подачи заявления об установлении тарифов",null,null,"2018-04-25"]
[null,null,null,"Номер заявления об установлении тарифов",null,null,"149"]
[null,null,null,"Начало очередного периода регулирования",null,null,"2019-01-01"]
[null,null,null,"Окончание очередного периода регулирования",null,null,"2023-12-31"]
[]
[null,null,null,"Организация выполняет/планирует к выполнению инвестиционную программу",null,null,"да"]
[]
[]
[null,null,null,"№ п/п","Информация подлежит раскрытию?","Вид тарифа","Наличие двухставочного тарифа"]
[]
[]
[null,null,null,"1","2","3","4"]
[null,null,null,1,"нет","Плата за подключение к системе теплоснабжения",""]
[null,null,null,"2","нет","Плата за услуги по поддержанию резервной тепловой мощности при отсутствии потребления тепловой энергии для отдельных категорий (групп) социально значимых потребителей",""]
[null,null,null,"3","нет","Плата за услуги по поддержанию резервной тепловой мощности, оказываемые регулируемой организацией, мощность источников тепловой энергии которой используется для поддержания резервной мощности в соответствии со схемой теплоснабжения",""]
[null,null,null,"4","нет","Плата за услуги по поддержанию резервной тепловой мощности, оказываемые регулируемой организацией, мощность тепловых сетей которой используется для поддержания резервной мощности в соответствии со схемой теплоснабжения",""]
[null,null,null,"5","нет","Тарифы на тепловую энергию (мощность), производимую в режиме комбинированной выработки электрической и тепловой энергии источниками тепловой энергии с установленной генерирующей мощностью производства электрической энергии 25 мегаватт и более, в соответствии с установленными федеральным органом исполнительной власти в области государственного регулирования тарифов в сфере теплоснабжения предельными (минимальным и (или) максимальным) уровнями указанных тарифов",""]
[null,null,null,"6","нет","Тариф на тепловую энергию (мощность), поставляемую другим теплоснабжающим организациям теплоснабжающими организациями",""]
[null,null,null,"7","нет","На тепловую энергию (мощность), поставляемую потребителям теплоснабжающими организациями в соответствии с установленными предельными (минимальными и (или) максимальными) уровнями указанных тарифов",""]
[null,null,null,"8","нет","Тарифы на теплоноситель, поставляемый теплоснабжающими организациями потребителям",""]
[null,null,null,"9","нет","Тариф на теплоноситель, поставляемый теплоснабжающей организацией, владеющей источником (источниками) тепловой энергии, на котором производится теплоноситель",""]
[null,null,null,"10","нет","Тарифы на горячую воду, поставляемую теплоснабжающими организациями потребителям, другим теплоснабжающим организациям с использованием открытых систем теплоснабжения (горячего водоснабжения)",""]
[null,null,null,"11","да","Тариф на услуги по передаче тепловой энергии","нет"]
[null,null,null,"12","да","Тариф на услуги по передаче теплоносителя","нет"]

{"sheet":"Территории","index":3,"n_rows":11,"n_cols":35,"rows_kept":11,"cut":false,"hidden":false,"merged":[[0,11,0,12],[2,1,2,12],[3,1,3,12],[5,1,5,3],[5,4,5,7],[5,9,5,11],[8,8,8,9],[8,11,8,12],[10,3,10,4],[6,1,6,2],[6,4,6,6],[6,8,6,10],[7,1,9,1],[7,2,9,2],[7,3,9,3],[7,4,8,4],[7,5,8,5],[7,6,8,6],[7,7,8,7]]}
[null,{"$f":"Getcode()","v":"ELPASS.JKH.OPEN.INFO.REQUEST.WARM"},null,null,null,null,null,null,null,null,null,{"$f":"version","v":"Версия 1.0 от 01.10.2017"}]
[]
[null,"Информация о территориях действия тарифов (оказания услуг) регулируемой организации "]
[null,"Общество с ограниченной ответственностью \"Кумертауские Тепловые сети\""]
[]
[null,"Территория",null,null,"Городской округ / муниципальный район",null,null,null,null,"Муниципальное образование"]
[null,"№ п/п",null,"Наименование","№ п/п",null,null,"Наименование","№ п/п",null,null,"Наименование","ОКТМО","Имя диапазона"]
[null,null,1,"Город Кумертау (80723000)","МР",null,1,"Город Кумертау","МО",null,1,"Город Кумертау",80723000,null,"MO_LIST_22"]
[null,null,null,null,null,null,null,null,null,null,null,"Добавить МО",null,null,null,null,null,null,null,null,null,null,null,null,null,null,null,null,null,null,null,null,null,null,"add_MO_range"]
[null,null,null,null,null,null,null,"Добавить ГО / МР",null,null,null,null,null,null,null,null,null,null,null,null,null,null,null,null,null,null,null,null,null,null,"add_MR_range"]
[null,null,null,"Добавить территорию",null,null,null,null,null,null,null,null,null,null,null,null,null,null,null,null,null,null,null,null,null,null,"add_T_range"]

{"sheet":"Тарифы (со схемой)","index":4,"n_rows":12,"n_cols":23,"rows_kept":12,"cut":false,"hidden":true,"merged":[[11,9,11,11],[11,12,11,13],[6,9,10,11],[6,6,10,8],[6,3,10,5],[11,3,11,5],[11,6,11,8],[2,2,2,5],[6,2,10,2],[6,12,10,13],[3,10,3,21],[4,10,4,21],[7,19,10,19],[7,20,7,21],[8,20,10,20],[8,21,10,21],[6,19,6,21],[11,16,11,18],[6,16,10,18],[6,22,10,22],[8,14,10,14],[8,15,10,15],[6,14,7,15]]}
[]
[]
[null,null,{"$f":"Getcode()","v":"ELPASS.JKH.OPEN.INFO.REQUEST.WARM"}]
[null,null,null,null,null,null,null,null,null,null,{"$f":"GetTemplateName()","v":"Предложение об установлении тарифов в сфере теплоснабжения и информация о способах приобретения, стоимости и объемах товаров, необходимых для производства регулируемых товаров и (или) оказания регулируемых услуг"}]
[null,null,null,null,null,null,null,null,null,null,"Общество с ограниченной ответственностью \"Кумертауские Тепловые сети\""]
[]
[null,null,"Вид тарифа","Описание территории действия тарифа",null,null,"Наименование системы теплоснабжения",null,null,"Схема подключения теплопотребляющей установки к коллектору источника тепловой энергии",null,null,"Группа потребителей",null,"Срок действия тарифа",null,"Вид теплоносителя (параметры теплоносителя)",null,null,"Расчетная величина тарифа",null,null,"Примечание"]
[null,null,null,null,null,null,null,null,null,null,null,null,null,null,null,null,null,null,null,"Одноставочный тариф, руб/куб.м","Двухставочный тариф"]
[null,null,null,null,null,null,null,null,null,null,null,null,null,null,"Дата начала","Дата окончания",null,null,null,null,"ставка за тепловую энергию, руб/Гкал","ставка за содержание тепловой мощности, тыс.руб./Гкал/ч/мес"]
[]
[]
[null,null,"1","2",null,null,"3",null,null,"4",null,null,"5",null,"6","7","8",null,null,"9","10","11","12"]

{"sheet":"Тарифы (без схемы)","index":5,"n_rows":79,"n_cols":38,"rows_kept":79,"cut":false,"hidden":false,"merged":[[2,22,2,23],[3,10,3,21],[4,10,4,21],[6,2,10,2],[6,3,10,5],[6,6,10,8],[6,9,10,11],[6,12,10,13],[6,19,6,21],[7,19,10,19],[7,20,7,21],[8,14,10,14],[8,15,10,15],[8,20,10,20],[6,16,10,18],[2,2,2,5],[12,2,55,2],[12,3,54,3],[12,4,54,4],[12,5,54,5],[12,6,32,6],[8,21,10,21],[6,23,10,23],[6,22,10,22],[11,3,11,5],[11,6,11,8],[11,9,11,11],[11,12,11,13],[11,16,11,18],[6,14,7,15],[16,15,17,15],[17,18,17,19],[18,14,19,14],[18,15,19,15],[19,18,19,19],[20,14,21,14],[20,15,21,15],[21,18,21,19],[12,7,32,7],[12,8,32,8],[12,9,32,9],[12,10,32,10],[12,11,32,11],[26,14,27,14],[26,15,27,15],[27,18,27,19],[28,14,29,14],[28,15,29,15],[29,18,29,19],[22,14,23,14],[22,15,23,15],[23,18,23,19],[24,14,25,14],[24,15,25,15],[25,18,25,19],[30,14,31,14],[30,15,31,15],[31,18,31,19],[54,8,54,11],[55,5,55,6],[33,6,53,6],[33,7,53,7],[33,8,53,8],[33,9,53,9],[33,10,53,10],[33,11,53,11],[33,12,53,13],[33,14,34,14],[33,15,34,15],[34,18,34,19],[35,14,36,14],[12,12,32,13],[12,14,13,14],[12,15,13,15],[13,18,13,19],[14,14,15,14],[14,15,15,15],[15,18,15,19],[16,14,17,14],[35,15,36,15],[36,18,36,19],[56,7,76,7],[56,8,76,8],[56,9,76,9],[56,10,76,10],[56,11,76,11],[56,2,78,2],[56,3,77,3],[56,4,77,4],[56,5,77,5],[56,6,76,6],[78,5,78,6],[56,12,76,13],[56,14,57,14],[56,15,57,15],[57,18,57,19],[58,14,59,14],[58,15,59,15],[59,18,59,19],[60,14,61,14],[60,15,61,15],[61,18,61,19],[62,14,63,14],[70,14,71,14],[70,15,71,15],[71,18,71,19],[72,14,73,14],[72,15,73,15],[73,18,73,19],[66,14,67,14],[66,15,67,15],[67,18,67,19],[68,14,69,14],[68,15,69,15],[69,18,69,19],[37,14,38,14],[37,15,38,15],[38,18,38,19],[74,14,75,14],[74,15,75,15],[75,18,75,19],[77,8,77,11],[62,15,63,15],[63,18,63,19],[64,14,65,14],[64,15,65,15],[65,18,65,19],[43,14,44,14],[43,15,44,15],[44,18,44,19],[45,14,46,14],[45,15,46,15],[46,18,46,19],[39,14,40,14],[39,15,40,15],[40,18,40,19],[41,14,42,14],[41,15,42,15],[42,18,42,19],[51,14,52,14],[51,15,52,15],[52,18,52,19],[47,14,48,14],[47,15,48,15],[48,18,48,19],[49,14,50,14],[49,15,50,15],[50,18,50,19]]}
[]
[]
[null,null,{"$f":"Getcode()","v":"ELPASS.JKH.OPEN.INFO.REQUEST.WARM"},null,null,null,null,null,null,null,null,null,null,null,null,null,null,null,null,null,null,null,{"$f":"version","v":"Версия 1.0 от 01.10.2017"}]
[null,null,null,null,null,null,null,null,null,null,{"$f":"GetTemplateName()","v":"Предложение об установлении тарифов в сфере теплоснабжения и информация о способах приобретения, стоимости и объемах товаров, необходимых для производства регулируемых товаров и (или) оказания регулируемых услуг"}]
[null,null,null,null,null,null,null,null,null,null,"Общество с ограниченной ответственностью \"Кумертауские Тепловые сети\""]
[]
[null,null,"Вид тарифа","Описание территории действия тарифа",null,null,"Наименование системы теплоснабжения",null,null,null,null,null,"Группа потребителей",null,"Срок действия тарифа",null,"Вид теплоносителя (параметры теплоносителя)",null,null,"Расчетная величина тарифа",null,null,"Компонент на теплоноситель, руб./куб.м","Примечание"]
[null,null,null,null,null,null,null,null,null,null,null,null,null,null,null,null,null,null,null,"Одноставочный тариф, руб/куб.м","Двухставочный тариф"]
[null,null,null,null,null,null,null,null,null,null,null,null,null,null,"Дата начала","Дата окончания",null,null,null,null,"ставка за тепловую энергию, руб/Гкал","ставка за содержание тепловой мощности, тыс.руб./Гкал/ч/мес"]
[]
[]
[null,null,"1","2",null,null,"3",null,null,"4",null,null,"4",null,"5","6","7",null,null,"8","9",10,11,12]
[null,null,"Тариф на услуги по передаче тепловой энергии",null,"1","Город Кумертау (80723000)","да","1","Закрытая (зависимая)",null,null,null,"Для потребителей , в случае отсутствия дифференциации тарифов по схеме подключения",null,{"$f":"List02_StartDate","v":"2019-01-01"},{"$f":"IF(MONTH(O13)<7,\"30.06.\",\"31.12.\")&YEAR(O13)","v":"30.06.2019"},null,1,"горячая вода",1397.15]
[null,null,null,null,null,null,null,null,null,null,null,null,null,null,null,null,null,null,"Добавить вид теплоносителя",null,null,null,null,null,null,null,null,null,null,null,null,null,null,null,null,null,null,"add_TYPE_OneRate_range"]
[null,null,null,null,null,null,null,null,null,null,null,null,null,null,"2019-07-01",{"$f":"IF(MONTH(O15)<7,\"30.06.\",\"31.12.\")&YEAR(O15)","v":"31.12.2019"},null,1,"горячая вода",1620.64]
[null,null,null,null,null,null,null,null,null,null,null,null,null,null,null,null,null,null,"Добавить вид теплоносителя",null,null,null,null,null,null,null,null,null,null,null,null,null,null,null,null,null,null,"add_TYPE_OneRate_range"]
[null,null,null,null,null,null,null,null,null,null,null,null,null,null,"2020-01-01",{"$f":"IF(MONTH(O17)<7,\"30.06.\",\"31.12.\")&YEAR(O17)","v":"30.06.2020"},null,1,"горячая вода",1620.64]
[null,null,null,null,null,null,null,null,null,null,null,null,null,null,null,null,null,null,"Добавить вид теплоносителя",null,null,null,null,null,null,null,null,null,null,null,null,null,null,null,null,null,null,"add_TYPE_OneRate_range"]
[null,null,null,null,null,null,null,null,null,null,null,null,null,null,"2020-07-01",{"$f":"IF(MONTH(O19)<7,\"30.06.\",\"31.12.\")&YEAR(O19)","v":"31.12.2020"},null,1,"горячая вода",1881.36]
[null,null,null,null,null,null,null,null,null,null,null,null,null,null,null,null,null,null,"Добавить вид теплоносителя",null,null,null,null,null,null,null,null,null,null,null,null,null,null,null,null,null,null,"add_TYPE_OneRate_range"]
[null,null,null,null,null,null,null,null,null,null,null,null,null,null,"2021-01-01",{"$f":"IF(MONTH(O21)<7,\"30.06.\",\"31.12.\")&YEAR(O21)","v":"30.06.2021"},null,1,"горячая вода",1881.36]
[null,null,null,null,null,null,null,null,null,null,null,null,null,null,null,null,null,null,"Добавить вид теплоносителя",null,null,null,null,null,null,null,null,null,null,null,null,null,null,null,null,null,null,"add_TYPE_OneRate_range"]
[null,null,null,null,null,null,null,null,null,null,null,null,null,null,"2021-07-01",{"$f":"IF(MONTH(O23)<7,\"30.06.\",\"31.12.\")&YEAR(O23)","v":"31.12.2021"},null,1,"горячая вода",1956.61]
[null,null,null,null,null,null,null,null,null,null,null,null,null,null,null,null,null,null,"Добавить вид теплоносителя",null,null,null,null,null,null,null,null,null,null,null,null,null,null,null,null,null,null,"add_TYPE_OneRate_range"]
[null,null,null,null,null,null,null,null,null,null,null,null,null,null,"2022-01-01",{"$f":"IF(MONTH(O25)<7,\"30.06.\",\"31.12.\")&YEAR(O25)","v":"30.06.2022"},null,1,"горячая вода",1956.61]
[null,null,null,null,null,null,null,null,null,null,null,null,null,null,null,null,null,null,"Добавить вид теплоносителя",null,null,null,null,null,null,null,null,null,null,null,null,null,null,null,null,null,null,"add_TYPE_OneRate_range"]
[null,null,null,null,null,null,null,null,null,null,null,null,null,null,"2022-07-01",{"$f":"IF(MONTH(O27)<7,\"30.06.\",\"31.12.\")&YEAR(O27)","v":"31.12.2022"},null,1,"горячая вода",2034.88]
[null,null,null,null,null,null,null,null,null,null,null,null,null,null,null,null,null,null,"Добавить вид теплоносителя",null,null,null,null,null,null,null,null,null,null,null,null,null,null,null,null,null,null,"add_TYPE_OneRate_range"]
[null,null,null,null,null,null,null,null,null,null,null,null,null,null,"2023-01-01",{"$f":"IF(MONTH(O29)<7,\"30.06.\",\"31.12.\")&YEAR(O29)","v":"30.06.2023"},null,1,"горячая вода",2034.88]
[null,null,null,null,null,null,null,null,null,null,null,null,null,null,null,null,null,null,"Добавить вид теплоносителя",null,null,null,null,null,null,null,null,null,null,null,null,null,null,null,null,null,null,"add_TYPE_OneRate_range"]
[null,null,null,null,null,null,null,null,null,null,null,null,null,null,"2023-07-01",{"$f":"IF(MONTH(O31)<7,\"30.06.\",\"31.12.\")&YEAR(O31)","v":"31.12.2023"},null,1,"горячая вода",2116.27]
[null,null,null,null,null,null,null,null,null,null,null,null,null,null,null,null,null,null,"Добавить вид теплоносителя",null,null,null,null,null,null,null,null,null,null,null,null,null,null,null,null,null,null,"add_TYPE_OneRate_range"]
[]
[null,null,null,null,null,null,"ы","2","Закрытая (зависимая)",null,null,null,"Население (тарифы указываются с учетом НДС)",null,{"$f":"List02_StartDate","v":"2019-01-01"},{"$f":"IF(MONTH(O34)<7,\"30.06.\",\"31.12.\")&YEAR(O34)","v":"30.06.2019"},null,1,"горячая вода",1648.64]
[null,null,null,null,null,null,null,null,null,null,null,null,null,null,null,null,null,null,"Добавить вид теплоносителя",null,null,null,null,null,null,null,null,null,null,null,null,null,null,null,null,null,null,"add_TYPE_OneRate_range"]
[null,null,null,null,null,null,null,null,null,null,null,null,null,null,"2019-07-01",{"$f":"IF(MONTH(O36)<7,\"30.06.\",\"31.12.\")&YEAR(O36)","v":"31.12.2019"},null,1,"горячая вода",1912.36]
[null,null,null,null,null,null,null,null,null,null,null,null,null,null,null,null,null,null,"Добавить вид теплоносителя",null,null,null,null,null,null,null,null,null,null,null,null,null,null,null,null,null,null,"add_TYPE_OneRate_range"]
[null,null,null,null,null,null,null,null,null,null,null,null,null,null,"2020-01-01",{"$f":"IF(MONTH(O38)<7,\"30.06.\",\"31.12.\")&YEAR(O38)","v":"30.06.2020"},null,1,"горячая вода",1912.36]
[null,null,null,null,null,null,null,null,null,null,null,null,null,null,null,null,null,null,"Добавить вид теплоносителя",null,null,null,null,null,null,null,null,null,null,null,null,null,null,null,null,null,null,"add_TYPE_OneRate_range"]
[null,null,null,null,null,null,null,null,null,null,null,null,null,null,"2020-07-01",{"$f":"IF(MONTH(O40)<7,\"30.06.\",\"31.12.\")&YEAR(O40)","v":"31.12.2020"},null,1,"горячая вода",2220]
[null,null,null,null,null,null,null,null,null,null,null,null,null,null,null,null,null,null,"Добавить вид теплоносителя",null,null,null,null,null,null,null,null,null,null,null,null,null,null,null,null,null,null,"add_TYPE_OneRate_range"]
[null,null,null,null,null,null,null,null,null,null,null,null,null,null,"2021-01-01",{"$f":"IF(MONTH(O42)<7,\"30.06.\",\"31.12.\")&YEAR(O42)","v":"30.06.2021"},null,1,"горячая вода",2220]
[null,null,null,null,null,null,null,null,null,null,null,null,null,null,null,null,null,null,"Добавить вид теплоносителя",null,null,null,null,null,null,null,null,null,null,null,null,null,null,null,null,null,null,"add_TYPE_OneRate_range"]
[null,null,null,null,null,null,null,null,null,null,null,null,null,null,"2021-07-01",{"$f":"IF(MONTH(O44)<7,\"30.06.\",\"31.12.\")&YEAR(O44)","v":"31.12.2021"},null,1,"горячая вода",2308.8000000000002]
[null,null,null,null,null,null,null,null,null,null,null,null,null,null,null,null,null,null,"Добавить вид теплоносителя",null,null,null,null,null,null,null,null,null,null,null,null,null,null,null,null,null,null,"add_TYPE_OneRate_range"]
[null,null,null,null,null,null,null,null,null,null,null,null,null,null,"2022-01-01",{"$f":"IF(MONTH(O46)<7,\"30.06.\",\"31.12.\")&YEAR(O46)","v":"30.06.2022"},null,1,"горячая вода",2308.16]
[null,null,null,null,null,null,null,null,null,null,null,null,null,null,null,null,null,null,"Добавить вид теплоносителя",null,null,null,null,null,null,null,null,null,null,null,null,null,null,null,null,null,null,"add_TYPE_OneRate_range"]
[null,null,null,null,null,null,null,null,null,null,null,null,null,null,"2022-07-01",{"$f":"IF(MONTH(O48)<7,\"30.06.\",\"31.12.\")&YEAR(O48)","v":"31.12.2022"},null,1,"горячая вода",2401.16]
[null,null,null,null,null,null,null,null,null,null,null,null,null,null,null,null,null,null,"Добавить вид теплоносителя",null,null,null,null,null,null,null,null,null,null,null,null,null,null,null,null,null,null,"add_TYPE_OneRate_range"]
[null,null,null,null,null,null,null,null,null,null,null,null,null,null,"2023-01-01",{"$f":"IF(MONTH(O50)<7,\"30.06.\",\"31.12.\")&YEAR(O50)","v":"30.06.2023"},null,1,"горячая вода",2401.16]
[null,null,null,null,null,null,null,null,null,null,null,null,null,null,null,null,null,null,"Добавить вид теплоносителя",null,null,null,null,null,null,null,null,null,null,null,null,null,null,null,null,null,null,"add_TYPE_OneRate_range"]
[null,null,null,null,null,null,null,null,null,null,null,null,null,null,"2023-07-01",{"$f":"IF(MONTH(O52)<7,\"30.06.\",\"31.12.\")&YEAR(O52)","v":"31.12.2023"},null,1,"горячая вода",2497.1999999999998]
[null,null,null,null,null,null,null,null,null,null,null,null,null,null,null,null,null,null,"Добавить вид теплоносителя",null,null,null,null,null,null,null,null,null,null,null,null,null,null,null,null,null,null,"add_TYPE_OneRate_range"]
[]
[null,null,null,null,null,null,null,null,"Добавить систему",null,null,null,null,null,null,null,null,null,null,null,null,null,null,null,null,null,null,"add_SYSTEM_OneRate_range"]
[null,null,null,null,null,"Добавить территорию",null,null,null,null,null,null,null,null,null,null,null,null,null,null,null,null,null,null,"add_TERRITORY_OneRate_range"]
[null,null,"Тариф на услуги по передаче теплоносителя",null,"1","Город Кумертау (80723000)","да","1","Закрытая (зависимая)",null,null,null,"Тариф на теплоноситель, поставляемый теплоснабжающей организацией, владеющей источником (источниками) тепловой энергии, на котором производиться теплоноситель (без НДС)",null,{"$f":"List02_StartDate","v":"2019-01-01"},{"$f":"IF(MONTH(O57)<7,\"30.06.\",\"31.12.\")&YEAR(O57)","v":"30.06.2019"},null,1,"горячая вода",4.91]
[null,null,null,null,null,null,null,null,null,null,null,null,null,null,null,null,null,null,"Добавить вид теплоносителя",null,null,null,null,null,null,null,null,null,null,null,null,null,null,null,null,null,null,"add_TYPE_OneRate_range"]
[null,null,null,null,null,null,null,null,null,null,null,null,null,null,"2019-07-01",{"$f":"IF(MONTH(O59)<7,\"30.06.\",\"31.12.\")&YEAR(O59)","v":"31.12.2019"},null,1,"горячая вода",4.91]
[null,null,null,null,null,null,null,null,null,null,null,null,null,null,null,null,null,null,"Добавить вид теплоносителя",null,null,null,null,null,null,null,null,null,null,null,null,null,null,null,null,null,null,"add_TYPE_OneRate_range"]
[null,null,null,null,null,null,null,null,null,null,null,null,null,null,"2020-01-01",{"$f":"IF(MONTH(O61)<7,\"30.06.\",\"31.12.\")&YEAR(O61)","v":"30.06.2020"},null,1,"горячая вода",{"$f":"4.91*1.04","v":5.1064000000000007}]
[null,null,null,null,null,null,null,null,null,null,null,null,null,null,null,null,null,null,"Добавить вид теплоносителя",null,null,null,null,null,null,null,null,null,null,null,null,null,null,null,null,null,null,"add_TYPE_OneRate_range"]
[null,null,null,null,null,null,null,null,null,null,null,null,null,null,"2020-07-01",{"$f":"IF(MONTH(O63)<7,\"30.06.\",\"31.12.\")&YEAR(O63)","v":"31.12.2020"},null,1,"горячая вода",{"$f":"T61","v":5.1064000000000007}]
[null,null,null,null,null,null,null,null,null,null,null,null,null,null,null,null,null,null,"Добавить вид теплоносителя",null,null,null,null,null,null,null,null,null,null,null,null,null,null,null,null,null,null,"add_TYPE_OneRate_range"]
[null,null,null,null,null,null,null,null,null,null,null,null,null,null,"2021-01-01",{"$f":"IF(MONTH(O65)<7,\"30.06.\",\"31.12.\")&YEAR(O65)","v":"30.06.2021"},null,1,"горячая вода",{"$f":"T63*1.04","v":5.3106560000000007}]
[null,null,null,null,null,null,null,null,null,null,null,null,null,null,null,null,null,null,"Добавить вид теплоносителя",null,null,null,null,null,null,null,null,null,null,null,null,null,null,null,null,null,null,"add_TYPE_OneRate_range"]
[null,null,null,null,null,null,null,null,null,null,null,null,null,null,"2021-07-01",{"$f":"IF(MONTH(O67)<7,\"30.06.\",\"31.12.\")&YEAR(O67)","v":"31.12.2021"},null,1,"горячая вода",{"$f":"T65","v":5.3106560000000007}]
[null,null,null,null,null,null,null,null,null,null,null,null,null,null,null,null,null,null,"Добавить вид теплоносителя",null,null,null,null,null,null,null,null,null,null,null,null,null,null,null,null,null,null,"add_TYPE_OneRate_range"]
[null,null,null,null,null,null,null,null,null,null,null,null,null,null,"2022-01-01",{"$f":"IF(MONTH(O69)<7,\"30.06.\",\"31.12.\")&YEAR(O69)","v":"30.06.2022"},null,1,"горячая вода",{"$f":"T67*1.04","v":5.5230822400000008}]
[null,null,null,null,null,null,null,null,null,null,null,null,null,null,null,null,null,null,"Добавить вид теплоносителя",null,null,null,null,null,null,null,null,null,null,null,null,null,null,null,null,null,null,"add_TYPE_OneRate_range"]
[null,null,null,null,null,null,null,null,null,null,null,null,null,null,"2022-07-01",{"$f":"IF(MONTH(O71)<7,\"30.06.\",\"31.12.\")&YEAR(O71)","v":"31.12.2022"},null,1,"горячая вода",{"$f":"T69","v":5.5230822400000008}]
[null,null,null,null,null,null,null,null,null,null,null,null,null,null,null,null,null,null,"Добавить вид теплоносителя",null,null,null,null,null,null,null,null,null,null,null,null,null,null,null,null,null,null,"add_TYPE_OneRate_range"]
[null,null,null,null,null,null,null,null,null,null,null,null,null,null,"2023-01-01",{"$f":"IF(MONTH(O73)<7,\"30.06.\",\"31.12.\")&YEAR(O73)","v":"30.06.2023"},null,1,"горячая вода",{"$f":"T71*1.04","v":5.7440055296000008}]
[null,null,null,null,null,null,null,null,null,null,null,null,null,null,null,null,null,null,"Добавить вид теплоносителя",null,null,null,null,null,null,null,null,null,null,null,null,null,null,null,null,null,null,"add_TYPE_OneRate_range"]
[null,null,null,null,null,null,null,null,null,null,null,null,null,null,"2023-07-01",{"$f":"IF(MONTH(O75)<7,\"30.06.\",\"31.12.\")&YEAR(O75)","v":"31.12.2023"},null,1,"горячая вода",{"$f":"T73","v":5.7440055296000008}]
[null,null,null,null,null,null,null,null,null,null,null,null,null,null,null,null,null,null,"Добавить вид теплоносителя",null,null,null,null,null,null,null,null,null,null,null,null,null,null,null,null,null,null,"add_TYPE_OneRate_range"]
[]
[null,null,null,null,null,null,null,null,"Добавить систему",null,null,null,null,null,null,null,null,null,null,null,null,null,null,null,null,null,null,"add_SYSTEM_OneRate_range"]
[null,null,null,null,null,"Добавить территорию",null,null,null,null,null,null,null,null,null,null,null,null,null,null,null,null,null,null,"add_TERRITORY_OneRate_range"]

{"sheet":"Плата за подключение","index":6,"n_rows":26,"n_cols":43,"rows_kept":26,"cut":false,"hidden":true,"merged":[[11,7,23,7],[11,6,23,6],[23,11,23,12],[11,12,21,12],[11,2,25,2],[25,5,25,8],[11,4,24,4],[11,3,24,3],[11,5,24,5],[11,8,23,8],[24,8,24,10],[11,9,22,9],[11,10,22,10],[11,11,22,11],[2,2,2,5],[6,2,9,2],[6,6,9,8],[6,3,9,5],[10,12,10,14],[9,12,9,14],[6,12,8,15],[3,10,3,22],[6,9,9,11],[4,13,4,21],[10,3,10,5],[10,6,10,8],[10,9,10,11],[6,20,8,21],[2,23,2,24],[22,14,22,15],[6,24,9,24],[6,16,8,17],[6,22,8,23],[6,18,8,19],[11,19,21,19],[11,18,21,18],[11,13,21,13],[11,14,21,14],[11,15,21,15],[11,16,21,16],[11,17,21,17]]}
[]
[]
[null,null,{"$f":"Getcode()","v":"ELPASS.JKH.OPEN.INFO.REQUEST.WARM"},null,null,null,null,null,null,null,null,null,null,null,null,null,null,null,null,null,null,null,null,{"$f":"version","v":"Версия 1.0 от 01.10.2017"}]
[null,null,null,null,null,null,null,null,null,null,"Предложение об установлении тарифов в сфере теплоснабжения "]
[null,null,null,null,null,null,null,null,null,null,null,null,null,"Общество с ограниченной ответственностью \"Кумертауские Тепловые сети\""]
[]
[null,null,"Наименование тарифа","Описание территории действия тарифа",null,null,"Наименование системы теплоснабжения",null,null,"Наименование источника тепловой энергии",null,null,"Подключаемая тепловая нагрузка,\n Гкал/ч",null,null,null,"Тип прокладки тепловых сетей",null,"Диаметр тепловых сетей",null,"Величина платы за подключение (технологическое присоединение), тыс. руб./Гкал/ч(руб.)",null,"Срок действия тарифа",null,"Примечание"]
[]
[]
[null,null,null,null,null,null,null,null,null,null,null,null,"да/нет",null,null,"значение","да/нет","значение","да/нет","значение","С НДС","без НДС","Дата начала","Дата окончания"]
[null,null,"1","2",null,null,"3",null,null,"3",null,null,"4",null,null,"5","6","7","8","9","10","11","12","13","14"]
[null,null,"Плата за подключение к системе теплоснабжения",null,1,null,"да",1,"","да",1,"",null,"1","нет",null,"нет",null,"нет",null,null,null,{"$f":"List02_StartDate","v":"2019-01-01"},{"$f":"IF(MONTH(W12)<7,\"30.06.\",\"31.12.\")&YEAR(W12)","v":"30.06.2019"}]
[null,null,null,null,null,null,null,null,null,null,null,null,null,null,null,null,null,null,null,null,null,null,"2019-07-01","31.12.2019"]
[null,null,null,null,null,null,null,null,null,null,null,null,null,null,null,null,null,null,null,null,null,null,"2020-01-01","30.06.2020"]
[null,null,null,null,null,null,null,null,null,null,null,null,null,null,null,null,null,null,null,null,null,null,"2020-07-01","31.12.2020"]
[null,null,null,null,null,null,null,null,null,null,null,null,null,null,null,null,null,null,null,null,null,null,"2021-01-01","30.06.2021"]
[null,null,null,null,null,null,null,null,null,null,null,null,null,null,null,null,null,null,null,null,null,null,"2021-07-01","31.12.2021"]
[null,null,null,null,null,null,null,null,null,null,null,null,null,null,null,null,null,null,null,null,null,null,"2022-01-01","30.06.2022"]
[null,null,null,null,null,null,null,null,null,null,null,null,null,null,null,null,null,null,null,null,null,null,"2022-07-01","31.12.2022"]
[null,null,null,null,null,null,null,null,null,null,null,null,null,null,null,null,null,null,null,null,null,null,"2023-01-01","30.06.2023"]
[null,null,null,null,null,null,null,null,null,null,null,null,null,null,null,null,null,null,null,null,null,null,"2023-07-01","31.12.2023"]
[null,null,null,null,null,null,null,null,null,null,null,null,null,null,null,null,null,null,null,null,null,null,null,null,null,null,null,null,null,null,null,null,null,null,null,null,null,null,null,null,null,null,"add_PERIOD_range"]
[null,null,null,null,null,null,null,null,null,null,null,null,null,null,"Добавить строку",null,null,null,null,null,null,null,null,null,null,null,null,null,null,null,null,null,null,null,"add_CONNECT_range"]
[null,null,null,null,null,null,null,null,null,null,null,"Добавить источник",null,null,null,null,null,null,null,null,null,null,null,null,null,null,null,null,null,null,null,"add_CONNECT_SOURCE_range"]
[null,null,null,null,null,null,null,null,"Добавить систему",null,null,null,null,null,null,null,null,null,null,null,null,null,null,null,null,null,null,null,"add_SYSTEM_CONNECT_range"]
[null,null,null,null,null,"Добавить территорию",null,null,null,null,null,null,null,null,null,null,null,null,null,null,null,null,null,null,null,"add_TERRITORY_CONNECT_range"]

{"sheet":"Информация о предложениях","index":7,"n_rows":778,"n_cols":13,"rows_kept":778,"cut":false,"hidden":false,"merged":[[757,9,757,11],[758,6,758,7],[759,3,760,3],[759,9,759,11],[760,6,760,7],[761,3,763,3],[761,4,762,4],[761,5,762,5],[761,6,762,6],[761,7,762,7],[761,8,762,8],[761,9,762,11],[763,6,763,7],[764,3,777,3],[764,4,776,4],[764,5,776,5],[736,2,756,2],[736,3,737,3],[743,3,756,3],[743,4,755,4],[743,5,755,5],[777,6,777,7],[757,2,777,2],[757,3,758,3],[764,6,776,6],[764,7,776,7],[736,9,736,11],[738,3,739,3],[738,9,738,11],[739,6,739,7],[740,3,742,3],[740,4,741,4],[740,5,741,5],[740,6,741,6],[740,7,741,7],[740,8,741,8],[740,9,741,11],[742,6,742,7],[737,6,737,7],[715,2,735,2],[715,3,716,3],[715,9,715,11],[716,6,716,7],[719,3,721,3],[719,4,720,4],[719,5,720,5],[719,6,720,6],[719,7,720,7],[719,8,720,8],[719,9,720,11],[721,6,721,7],[722,3,735,3],[735,6,735,7],[659,9,671,11],[672,6,672,7],[656,8,657,8],[673,2,693,2],[673,3,674,3],[694,9,694,11],[673,9,673,11],[674,6,674,7],[675,3,676,3],[675,9,675,11],[676,6,676,7],[677,3,679,3],[677,4,678,4],[677,5,678,5],[677,6,678,6],[677,7,678,7],[677,8,678,8],[677,9,678,11],[679,6,679,7],[694,2,714,2],[694,3,695,3],[695,6,695,7],[696,3,697,3],[701,3,714,3],[638,9,650,11],[651,6,651,7],[652,2,672,2],[652,3,653,3],[652,9,652,11],[653,6,653,7],[654,3,655,3],[654,9,654,11],[656,3,658,3],[656,4,657,4],[656,5,657,5],[656,6,657,6],[656,7,657,7],[638,3,651,3],[638,4,650,4],[638,5,650,5],[656,9,657,11],[658,6,658,7],[659,3,672,3],[659,4,671,4],[659,5,671,5],[659,6,671,6],[659,7,671,7],[659,8,671,8],[655,6,655,7],[638,8,650,8],[635,3,637,3],[635,4,636,4],[635,5,636,5],[635,6,636,6],[638,6,650,6],[638,7,650,7],[631,2,651,2],[631,3,632,3],[633,3,634,3],[635,8,636,8],[634,6,634,7],[589,2,609,2],[589,3,590,3],[593,3,595,3],[593,4,594,4],[593,5,594,5],[593,6,594,6],[593,7,594,7],[617,7,629,7],[610,2,630,2],[610,3,611,3],[611,6,611,7],[612,3,613,3],[613,6,613,7],[614,3,616,3],[614,4,615,4],[614,5,615,5],[614,6,615,6],[614,7,615,7],[616,6,616,7],[617,3,630,3],[589,9,589,11],[590,6,590,7],[591,3,592,3],[591,9,591,11],[592,6,592,7],[617,4,629,4],[617,5,629,5],[617,6,629,6],[635,7,636,7],[610,9,610,11],[612,9,612,11],[614,8,615,8],[614,9,615,11],[593,8,594,8],[593,9,594,11],[595,6,595,7],[596,3,609,3],[596,4,608,4],[596,5,608,5],[596,6,608,6],[596,7,608,7],[596,8,608,8],[596,9,608,11],[609,6,609,7],[575,9,587,11],[575,3,588,3],[575,5,587,5],[575,6,587,6],[575,7,587,7],[568,2,588,2],[568,3,569,3],[588,6,588,7],[575,4,587,4],[568,9,568,11],[569,6,569,7],[570,3,571,3],[570,9,570,11],[571,6,571,7],[572,3,574,3],[572,4,573,4],[572,5,573,5],[572,6,573,6],[572,7,573,7],[572,8,573,8],[572,9,573,11],[574,6,574,7],[635,9,636,11],[637,6,637,7],[554,4,566,4],[554,5,566,5],[554,6,566,6],[554,7,566,7],[554,8,566,8],[547,2,567,2],[547,3,548,3],[547,9,547,11],[548,6,548,7],[549,3,550,3],[549,9,549,11],[550,6,550,7],[551,3,553,3],[551,4,552,4],[551,5,552,5],[551,6,552,6],[551,7,552,7],[551,8,552,8],[551,9,552,11],[553,6,553,7],[554,3,567,3],[633,9,633,11],[764,8,776,8],[764,9,776,11],[680,8,692,8],[680,9,692,11],[700,6,700,7],[717,9,717,11],[722,8,734,8],[722,9,734,11],[696,9,696,11],[697,6,697,7],[698,6,699,6],[698,7,699,7],[698,8,699,8],[698,9,699,11],[701,6,713,6],[701,7,713,7],[701,8,713,8],[701,9,713,11],[714,6,714,7],[743,6,755,6],[743,7,755,7],[743,8,755,8],[743,9,755,11],[756,6,756,7],[680,3,693,3],[680,4,692,4],[680,5,692,5],[680,6,692,6],[680,7,692,7],[693,6,693,7],[722,4,734,4],[722,5,734,5],[722,6,734,6],[722,7,734,7],[717,3,718,3],[718,6,718,7],[698,3,700,3],[698,4,699,4],[698,5,699,5],[701,5,713,5],[701,4,713,4],[2,2,2,5],[2,10,2,11],[3,2,3,11],[4,2,4,11],[5,9,5,11],[520,8,532,8],[520,9,532,11],[533,6,533,7],[519,6,519,7],[520,3,533,3],[520,4,532,4],[520,5,532,5],[520,6,532,6],[520,7,532,7],[6,9,6,11],[513,2,533,2],[515,3,516,3],[515,9,515,11],[516,6,516,7],[7,2,7,11],[8,2,8,3],[8,9,8,11],[9,2,9,11],[12,2,34,2],[617,8,629,8],[617,9,629,11],[630,6,630,7],[631,9,631,11],[632,6,632,7],[554,9,566,11],[567,6,567,7],[575,8,587,8],[20,3,26,3],[20,4,21,4],[20,5,21,5],[20,6,21,6],[20,7,21,7],[20,8,21,8],[20,9,21,11],[26,6,26,7],[517,3,519,3],[517,4,518,4],[517,5,518,5],[517,6,518,6],[517,7,518,7],[513,3,514,3],[513,9,513,11],[514,6,514,7],[12,3,13,3],[12,9,12,11],[13,6,13,7],[517,8,518,8],[517,9,518,11],[10,2,11,3],[10,9,10,11],[11,6,11,7],[14,3,19,3],[14,9,14,11],[19,6,19,7],[35,2,57,2],[35,3,36,3],[35,9,35,11],[36,6,36,7],[37,3,42,3],[37,9,37,11],[42,6,42,7],[43,3,49,3],[43,4,44,4],[43,5,44,5],[43,6,44,6],[43,7,44,7],[43,8,44,8],[15,9,15,11],[16,9,16,11],[17,9,17,11],[18,9,18,11],[43,9,44,11],[49,6,49,7],[50,3,57,3],[50,4,56,4],[50,5,56,5],[50,6,56,6],[50,7,56,7],[50,8,56,8],[50,9,56,11],[57,6,57,7],[47,9,47,11],[48,9,48,11],[27,8,33,8],[27,9,33,11],[34,6,34,7],[27,3,34,3],[27,4,33,4],[27,5,33,5],[27,6,33,6],[27,7,33,7],[39,9,39,11],[40,9,40,11],[41,9,41,11],[45,9,45,11],[46,9,46,11],[22,9,22,11],[23,9,23,11],[24,9,24,11],[25,9,25,11],[38,9,38,11]]}
[]
[]
[null,null,{"$f":"Getcode()","v":"ELPASS.JKH.OPEN.INFO.REQUEST.WARM"},null,null,null,null,null,null,null,{"$f":"version","v":"Версия 1.0 от 01.10.2017"}]
[null,null,"Информация о предложении регулируемой организации об установлении тарифов в сфере теплоснабжения на очередной период регулирования"]
[null,null,"Общество с ограниченной ответственностью \"Кумертауские Тепловые сети\""]
[null,null,"Вид тарифа","Информация подлежащая раскрытию",null,null,"Период с","Период по","Значение","Примечание"]
[null,null,"1","2",null,null,3,4,5,6]
[null,null,"Копия инвестиционной программы, утвержденной в установленном законодательством Российской Федерации порядке (проекта инвестиционной программы)"]
[null,null,null,null,null,null,null,null,"http://eias-elpas.bashkortostan.ru/UserFile/Download?guid=b0c3f834-6046-433e-8a95-c89c7efcd733"]
[null,null,"Долгосрочные параметры регулирования (в случае если их установление предусмотрено выбранным методом регулирования)"]
[null,null,null,null,null,1,"2019-01-01","2023-12-31"]
[null,null,null,null,null,null,"Добавить период",null,null,null,null,null,"add_PARAM_range"]
[null,null,"Тариф на услуги по передаче тепловой энергии","Предлагаемый метод регулирования",null,1,"2019-01-01","2023-12-31","метод индексации установленных тарифов"]
[null,null,null,null,null,null,"Добавить период",null,null,null,null,null,"add_METHOD_range"]
[null,null,null,"Сведения о необходимой валовой выручке на соответствующий период, в том числе с разбивкой по годам, тыс. руб.",null,1,"2019-01-01","2019-12-31",743993.66]
[null,null,null,null,"ы","2","2020-01-01","2020-12-31",769655.86]
[null,null,null,null,"ы","3","2021-01-01","2021-12-31",796182.22]
[null,null,null,null,"ы","4","2022-01-01","2022-12-31",823691.15]
[null,null,null,null,"ы","5","2023-01-01","2022-12-31",852219.64]
[null,null,null,null,null,null,"Добавить период",null,null,null,null,null,"add_OFFERS_range"]
[null,null,null,"Годовой объем полезного отпуска тепловой энергии (теплоносителя), тыс. Гкал",null,1,"2019-01-01","2019-12-31",382.33300000000003]
[]
[null,null,null,null,"ы","2","2020-01-01","2020-12-31",382.33300000000003]
[null,null,null,null,"ы","3","2021-01-01","2021-12-31",382.33300000000003]
[null,null,null,null,"ы","4","2022-01-01","2022-12-31",382.33300000000003]
[null,null,null,null,"ы","5","2023-01-01","2023-12-31",382.33300000000003]
[null,null,null,null,null,null,"Добавить период",null,null,null,null,null,"add_OFFERS_range"]
[null,null,null,"Размер экономически обоснованных расходов, не учтенных при регулировании тарифов в предыдущий период регулирования (при их наличии), определенный в соответствии с законодательством Российской Федерации, тыс.руб.",null,1,"2019-01-01","2023-12-31",0]
[]
[]
[]
[]
[]
[]
[null,null,null,null,null,null,"Добавить период",null,null,null,null,null,"add_OFFERS_range"]
[null,null,"Тариф на услуги по передаче теплоносителя","Предлагаемый метод регулирования",null,1,"2019-01-01","2023-12-31","метод индексации установленных тарифов"]
[null,null,null,null,null,null,"Добавить период",null,null,null,null,null,"add_METHOD_range"]
[null,null,null,"Сведения о необходимой валовой выручке на соответствующий период, в том числе с разбивкой по годам, тыс. руб.",null,1,"2019-01-01","2019-12-31",761.61]
[null,null,null,null,"ы","2","2020-01-01","2020-12-31",{"$f":"I38*1.04","v":792.07440000000008}]
[null,null,null,null,"ы","3","2021-01-01","2021-12-31",{"$f":"I39*1.04","v":823.75737600000014}]
[null,null,null,null,"ы","4","2022-01-01","2022-12-31",{"$f":"I40*1.04","v":856.70767104000015}]
[null,null,null,null,"ы","5","2023-01-01","2023-12-31",{"$f":"I41*1.04","v":890.97597788160022}]
[null,null,null,null,null,null,"Добавить период",null,null,null,null,null,"add_OFFERS_range"]
[null,null,null,"Годовой объем полезного отпуска тепловой энергии (теплоносителя), тыс. Гкал",null,1,"2019-01-01","2019-12-31",0,"Годовой отпуск теплоносителя - 155,13 тыс. куб. м."]
[]
[null,null,null,null,"ы","2","2020-01-01","2020-12-31",0,"Годовой отпуск теплоносителя - 155,13 тыс. куб. м."]
[null,null,null,null,"ы","3","2021-01-01","2021-12-31",0,"Годовой отпуск теплоносителя - 155,13 тыс. куб. м."]
[null,null,null,null,"ы","4","2022-01-01","2022-12-31",0,"Годовой отпуск теплоносителя - 155,13 тыс. куб. м."]
[null,null,null,null,"ы","5","2023-01-01","2023-12-31",0,"Годовой отпуск теплоносителя - 155,13 тыс. куб. м."]
[null,null,null,null,null,null,"Добавить период",null,null,null,null,null,"add_OFFERS_range"]
[null,null,null,"Размер экономически обоснованных расходов, не учтенных при регулировании тарифов в предыдущий период регулирования (при их наличии), определенный в соответствии с законодательством Российской Федерации, тыс.руб.",null,1,"2019-01-01","2023-12-31",0]
[]
[]
[]
[]
[]
[]
[null,null,null,null,null,null,"Добавить период",null,null,null,null,null,"add_OFFERS_range"]
[]
[]
[]
[]
[]
[]
[]
[]
[]
[]
[]
[]
[]
[]
[]
[]
[]
[]
[]
[]
[]
[]
[]
[]
[]
[]
[]
[]
[]
[]
[]
[]
[]
[]
[]
[]
[]
[]
[]
[]
[]
[]
[]
[]
[]
[]
[]
[]
[]
[]
[]
[]
[]
[]
[]
[]
[]
[]
[]
[]
[]
[]
[]
[]
[]
[]
[]
[]
[]
[]
[]
[]
[]
[]
[]
[]
[]
[]
[]
[]
[]
[]
[]
[]
[]
[]
[]
[]
[]
[]
[]
[]
[]
[]
[]
[]
[]
[]
[]
[]
[]
[]
[]
[]
[]
[]
[]
[]
[]
[]
[]
[]
[]
[]
[]
[]
[]
[]
[]
[]
[]
[]
[]
[]
[]
[]
[]
[]
[]
[]
[]
[]
[]
[]
[]
[]
[]
[]
[]
[]
[]
[]
[]
[]
[]
[]
[]
[]
[]
[]
[]
[]
[]
[]
[]
[]
[]
[]
[]
[]
[]
[]
[]
[]
[]
[]
[]
[]
[]
[]
[]
[]
[]
[]
[]
[]
[]
[]
[]
[]
[]
[]
[]
[]
[]
[]
[]
[]
[]
[]
[]
[]
[]
[]
[]
[]
[]
[]
[]
[]
[]
[]
[]
[]
[]
[]
[]
[]
[]
[]
[]
[]
[]
[]
[]
[]
[]
[]
[]
[]
[]
[]
[]
[]
[]
[]
[]
[]
[]
[]
[]
[]
[]
[]
[]
[]
[]
[]
[]
[]
[]
[]
[]
[]
[]
[]
[]
[]
[]
[]
[]
[]
[]
[]
[]
[]
[]
[]
[]
[]
[]
[]
[]
[]
[]
[]
[]
[]
[]
[]
[]
[]
[]
[]
[]
[]
[]
[]
[]
[]
[]
[]
[]
[]
[]
[]
[]
[]
[]
[]
[]
[]
[]
[]
[]
[]
[]
[]
[]
[]
[]
[]
[]
[]
[]
[]
[]
[]
[]
[]
[]
[]
[]
[]
[]
[]
[]
[]
[]
[]
[]
[]
[]
[]
[]
[]
[]
[]
[]
[]
[]
[]
[]
[]
[]
[]
[]
[]
[]
[]
[]
[]
[]
[]
[]
[]
[]
[]
[]
[]
[]
[]
[]
[]
[]
[]
[]
[]
[]
[]
[]
[]
[]
[]
[]
[]
[]
[]
[]
[]
[]
[]
[]
[]
[]
[]
[]
[]
[]
[]
[]
[]
[]
[]
[]
[]
[]
[]
[]
[]
[]
[]
[]
[]
[]
[]
[]
[]
[]
[]
[]
[]
[]
[]
[]
[]
[]
[]
[]
[]
[]
[]
[]
[]
[]
[]
[]
[]
[]
[]
[]
[]
[]
[]
[]
[]
[]
[]
[]
[]
[]
[]
[]
[]
[]
[]
[]
[]
[]
[]
[]
[]
[]
[]
[]
[]
[]
[]
[]
[]
[]
[]
[]
[]
[]
[null,null,"Плата за подключение к системе теплоснабжения","Предлагаемый метод регулирования",null,1]
[null,null,null,null,null,null,"Добавить период",null,null,null,null,null,"add_METHOD_range"]
[null,null,null,"Сведения о необходимой валовой выручка на соответствующий период, в том числе с разбивкой по годам, тыс. руб.",null,1]
[null,null,null,null,null,null,"Добавить период",null,null,null,null,null,"add_OFFERS_range"]
[null,null,null,"Годовой объем полезного отпуска тепловой энергии (теплоносителя)",null,1]
[]
[null,null,null,null,null,null,"Добавить период",null,null,null,null,null,"add_OFFERS_range"]
[null,null,null,"Размер экономически обоснованных расходов, не учтенных при регулировании тарифов в предыдущий период регулирования (при их наличии), определенный в соответствии с законодательством Российской Федерации",null,1]
[]
[]
[]
[]
[]
[]
[]
[]
[]
[]
[]
[]
[null,null,null,null,null,null,"Добавить период",null,null,null,null,null,"add_OFFERS_range"]
[]
[]
[]
[]
[]
[]
[]
[]
[]
[]
[]
[]
[]
[null,null,"Плата за услуги по поддержанию резервной тепловой мощности при отсутствии потребления тепловой энергии для отдельных категорий (групп) социально значимых потребителей","Предлагаемый метод регулирования",null,1]
[null,null,null,null,null,null,"Добавить период",null,null,null,null,null,"add_METHOD_range"]
[null,null,null,"Сведения о необходимой валовой выручка на соответствующий период, в том числе с разбивкой по годам, тыс. руб.",null,1]
[null,null,null,null,null,null,"Добавить период",null,null,null,null,null,"add_OFFERS_range"]
[null,null,null,"Годовой объем полезного отпуска тепловой энергии (теплоносителя)",null,1]
[]
[null,null,null,null,null,null,"Добавить период",null,null,null,null,null,"add_OFFERS_range"]
[null,null,null,"Размер экономически обоснованных расходов, не учтенных при регулировании тарифов в предыдущий период регулирования (при их наличии), определенный в соответствии с законодательством Российской Федерации",null,1]
[]
[]
[]
[]
[]
[]
[]
[]
[]
[]
[]
[]
[null,null,null,null,null,null,"Добавить период",null,null,null,null,null,"add_OFFERS_range"]
[null,null,"Плата за услуги по поддержанию резервной тепловой мощности, оказываемые регулируемой организацией, мощность источников тепловой энергии которой используется для поддержания резервной мощности в соответствии со схемой теплоснабжения","Предлагаемый метод регулирования",null,1]
[null,null,null,null,null,null,"Добавить период",null,null,null,null,null,"add_METHOD_range"]
[null,null,null,"Сведения о необходимой валовой выручка на соответствующий период, в том числе с разбивкой по годам, тыс. руб.",null,1]
[null,null,null,null,null,null,"Добавить период",null,null,null,null,null,"add_OFFERS_range"]
[null,null,null,"Годовой объем полезного отпуска тепловой энергии (теплоносителя)",null,1]
[]
[null,null,null,null,null,null,"Добавить период",null,null,null,null,null,"add_OFFERS_range"]
[null,null,null,"Размер экономически обоснованных расходов, не учтенных при регулировании тарифов в предыдущий период регулирования (при их наличии), определенный в соответствии с законодательством Российской Федерации",null,1]
[]
[]
[]
[]
[]
[]
[]
[]
[]
[]
[]
[]
[null,null,null,null,null,null,"Добавить период",null,null,null,null,null,"add_OFFERS_range"]
[null,null,"Плата за услуги по поддержанию резервной тепловой мощности, оказываемые регулируемой организацией, мощность тепловых сетей которой используется для поддержания резервной мощности в соответствии со схемой теплоснабжения","Предлагаемый метод регулирования",null,1]
[null,null,null,null,null,null,"Добавить период",null,null,null,null,null,"add_METHOD_range"]
[null,null,null,"Сведения о необходимой валовой выручка на соответствующий период, в том числе с разбивкой по годам, тыс. руб.",null,1]
[null,null,null,null,null,null,"Добавить период",null,null,null,null,null,"add_OFFERS_range"]
[null,null,null,"Годовой объем полезного отпуска тепловой энергии (теплоносителя)",null,1]
[]
[null,null,null,null,null,null,"Добавить период",null,null,null,null,null,"add_OFFERS_range"]
[null,null,null,"Размер экономически обоснованных расходов, не учтенных при регулировании тарифов в предыдущий период регулирования (при их наличии), определенный в соответствии с законодательством Российской Федерации",null,1]
[]
[]
[]
[]
[]
[]
[]
[]
[]
[]
[]
[]
[null,null,null,null,null,null,"Добавить период",null,null,null,null,null,"add_OFFERS_range"]
[null,null,"Тарифы на тепловую энергию (мощность), производимую в режиме комбинированной выработки электрической и тепловой энергии источниками тепловой энергии с установленной генерирующей мощностью производства электрической энергии 25 мегаватт и более, в соответствии с установленными федеральным органом исполнительной власти в области государственного регулирования тарифов в сфере теплоснабжения предельными (минимальным и (или) максимальным) уровнями указанных тарифов","Предлагаемый метод регулирования",null,1]
[null,null,null,null,null,null,"Добавить период",null,null,null,null,null,"add_METHOD_range"]
[null,null,null,"Сведения о необходимой валовой выручка на соответствующий период, в том числе с разбивкой по годам, тыс. руб.",null,1]
[null,null,null,null,null,null,"Добавить период",null,null,null,null,null,"add_OFFERS_range"]
[null,null,null,"Годовой объем полезного отпуска тепловой энергии (теплоносителя)",null,1]
[]
[null,null,null,null,null,null,"Добавить период",null,null,null,null,null,"add_OFFERS_range"]
[null,null,null,"Размер экономически обоснованных расходов, не учтенных при регулировании тарифов в предыдущий период регулирования (при их наличии), определенный в соответствии с законодательством Российской Федерации",null,1]
[]
[]
[]
[]
[]
[]
[]
[]
[]
[]
[]
[]
[null,null,null,null,null,null,"Добавить период",null,null,null,null,null,"add_OFFERS_range"]
[null,null,"Тариф на тепловую энергию (мощность), поставляемую другим теплоснабжающим организациям теплоснабжающими организациями","Предлагаемый метод регулирования",null,1]
[null,null,null,null,null,null,"Добавить период",null,null,null,null,null,"add_METHOD_range"]
[null,null,null,"Сведения о необходимой валовой выручка на соответствующий период, в том числе с разбивкой по годам, тыс. руб.",null,1]
[null,null,null,null,null,null,"Добавить период",null,null,null,null,null,"add_OFFERS_range"]
[null,null,null,"Годовой объем полезного отпуска тепловой энергии (теплоносителя)",null,1]
[]
[null,null,null,null,null,null,"Добавить период",null,null,null,null,null,"add_OFFERS_range"]
[null,null,null,"Размер экономически обоснованных расходов, не учтенных при регулировании тарифов в предыдущий период регулирования (при их наличии), определенный в соответствии с законодательством Российской Федерации",null,1]
[]
[]
[]
[]
[]
[]
[]
[]
[]
[]
[]
[]
[null,null,null,null,null,null,"Добавить период",null,null,null,null,null,"add_OFFERS_range"]
[null,null,"На тепловую энергию (мощность), поставляемую потребителям теплоснабжающими организациями в соответствии с установленными предельными (минимальными и (или) максимальными) уровнями указанных тарифов","Предлагаемый метод регулирования",null,1]
[null,null,null,null,null,null,"Добавить период",null,null,null,null,null,"add_METHOD_range"]
[null,null,null,"Сведения о необходимой валовой выручка на соответствующий период, в том числе с разбивкой по годам, тыс. руб.",null,1]
[null,null,null,null,null,null,"Добавить период",null,null,null,null,null,"add_OFFERS_range"]
[null,null,null,"Годовой объем полезного отпуска тепловой энергии (теплоносителя)",null,1]
[]
[null,null,null,null,null,null,"Добавить период",null,null,null,null,null,"add_OFFERS_range"]
[null,null,null,"Размер экономически обоснованных расходов, не учтенных при регулировании тарифов в предыдущий период регулирования (при их наличии), определенный в соответствии с законодательством Российской Федерации",null,1]
[]
[]
[]
[]
[]
[]
[]
[]
[]
[]
[]
[]
[null,null,null,null,null,null,"Добавить период",null,null,null,null,null,"add_OFFERS_range"]
[null,null,"Тарифы на теплоноситель, поставляемый теплоснабжающими организациями потребителям","Предлагаемый метод регулирования",null,1]
[null,null,null,null,null,null,"Добавить период",null,null,null,null,null,"add_METHOD_range"]
[null,null,null,"Сведения о необходимой валовой выручка на соответствующий период, в том числе с разбивкой по годам, тыс. руб.",null,1]
[null,null,null,null,null,null,"Добавить период",null,null,null,null,null,"add_OFFERS_range"]
[null,null,null,"Годовой объем полезного отпуска тепловой энергии (теплоносителя)",null,1]
[]
[null,null,null,null,null,null,"Добавить период",null,null,null,null,null,"add_OFFERS_range"]
[null,null,null,"Размер экономически обоснованных расходов, не учтенных при регулировании тарифов в предыдущий период регулирования (при их наличии), определенный в соответствии с законодательством Российской Федерации",null,1]
[]
[]
[]
[]
[]
[]
[]
[]
[]
[]
[]
[]
[null,null,null,null,null,null,"Добавить период",null,null,null,null,null,"add_OFFERS_range"]
[null,null,"Тариф на теплоноситель, поставляемый теплоснабжающей организацией, владеющей источником (источниками) тепловой энергии, на котором производится теплоноситель","Предлагаемый метод регулирования",null,1]
[null,null,null,null,null,null,"Добавить период",null,null,null,null,null,"add_METHOD_range"]
[null,null,null,"Сведения о необходимой валовой выручка на соответствующий период, в том числе с разбивкой по годам, тыс. руб.",null,1]
[null,null,null,null,null,null,"Добавить период",null,null,null,null,null,"add_OFFERS_range"]
[null,null,null,"Годовой объем полезного отпуска тепловой энергии (теплоносителя)",null,1]
[]
[null,null,null,null,null,null,"Добавить период",null,null,null,null,null,"add_OFFERS_range"]
[null,null,null,"Размер экономически обоснованных расходов, не учтенных при регулировании тарифов в предыдущий период регулирования (при их наличии), определенный в соответствии с законодательством Российской Федерации",null,1]
[]
[]
[]
[]
[]
[]
[]
[]
[]
[]
[]
[]
[null,null,null,null,null,null,"Добавить период",null,null,null,null,null,"add_OFFERS_range"]
[null,null,"Тарифы на горячую воду, поставляемую теплоснабжающими организациями потребителям, другим теплоснабжающим организациям с использованием открытых систем теплоснабжения (горячего водоснабжения)","Предлагаемый метод регулирования",null,1]
[null,null,null,null,null,null,"Добавить период",null,null,null,null,null,"add_METHOD_range"]
[null,null,null,"Сведения о необходимой валовой выручка на соответствующий период, в том числе с разбивкой по годам, тыс. руб.",null,1]
[null,null,null,null,null,null,"Добавить период",null,null,null,null,null,"add_OFFERS_range"]
[null,null,null,"Годовой объем полезного отпуска тепловой энергии (теплоносителя)",null,1]
[]
[null,null,null,null,null,null,"Добавить период",null,null,null,null,null,"add_OFFERS_range"]
[null,null,null,"Размер экономически обоснованных расходов, не учтенных при регулировании тарифов в предыдущий период регулирования (при их наличии), определенный в соответствии с законодательством Российской Федерации",null,1]
[]
[]
[]
[]
[]
[]
[]
[]
[]
[]
[]
[]
[null,null,null,null,null,null,"Добавить период",null,null,null,null,null,"add_OFFERS_range"]
[null,null,"Тариф на услуги по передаче тепловой энергии","Предлагаемый метод регулирования",null,1]
[null,null,null,null,null,null,"Добавить период",null,null,null,null,null,"add_METHOD_range"]
[null,null,null,"Сведения о необходимой валовой выручка на соответствующий период, в том числе с разбивкой по годам, тыс. руб.",null,1]
[null,null,null,null,null,null,"Добавить период",null,null,null,null,null,"add_OFFERS_range"]
[null,null,null,"Годовой объем полезного отпуска тепловой энергии (теплоносителя)",null,1]
[]
[null,null,null,null,null,null,"Добавить период",null,null,null,null,null,"add_OFFERS_range"]
[null,null,null,"Размер экономически обоснованных расходов, не учтенных при регулировании тарифов в предыдущий период регулирования (при их наличии), определенный в соответствии с законодательством Российской Федерации",null,1]
[]
[]
[]
[]
[]
[]
[]
[]
[]
[]
[]
[]
[null,null,null,null,null,null,"Добавить период",null,null,null,null,null,"add_OFFERS_range"]
[null,null,"Тариф на услуги по передаче теплоносителя","Предлагаемый метод регулирования",null,1]
[null,null,null,null,null,null,"Добавить период",null,null,null,null,null,"add_METHOD_range"]
[null,null,null,"Сведения о необходимой валовой выручка на соответствующий период, в том числе с разбивкой по годам, тыс. руб.",null,1]
[null,null,null,null,null,null,"Добавить период",null,null,null,null,null,"add_OFFERS_range"]
[null,null,null,"Годовой объем полезного отпуска тепловой энергии (теплоносителя)",null,1]
[]
[null,null,null,null,null,null,"Добавить период",null,null,null,null,null,"add_OFFERS_range"]
[null,null,null,"Размер экономически обоснованных расходов, не учтенных при регулировании тарифов в предыдущий период регулирования (при их наличии), определенный в соответствии с законодательством Российской Федерации",null,1]
[]
[]
[]
[]
[]
[]
[]
[]
[]
[]
[]
[]
[null,null,null,null,null,null,"Добавить период",null,null,null,null,null,"add_OFFERS_range"]

{"sheet":"Информация о товарах","index":8,"n_rows":14,"n_cols":7,"rows_kept":14,"cut":false,"hidden":false,"merged":[[4,1,5,5],[6,1,6,5]]}
[]
[]
[null,{"$f":"Getcode()","v":"ELPASS.JKH.OPEN.INFO.REQUEST.WARM"},null,null,null,{"$f":"version","v":"Версия 1.0 от 01.10.2017"}]
[]
[null,"Информация о способах приобретения, стоимости и об объемах товаров, необходимых для производства регулируемых товаров и(или) оказания регулируемых услуг регулируемой организацией"]
[]
[null,"Общество с ограниченной ответственностью \"Кумертауские Тепловые сети\""]
[]
[null,"№ п/п","Информация, подлежащая раскрытию","Значение","Ссылка на документ, размещенный в хранилище документов Системы Эльпас","Примечание"]
[null,"1","2","3","4","5"]
[null,1,"Сведения о правовых актах, регламентирующих правила закупки (положение о закупках) в регулируемой организации","положение о закупках","http://eias-elpas.bashkortostan.ru/UserFile/Download?guid=c8429585-87b2-4aca-a9ae-9a95706cf3ed","Размещено на официальном сайте ООО \"Кумертауские Тепловые сети\" http://kumts.ru/raskrytie-informatsii/"]
[null,2,"Сведения о месте размещения положения о закупках регулируемой организации","http://kumts.ru/raskrytie-informatsii/","http://eias-elpas.bashkortostan.ru/UserFile/Download?guid=c8429585-87b2-4aca-a9ae-9a95706cf3ed","Размещено на официальном сайте Российской Федерации для размещения информации о закупках отдельных юридических лиц"]
[null,3,"Сведения о планировании закупочных процедур и результатах их проведения","http://www.zakupki.gov.ru/epz/order/quicksearch/search_eis.html?searchString=0262018654&morphology=on",null,"Размещено на официальном сайте Российской Федерации для размещения информации о закупках отдельных юридических лиц"]
[null,null,"Добавить опубликованную информацию",null,null,null,"add_GOODS_range"]

{"sheet":"Сведения об изменениях","index":9,"n_rows":9,"n_cols":4,"rows_kept":9,"cut":false,"hidden":true,"merged":[[0,1,0,2],[2,1,2,2],[3,1,3,2]]}
[null,{"$f":"Getcode()&\"                                                          \"&version","v":"ELPASS.JKH.OPEN.INFO.REQUEST.WARM                                                          Версия 1.0 от 01.10.2017"}]
[]
[null,"Сведения об изменениях в первоначально опубликованной информации"]
[null,"Общество с ограниченной ответственностью \"Кумертауские Тепловые сети\""]
[]
[null,"№ п/п","Сведения"]
[null,"1","2"]
[null,1]
[null,null,"Добавить строку","add_CHANGES_range"]

{"sheet":"Публикация информации","index":10,"n_rows":12,"n_cols":6,"rows_kept":12,"cut":false,"hidden":false,"merged":[[5,1,5,4],[4,1,4,4]]}
[]
[]
[null,{"$f":"Getcode()","v":"ELPASS.JKH.OPEN.INFO.REQUEST.WARM"},null,null,{"$f":"version","v":"Версия 1.0 от 01.10.2017"}]
[]
[null,"Публикация информации по решению организации на ее официальном сайте"]
[null,"Общество с ограниченной ответственностью \"Кумертауские Тепловые сети\""]
[]
[null,"№ п/п","Описание опубликованной информации","Дата\nразмещения информации","Адрес страницы сайта, на которой размещена информация"]
[null,"1","2","3","4"]
[null,1,"Информация о способах приобретения, стоимости и объемах товаров, необходимых для производства регулируемых товаров и (или) оказания регулируемых услуг регулируемой организаций","2018-04-27","http://kumts.ru/raskrytie-informatsii/"]
[null,2,"Информация о предложении регулируемой организации об установлении цен (тарифов) в сфере теплоснабжения на очередной расчетный период регулирования","2018-04-27","http://kumts.ru/raskrytie-informatsii/"]
[null,null,"Добавить опубликованную информацию",null,null,"add_INFO_range"]

{"sheet":"Комментарий","index":11,"n_rows":9,"n_cols":4,"rows_kept":9,"cut":false,"hidden":false,"merged":[[3,1,3,2],[5,1,5,2],[2,1,2,2]]}
[]
[]
[null,{"$f":"Getcode()&\"                                                                            \"&version","v":"ELPASS.JKH.OPEN.INFO.REQUEST.WARM                                                                            Версия 1.0 от 01.10.2017"}]
[null,{"$f":"GetTemplateName()","v":"Предложение об установлении тарифов в сфере теплоснабжения и информация о способах приобретения, стоимости и объемах товаров, необходимых для производства регулируемых товаров и (или) оказания регулируемых услуг"}]
[]
[null,"Комментарии регулируемой организации"]
[null,"№","Комментарий"]
[null,1]
[null,null,"Добавить комментарий","add_COMMENTS_range"]

{"sheet":"Columns","index":12,"n_rows":0,"n_cols":0,"rows_kept":0,"cut":false,"hidden":true,"merged":[]}

{"sheet":"Reference","index":13,"n_rows":13,"n_cols":14,"rows_kept":13,"cut":false,"hidden":true,"merged":[]}
["http://eias-elpas.bashkortostan.ru/UserFile/Download?guid=","Месяц\n(MONTH)","Да/нет\n(BOOL)","Единица измерения\n(UNIT)","Тип отчета\n(STRING)","Диаметры водопроводной сети","Территории","Метод регулирования","Схема подключения","Вид теплоносителя","Тепловая нагрузка","Тип прокладки тепловых сетей","Диаметр тепловых сетей","Виды деятельности \nActivity"]
[null,"январь","да","тыс.куб.м/сутки","Первичное раскрытие информации","40 мм и менее","Город Кумертау (80723000)","метод экономически обоснованных расходов (затрат)","без дифференциации","горячая вода","не превышает 0,1 Гкал/ч","надземная (наземная)","50 - 250 мм","Производство тепловой энергии (мощности) в режиме комбинированной выработки электрической и тепловой энергии источниками тепловой энергии с установленной генерирующей мощностью производства электрической энергии 25 МВт и более"]
[null,"февраль","нет","Гкал/час","Корректировка ранее раскрытой информации","от 40 мм до 70 мм (включительно)",null,"метод индексации установленных тарифов","к коллектору источника тепловой энергии","пар","более 0,1 Гкал/ч и не превышает 1,5 Гкал/ч","подземная (канальная)","251 - 400 мм","Производство тепловой энергии (мощности) в режиме комбинированной выработки электрической и тепловой энергии источниками тепловой энергии с установленной генерирующей мощностью производства электрической энергии менее 25 МВт"]
[null,"март",null,"куб.м/час","Изменения в раскрытой ранее информации","от 70 мм до 100 мм (включительно)",null,"метод обеспечения доходности инвестирования капитала","к тепловой сети без доплнительного преобразования на тепловых пунктах, эксплуатируемых теплоснабжающей организацией","отборный пар, 1,2-2,5 кг/см2","превышает 1,5 Гкал/ч при наличии технической возможности подключения","подземная (бесканальная)","401 - 550 мм","Производство тепловой энергии (мощности) не в режиме комбинированной выработки электрической и тепловой энергии источниками тепловой энергии"]
[null,"апрель",null,null,null,"от 100 мм до 150 мм (включительно)",null,"метод сравнения аналогов","к тепловой сети после тепловых пунктов ( на тепловых пунктах), эксплуатируемых теплоснабжающей организацией","отборный пар, 2,5-7 кг/см2","превышает 1,5 Гкал/ч при отсутствии технической возможности подключения",null,"551 - 700 мм","Производство теплоносителя"]
[null,"май",null,null,null,"от 150 мм до 200 мм (включительно)",null,null,null,"отборный пар, 7-13 кг/см2",null,null,"701 мм и выше","Передача тепловой энергии и теплоносителя"]
[null,"июнь",null,null,null,"от 200 мм до 250 мм (включительно)",null,null,null,"отборный пар, >13 кг/см2",null,null,null,"Сбыт тепловой энергии и теплоносителя"]
[null,"июль",null,null,null,"от 250 мм и более",null,null,null,"острый и редуцированный пар",null,null,null,"Подключение к системе теплоснабжения"]
[null,"август",null,null,null,null,null,null,null,null,null,null,null,"Поддержание резервной тепловой мощности при отсутствии потребления тепловой энергии"]
[null,"сентябрь"]
[null,"октябрь"]
[null,"ноябрь"]
[null,"декабрь"]

{"sheet":"Rows","index":14,"n_rows":615,"n_cols":43,"rows_kept":615,"cut":false,"hidden":true,"merged":[[9,15,19,15],[9,16,19,16],[145,12,155,12],[212,14,213,14],[212,15,213,15],[259,6,279,6],[259,7,279,7],[259,8,279,8],[259,9,279,9],[259,10,279,10],[28,10,29,10],[35,15,36,15],[43,14,44,14],[43,15,44,15],[254,15,255,15],[267,14,268,14],[267,15,268,15],[275,14,276,14],[275,15,276,15],[90,14,91,14],[90,15,91,15],[121,14,122,14],[121,15,122,15],[125,14,126,14],[9,17,19,17],[9,18,19,18],[9,19,19,19],[259,12,279,13],[259,14,260,14],[259,15,260,15],[145,18,155,18],[81,11,81,13],[174,16,184,16],[174,17,184,17],[174,18,184,18],[174,19,184,19],[107,12,127,13],[107,14,108,14],[84,12,104,13],[105,11,105,13],[9,12,19,12],[9,13,19,13],[9,14,19,14],[60,11,80,11],[107,15,108,15],[35,12,55,13],[160,16,170,16],[160,17,170,17],[281,14,282,14],[281,15,282,15],[257,8,257,11],[236,12,256,13],[236,14,237,14],[236,15,237,15],[210,9,210,11],[138,9,138,11],[208,9,208,11],[145,14,155,14],[145,15,155,15],[156,14,156,15],[174,14,184,14],[160,8,172,8],[259,11,279,11],[174,12,184,12],[174,13,184,13],[158,8,158,10],[172,11,172,12],[145,11,156,11],[238,15,239,15],[246,14,247,14],[246,15,247,15],[254,14,255,14],[187,2,201,2],[187,3,188,3],[187,9,187,11],[189,3,190,3],[236,3,257,3],[236,4,257,4],[236,5,257,5],[236,6,256,6],[236,7,256,7],[236,8,256,8],[236,9,256,9],[236,10,256,10],[236,11,256,11],[234,5,234,6],[212,11,232,11],[194,4,200,4],[194,5,200,5],[201,6,201,7],[194,6,200,6],[194,7,200,7],[194,8,200,8],[191,8,192,8],[35,3,57,3],[35,4,57,4],[193,6,193,7],[190,6,190,7],[160,6,172,6],[160,7,172,7],[188,6,188,7],[194,3,201,3],[191,4,192,4],[191,5,192,5],[191,6,192,6],[191,7,192,7],[35,6,56,6],[35,7,56,7],[191,3,193,3],[145,6,157,6],[145,7,157,7],[145,5,158,5],[145,3,158,3],[145,4,158,4],[35,2,58,2],[60,12,80,13],[84,6,105,6],[84,7,105,7],[58,5,58,6],[60,3,82,3],[60,4,82,4],[60,5,82,5],[60,6,81,6],[60,7,81,7],[60,9,80,9],[60,8,81,8],[60,10,80,10],[35,5,57,5],[84,11,104,11],[84,9,104,9],[35,8,56,8],[35,9,55,9],[35,10,55,10],[84,8,105,8],[35,11,55,11],[56,11,56,13],[57,8,57,9],[82,8,82,9],[160,19,170,19],[160,14,170,14],[160,15,170,15],[191,9,192,11],[129,15,130,15],[107,10,127,10],[60,15,61,15],[28,11,29,12],[28,13,29,14],[60,14,61,14],[129,14,130,14],[84,14,85,14],[35,14,36,14],[107,11,127,11],[84,10,104,10],[28,9,29,9],[68,14,69,14],[72,14,73,14],[185,14,185,15],[145,13,155,13],[36,18,36,19],[61,18,61,19],[85,18,85,19],[189,9,189,11],[282,18,282,19],[157,11,157,12],[174,15,184,15],[194,9,200,11],[222,15,223,15],[223,18,223,19],[224,14,225,14],[224,15,225,15],[225,18,225,19],[226,14,227,14],[226,15,227,15],[227,18,227,19],[228,14,229,14],[160,9,171,9],[160,10,171,10],[160,11,171,11],[160,12,170,12],[160,13,170,13],[213,18,213,19],[237,18,237,19],[212,12,232,13],[174,9,185,9],[174,10,185,10],[174,11,185,11],[171,14,171,15],[145,19,155,19],[46,18,46,19],[48,18,48,19],[50,18,50,19],[52,18,52,19],[54,18,54,19],[62,15,63,15],[63,18,63,19],[64,14,65,14],[84,15,85,15],[130,18,130,19],[145,16,155,16],[145,17,155,17],[100,15,101,15],[113,14,114,14],[113,15,114,15],[79,18,79,19],[72,15,73,15],[73,18,73,19],[74,14,75,14],[74,15,75,15],[75,18,75,19],[160,18,170,18],[44,18,44,19],[67,18,67,19],[77,18,77,19],[107,9,127,9],[45,15,46,15],[47,14,48,14],[47,15,48,15],[49,14,50,14],[49,15,50,15],[51,14,52,14],[51,15,52,15],[53,14,54,14],[53,15,54,15],[62,14,63,14],[45,14,46,14],[66,14,67,14],[66,15,67,15],[76,14,77,14],[76,15,77,15],[78,14,79,14],[78,15,79,15],[92,14,93,14],[92,15,93,15],[100,14,101,14],[286,7,306,7],[286,8,306,8],[286,9,306,9],[286,10,306,10],[286,11,306,11],[145,8,157,8],[145,9,156,9],[145,10,156,10],[286,2,308,2],[286,3,307,3],[286,4,307,4],[286,5,307,5],[286,6,306,6],[308,5,308,6],[212,2,234,2],[212,3,233,3],[212,4,233,4],[212,5,233,5],[212,6,232,6],[212,7,232,7],[212,8,232,8],[212,9,232,9],[212,10,232,10],[233,8,233,11],[286,15,287,15],[298,15,299,15],[287,18,287,19],[307,8,307,11],[288,14,289,14],[288,15,289,15],[289,18,289,19],[290,14,291,14],[290,15,291,15],[291,18,291,19],[292,14,293,14],[292,15,293,15],[293,18,293,19],[294,14,295,14],[294,15,295,15],[300,14,301,14],[300,15,301,15],[301,18,301,19],[302,14,303,14],[302,15,303,15],[303,18,303,19],[295,18,295,19],[296,14,297,14],[296,15,297,15],[297,18,297,19],[298,14,299,14],[310,8,330,8],[310,9,330,9],[310,10,330,10],[310,11,330,11],[310,12,330,13],[299,18,299,19],[304,14,305,14],[304,15,305,15],[305,18,305,19],[312,15,313,15],[313,18,313,19],[310,14,311,14],[310,15,311,15],[311,18,311,19],[322,15,323,15],[323,18,323,19],[324,14,325,14],[324,15,325,15],[286,12,306,13],[286,14,287,14],[310,3,331,3],[310,4,331,4],[310,5,331,5],[310,6,330,6],[310,7,330,7],[331,8,331,11],[369,18,369,19],[370,14,371,14],[370,15,371,15],[371,18,371,19],[325,18,325,19],[318,14,319,14],[318,15,319,15],[319,18,319,19],[320,14,321,14],[320,15,321,15],[321,18,321,19],[314,14,315,14],[314,15,315,15],[315,18,315,19],[316,14,317,14],[316,15,317,15],[317,18,317,19],[312,14,313,14],[372,14,373,14],[372,15,373,15],[373,18,373,19],[374,14,375,14],[374,15,375,15],[375,18,375,19],[333,6,353,6],[333,7,353,7],[333,8,353,8],[333,9,353,9],[333,10,353,10],[360,7,380,7],[366,14,367,14],[366,15,367,15],[368,14,369,14],[368,15,369,15],[347,14,348,14],[347,15,348,15],[348,18,348,19],[349,14,350,14],[349,15,350,15],[350,18,350,19],[343,14,344,14],[343,15,344,15],[405,8,405,11],[334,18,334,19],[355,14,356,14],[355,15,356,15],[356,18,356,19],[333,11,353,11],[333,12,353,13],[333,14,334,14],[333,15,334,15],[361,18,361,19],[381,8,381,11],[384,10,404,10],[384,11,404,11],[363,18,363,19],[365,18,365,19],[367,18,367,19],[360,15,361,15],[360,8,380,8],[360,9,380,9],[360,10,380,10],[362,14,363,14],[362,15,363,15],[364,14,365,14],[364,15,365,15],[384,12,404,13],[384,14,385,14],[384,15,385,15],[386,14,387,14],[386,15,387,15],[392,14,393,14],[392,15,393,15],[398,14,399,14],[398,15,399,15],[434,2,456,2],[434,3,455,3],[434,4,455,4],[434,5,455,5],[434,6,454,6],[434,7,454,7],[458,6,478,6],[458,7,478,7],[458,8,478,8],[458,3,479,3],[458,4,479,4],[458,5,479,5],[434,8,454,8],[456,5,456,6],[479,8,479,11],[360,2,382,2],[360,3,381,3],[360,4,381,4],[360,5,381,5],[360,6,380,6],[407,10,427,10],[407,11,427,11],[407,12,427,13],[407,14,408,14],[419,14,420,14],[425,14,426,14],[382,5,382,6],[360,11,380,11],[360,12,380,13],[360,14,361,14],[384,8,404,8],[384,9,404,9],[384,3,405,3],[384,4,405,4],[384,5,405,5],[384,6,404,6],[384,7,404,7],[407,6,427,6],[407,7,427,7],[464,14,465,14],[464,15,465,15],[465,18,465,19],[452,14,453,14],[452,15,453,15],[453,18,453,19],[460,14,461,14],[460,15,461,15],[461,18,461,19],[458,15,459,15],[459,18,459,19],[434,11,454,11],[434,12,454,13],[434,14,435,14],[458,9,478,9],[434,9,454,9],[408,18,408,19],[434,10,454,10],[458,10,478,10],[458,11,478,11],[458,12,478,13],[458,14,459,14],[434,15,435,15],[435,18,435,19],[455,8,455,11],[470,14,471,14],[470,15,471,15],[471,18,471,19],[472,14,473,14],[407,8,427,8],[407,9,427,9],[407,15,408,15],[442,15,443,15],[443,18,443,19],[450,14,451,14],[450,15,451,15],[451,18,451,19],[462,14,463,14],[462,15,463,15],[463,18,463,19],[409,14,410,14],[409,15,410,15],[410,18,410,19],[411,14,412,14],[411,15,412,15],[412,18,412,19],[413,14,414,14],[413,15,414,15],[420,18,420,19],[421,14,422,14],[421,15,422,15],[422,18,422,19],[423,14,424,14],[423,15,424,15],[424,18,424,19],[414,18,414,19],[415,14,416,14],[415,15,416,15],[416,18,416,19],[481,6,501,6],[481,7,501,7],[481,8,501,8],[481,9,501,9],[481,10,501,10],[481,11,501,11],[481,12,501,13],[481,14,482,14],[503,14,504,14],[483,14,484,14],[499,14,500,14],[503,15,504,15],[504,18,504,19],[508,2,531,2],[508,3,530,3],[508,4,530,4],[508,5,530,5],[508,6,529,6],[508,7,529,7],[508,8,529,8],[508,9,528,9],[508,10,528,10],[508,11,528,11],[508,12,528,13],[508,14,509,14],[518,14,519,14],[518,15,519,15],[519,18,519,19],[520,14,521,14],[520,15,521,15],[521,18,521,19],[526,14,527,14],[526,15,527,15],[527,18,527,19],[533,11,553,11],[533,12,553,13],[533,3,555,3],[533,4,555,4],[533,5,555,5],[533,6,554,6],[533,7,554,7],[508,15,509,15],[509,18,509,19],[529,11,529,13],[530,8,530,9],[531,5,531,6],[510,14,511,14],[510,15,511,15],[511,18,511,19],[512,14,513,14],[512,15,513,15],[513,18,513,19],[514,14,515,14],[514,15,515,15],[515,18,515,19],[516,14,517,14],[516,15,517,15],[517,18,517,19],[557,6,578,6],[557,7,578,7],[557,8,578,8],[557,9,577,9],[557,10,577,10],[533,14,534,14],[533,15,534,15],[534,18,534,19],[554,11,554,13],[555,8,555,9],[537,14,538,14],[537,15,538,15],[538,18,538,19],[539,14,540,14],[539,15,540,15],[540,18,540,19],[541,14,542,14],[541,15,542,15],[542,18,542,19],[543,14,544,14],[543,15,544,15],[533,8,554,8],[533,9,553,9],[533,10,553,10],[558,18,558,19],[559,14,560,14],[559,15,560,15],[560,18,560,19],[561,14,562,14],[561,15,562,15],[562,18,562,19],[563,14,564,14],[563,15,564,15],[564,18,564,19],[578,11,578,13],[580,9,600,9],[580,10,600,10],[580,11,600,11],[580,12,600,13],[557,11,577,11],[557,12,577,13],[557,14,558,14],[557,15,558,15],[565,14,566,14],[565,15,566,15],[571,14,572,14],[571,15,572,15],[575,14,576,14],[575,15,576,15],[602,14,603,14],[602,15,603,15],[603,18,603,19],[584,14,585,14],[584,15,585,15],[585,18,585,19],[586,14,587,14],[586,15,587,15],[587,18,587,19],[588,14,589,14],[588,15,589,15],[589,18,589,19],[590,14,591,14],[590,15,591,15],[591,18,591,19],[592,14,593,14],[592,15,593,15],[593,18,593,19],[610,11,610,12],[612,1,614,1],[612,2,614,2],[612,3,614,3],[612,4,613,4],[612,5,613,5],[612,6,613,6],[612,7,613,7],[613,8,613,9],[613,11,613,12],[609,4,610,4],[609,5,610,5],[609,6,610,6],[609,7,610,7],[610,8,610,9],[387,18,387,19],[388,14,389,14],[388,15,389,15],[389,18,389,19],[390,14,391,14],[390,15,391,15],[391,18,391,19],[376,14,377,14],[376,15,377,15],[377,18,377,19],[378,14,379,14],[378,15,379,15],[379,18,379,19],[385,18,385,19],[399,18,399,19],[400,14,401,14],[400,15,401,15],[401,18,401,19],[402,14,403,14],[402,15,403,15],[403,18,403,19],[393,18,393,19],[394,14,395,14],[394,15,395,15],[395,18,395,19],[396,14,397,14],[396,15,397,15],[397,18,397,19],[447,18,447,19],[417,14,418,14],[417,15,418,15],[418,18,418,19],[419,15,420,15],[426,18,426,19],[436,14,437,14],[436,15,437,15],[437,18,437,19],[438,14,439,14],[438,15,439,15],[439,18,439,19],[425,15,426,15],[429,14,430,14],[429,15,430,15],[430,18,430,19],[476,15,477,15],[477,18,477,19],[481,15,482,15],[482,18,482,19],[440,14,441,14],[440,15,441,15],[441,18,441,19],[442,14,443,14],[472,15,473,15],[473,18,473,19],[466,14,467,14],[466,15,467,15],[467,18,467,19],[468,14,469,14],[468,15,469,15],[469,18,469,19],[448,14,449,14],[448,15,449,15],[449,18,449,19],[444,14,445,14],[444,15,445,15],[445,18,445,19],[446,14,447,14],[446,15,447,15],[497,15,498,15],[498,18,498,19],[491,14,492,14],[491,15,492,15],[238,14,239,14],[492,18,492,19],[493,14,494,14],[493,15,494,15],[494,18,494,19],[487,14,488,14],[487,15,488,15],[488,18,488,19],[489,14,490,14],[489,15,490,15],[490,18,490,19],[483,15,484,15],[484,18,484,19],[485,14,486,14],[485,15,486,15],[486,18,486,19],[474,14,475,14],[474,15,475,15],[475,18,475,19],[476,14,477,14],[228,15,229,15],[229,18,229,19],[230,14,231,14],[230,15,231,15],[231,18,231,19],[499,15,500,15],[500,18,500,19],[214,14,215,14],[214,15,215,15],[215,18,215,19],[216,14,217,14],[216,15,217,15],[217,18,217,19],[218,14,219,14],[218,15,219,15],[219,18,219,19],[220,14,221,14],[220,15,221,15],[221,18,221,19],[222,14,223,14],[495,14,496,14],[495,15,496,15],[496,18,496,19],[497,14,498,14],[242,14,243,14],[242,15,243,15],[243,18,243,19],[244,14,245,14],[244,15,245,15],[245,18,245,19],[239,18,239,19],[240,14,241,14],[240,15,241,15],[241,18,241,19],[250,14,251,14],[250,15,251,15],[251,18,251,19],[252,14,253,14],[252,15,253,15],[253,18,253,19],[260,18,260,19],[247,18,247,19],[248,14,249,14],[248,15,249,15],[249,18,249,19],[263,14,264,14],[263,15,264,15],[264,18,264,19],[265,14,266,14],[265,15,266,15],[266,18,266,19],[255,18,255,19],[261,14,262,14],[261,15,262,15],[262,18,262,19],[271,14,272,14],[271,15,272,15],[272,18,272,19],[273,14,274,14],[273,15,274,15],[274,18,274,19],[268,18,268,19],[269,14,270,14],[269,15,270,15],[270,18,270,19],[335,15,336,15],[37,14,38,14],[37,15,38,15],[38,18,38,19],[39,14,40,14],[39,15,40,15],[40,18,40,19],[41,14,42,14],[41,15,42,15],[42,18,42,19],[68,15,69,15],[69,18,69,19],[70,14,71,14],[70,15,71,15],[71,18,71,19],[64,15,65,15],[65,18,65,19],[328,15,329,15],[329,18,329,19],[322,14,323,14],[276,18,276,19],[277,14,278,14],[277,15,278,15],[278,18,278,19],[91,18,91,19],[93,18,93,19],[86,14,87,14],[86,15,87,15],[87,18,87,19],[88,14,89,14],[88,15,89,15],[89,18,89,19],[98,14,99,14],[98,15,99,15],[99,18,99,19],[101,18,101,19],[94,14,95,14],[94,15,95,15],[95,18,95,19],[96,14,97,14],[96,15,97,15],[97,18,97,19],[111,14,112,14],[111,15,112,15],[112,18,112,19],[108,18,108,19],[114,18,114,19],[102,14,103,14],[102,15,103,15],[103,18,103,19],[109,14,110,14],[109,15,110,15],[110,18,110,19],[119,14,120,14],[119,15,120,15],[120,18,120,19],[122,18,122,19],[115,14,116,14],[115,15,116,15],[116,18,116,19],[117,14,118,14],[117,15,118,15],[118,18,118,19],[123,14,124,14],[123,15,124,15],[124,18,124,19],[125,15,126,15],[126,18,126,19],[351,14,352,14],[351,15,352,15],[352,18,352,19],[336,18,336,19],[337,14,338,14],[337,15,338,15],[338,18,338,19],[326,14,327,14],[326,15,327,15],[327,18,327,19],[328,14,329,14],[339,14,340,14],[339,15,340,15],[340,18,340,19],[341,14,342,14],[341,15,342,15],[342,18,342,19],[335,14,336,14],[344,18,344,19],[345,14,346,14],[345,15,346,15],[346,18,346,19],[535,14,536,14],[535,15,536,15],[536,18,536,19],[522,14,523,14],[522,15,523,15],[523,18,523,19],[524,14,525,14],[524,15,525,15],[525,18,525,19],[549,14,550,14],[549,15,550,15],[550,18,550,19],[551,14,552,14],[551,15,552,15],[552,18,552,19],[544,18,544,19],[545,14,546,14],[545,15,546,15],[546,18,546,19],[547,14,548,14],[547,15,548,15],[548,18,548,19],[572,18,572,19],[573,14,574,14],[573,15,574,15],[574,18,574,19],[566,18,566,19],[567,14,568,14],[567,15,568,15],[568,18,568,19],[569,14,570,14],[569,15,570,15],[570,18,570,19],[576,18,576,19],[582,14,583,14],[582,15,583,15],[583,18,583,19],[580,14,581,14],[580,15,581,15],[581,18,581,19],[598,14,599,14],[598,15,599,15],[599,18,599,19],[594,14,595,14],[594,15,595,15],[595,18,595,19],[596,14,597,14],[596,15,597,15],[597,18,597,19]]}
["add_COMMENTS_range"]
[]
[]
[]
[]
["add_PERIOD_range","лист Плата за подключение"]
[null,null,null,null,null,null,null,null,null,null,null,null,null,null,null,null,null,null,null,null,null,null,{"$f":"List02_StartDate","v":"2019-01-01"},{"$f":"IF(MONTH(W7)<7,\"30.06.\",\"31.12.\")&YEAR(W7)","v":"30.06.2019"}]
[]
["add_CONNECT_range","лист Плата за подключение"]
[null,null,null,null,null,null,null,null,null,null,null,null,null,"1","нет",null,"нет",null,"нет",null,null,null,{"$f":"List02_StartDate","v":"2019-01-01"},{"$f":"IF(MONTH(W10)<7,\"30.06.\",\"31.12.\")&YEAR(W10)","v":"30.06.2019"}]
[null,null,null,null,null,null,null,null,null,null,null,null,null,null,null,null,null,null,null,null,null,null,"2019-07-01","31.12.2019"]
[null,null,null,null,null,null,null,null,null,null,null,null,null,null,null,null,null,null,null,null,null,null,"2020-01-01","30.06.2020"]
[null,null,null,null,null,null,null,null,null,null,null,null,null,null,null,null,null,null,null,null,null,null,"2020-07-01","31.12.2020"]
[null,null,null,null,null,null,null,null,null,null,null,null,null,null,null,null,null,null,null,null,null,null,"2021-01-01","30.06.2021"]
[null,null,null,null,null,null,null,null,null,null,null,null,null,null,null,null,null,null,null,null,null,null,"2021-07-01","31.12.2021"]
[null,null,null,null,null,null,null,null,null,null,null,null,null,null,null,null,null,null,null,null,null,null,"2022-01-01","30.06.2022"]
[null,null,null,null,null,null,null,null,null,null,null,null,null,null,null,null,null,null,null,null,null,null,"2022-07-01","31.12.2022"]
[null,null,null,null,null,null,null,null,null,null,null,null,null,null,null,null,null,null,null,null,null,null,"2023-01-01","30.06.2023"]
[null,null,null,null,null,null,null,null,null,null,null,null,null,null,null,null,null,null,null,null,null,null,"2023-07-01","31.12.2023"]
[null,null,null,null,null,null,null,null,null,null,null,null,null,null,null,null,null,null,null,null,null,null,null,null,null,null,null,null,null,null,null,null,null,null,null,null,null,null,null,null,null,null,"add_PERIOD_range"]
["add_INFO_range"]
[]
[]
[]
[]
["add_CHANGES_range"]
[]
["add_TARIF_range"]
[null,null,null,null,null,null,null,null,null,null,"1",null,null,null,null,null,1]
[null,null,null,null,null,null,null,null,null,null,null,null,null,null,null,null,null,"Добавить период",null,null,null,null,null,null,null,null,null,null,null,null,null,null,null,null,null,"add_TPERIOD_range"]
[]
[]
["add_DRINKING_WATER_range"]
[null,null,null,null,"да","Тариф на питьевую воду (питьевое водоснабжение). \nПрочее"]
["add_NameOneRateWithSheme_range"]
[null,null,null,null,"1",null,"да","1",null,null,"1",null,null,null,{"$f":"List02_StartDate","v":"2019-01-01"},{"$f":"IF(MONTH(O36)<7,\"30.06.\",\"31.12.\")&YEAR(O36)","v":"30.06.2019"},null,1]
[null,null,null,null,null,null,null,null,null,null,null,null,null,null,null,null,null,null,"Добавить вид теплоносителя",null,null,null,null,null,null,null,null,null,null,null,null,null,null,null,null,null,"add_TYPE_OneRateWithSheme_range"]
[null,null,null,null,null,null,null,null,null,null,null,null,null,null,"2019-07-01",{"$f":"IF(MONTH(O38)<7,\"30.06.\",\"31.12.\")&YEAR(O38)","v":"31.12.2019"},null,1]
[null,null,null,null,null,null,null,null,null,null,null,null,null,null,null,null,null,null,"Добавить вид теплоносителя",null,null,null,null,null,null,null,null,null,null,null,null,null,null,null,null,null,"add_TYPE_OneRateWithSheme_range"]
[null,null,null,null,null,null,null,null,null,null,null,null,null,null,"2020-01-01",{"$f":"IF(MONTH(O40)<7,\"30.06.\",\"31.12.\")&YEAR(O40)","v":"30.06.2020"},null,1]
[null,null,null,null,null,null,null,null,null,null,null,null,null,null,null,null,null,null,"Добавить вид теплоносителя",null,null,null,null,null,null,null,null,null,null,null,null,null,null,null,null,null,"add_TYPE_OneRateWithSheme_range"]
[null,null,null,null,null,null,null,null,null,null,null,null,null,null,"2020-07-01",{"$f":"IF(MONTH(O42)<7,\"30.06.\",\"31.12.\")&YEAR(O42)","v":"31.12.2020"},null,1]
[null,null,null,null,null,null,null,null,null,null,null,null,null,null,null,null,null,null,"Добавить вид теплоносителя",null,null,null,null,null,null,null,null,null,null,null,null,null,null,null,null,null,"add_TYPE_OneRateWithSheme_range"]
[null,null,null,null,null,null,null,null,null,null,null,null,null,null,"2021-01-01",{"$f":"IF(MONTH(O44)<7,\"30.06.\",\"31.12.\")&YEAR(O44)","v":"30.06.2021"},null,1]
[null,null,null,null,null,null,null,null,null,null,null,null,null,null,null,null,null,null,"Добавить вид теплоносителя",null,null,null,null,null,null,null,null,null,null,null,null,null,null,null,null,null,"add_TYPE_OneRateWithSheme_range"]
[null,null,null,null,null,null,null,null,null,null,null,null,null,null,"2021-07-01",{"$f":"IF(MONTH(O46)<7,\"30.06.\",\"31.12.\")&YEAR(O46)","v":"31.12.2021"},null,1]
[null,null,null,null,null,null,null,null,null,null,null,null,null,null,null,null,null,null,"Добавить вид теплоносителя",null,null,null,null,null,null,null,null,null,null,null,null,null,null,null,null,null,"add_TYPE_OneRateWithSheme_range"]
[null,null,null,null,null,null,null,null,null,null,null,null,null,null,"2022-01-01",{"$f":"IF(MONTH(O48)<7,\"30.06.\",\"31.12.\")&YEAR(O48)","v":"30.06.2022"},null,1]
[null,null,null,null,null,null,null,null,null,null,null,null,null,null,null,null,null,null,"Добавить вид теплоносителя",null,null,null,null,null,null,null,null,null,null,null,null,null,null,null,null,null,"add_TYPE_OneRateWithSheme_range"]
[null,null,null,null,null,null,null,null,null,null,null,null,null,null,"2022-07-01",{"$f":"IF(MONTH(O50)<7,\"30.06.\",\"31.12.\")&YEAR(O50)","v":"31.12.2022"},null,1]
[null,null,null,null,null,null,null,null,null,null,null,null,null,null,null,null,null,null,"Добавить вид теплоносителя",null,null,null,null,null,null,null,null,null,null,null,null,null,null,null,null,null,"add_TYPE_OneRateWithSheme_range"]
[null,null,null,null,null,null,null,null,null,null,null,null,null,null,"2023-01-01",{"$f":"IF(MONTH(O52)<7,\"30.06.\",\"31.12.\")&YEAR(O52)","v":"30.06.2023"},null,1]
[null,null,null,null,null,null,null,null,null,null,null,null,null,null,null,null,null,null,"Добавить вид теплоносителя",null,null,null,null,null,null,null,null,null,null,null,null,null,null,null,null,null,"add_TYPE_OneRateWithSheme_range"]
[null,null,null,null,null,null,null,null,null,null,null,null,null,null,"2023-07-01",{"$f":"IF(MONTH(O54)<7,\"30.06.\",\"31.12.\")&YEAR(O54)","v":"31.12.2023"},null,1]
[null,null,null,null,null,null,null,null,null,null,null,null,null,null,null,null,null,null,"Добавить вид теплоносителя",null,null,null,null,null,null,null,null,null,null,null,null,null,null,null,null,null,"add_TYPE_OneRateWithSheme_range"]
[null,null,null,null,null,null,null,null,null,null,null,null,null,null,null,null,null,null,null,null,null,null,null,null,null,null,null,null,null,null,null,null,null,null,"add_PERIOD_OneRateWithSheme_range"]
[null,null,null,null,null,null,null,null,null,null,null,"Добавить схему подключения",null,null,null,null,null,null,null,null,null,null,null,null,null,null,null,null,null,"add_SHEME_OneRateWithSheme_range"]
[null,null,null,null,null,null,null,null,"Добавить систему",null,null,null,null,null,null,null,null,null,null,null,null,null,null,null,null,null,"add_SYSTEM_OneRateWithSheme_range"]
[null,null,null,null,null,"Добавить территорию",null,null,null,null,null,null,null,null,null,null,null,null,null,null,null,null,null,"add_TERRITORY_OneRateWithSheme_range"]
["add_TERRITORY_OneRateWithSheme_range"]
[null,null,null,null,"1",null,"да","1",null,null,"1",null,null,null,{"$f":"List02_StartDate","v":"2019-01-01"},{"$f":"IF(MONTH(O61)<7,\"30.06.\",\"31.12.\")&YEAR(O61)","v":"30.06.2019"},null,1]
[null,null,null,null,null,null,null,null,null,null,null,null,null,null,null,null,null,null,"Добавить вид теплоносителя",null,null,null,null,null,null,null,null,null,null,null,null,null,null,null,null,null,"add_TYPE_OneRateWithSheme_range"]
[null,null,null,null,null,null,null,null,null,null,null,null,null,null,"2019-07-01",{"$f":"IF(MONTH(O63)<7,\"30.06.\",\"31.12.\")&YEAR(O63)","v":"31.12.2019"},null,1]
[null,null,null,null,null,null,null,null,null,null,null,null,null,null,null,null,null,null,"Добавить вид теплоносителя",null,null,null,null,null,null,null,null,null,null,null,null,null,null,null,null,null,"add_TYPE_OneRateWithSheme_range"]
[null,null,null,null,null,null,null,null,null,null,null,null,null,null,"2020-01-01",{"$f":"IF(MONTH(O65)<7,\"30.06.\",\"31.12.\")&YEAR(O65)","v":"30.06.2020"},null,1]
[null,null,null,null,null,null,null,null,null,null,null,null,null,null,null,null,null,null,"Добавить вид теплоносителя",null,null,null,null,null,null,null,null,null,null,null,null,null,null,null,null,null,"add_TYPE_OneRateWithSheme_range"]
[null,null,null,null,null,null,null,null,null,null,null,null,null,null,"2020-07-01",{"$f":"IF(MONTH(O67)<7,\"30.06.\",\"31.12.\")&YEAR(O67)","v":"31.12.2020"},null,1]
[null,null,null,null,null,null,null,null,null,null,null,null,null,null,null,null,null,null,"Добавить вид теплоносителя",null,null,null,null,null,null,null,null,null,null,null,null,null,null,null,null,null,"add_TYPE_OneRateWithSheme_range"]
[null,null,null,null,null,null,null,null,null,null,null,null,null,null,"2021-01-01",{"$f":"IF(MONTH(O69)<7,\"30.06.\",\"31.12.\")&YEAR(O69)","v":"30.06.2021"},null,1]
[null,null,null,null,null,null,null,null,null,null,null,null,null,null,null,null,null,null,"Добавить вид теплоносителя",null,null,null,null,null,null,null,null,null,null,null,null,null,null,null,null,null,"add_TYPE_OneRateWithSheme_range"]
[null,null,null,null,null,null,null,null,null,null,null,null,null,null,"2021-07-01",{"$f":"IF(MONTH(O71)<7,\"30.06.\",\"31.12.\")&YEAR(O71)","v":"31.12.2021"},null,1]
[null,null,null,null,null,null,null,null,null,null,null,null,null,null,null,null,null,null,"Добавить вид теплоносителя",null,null,null,null,null,null,null,null,null,null,null,null,null,null,null,null,null,"add_TYPE_OneRateWithSheme_range"]
[null,null,null,null,null,null,null,null,null,null,null,null,null,null,"2022-01-01",{"$f":"IF(MONTH(O73)<7,\"30.06.\",\"31.12.\")&YEAR(O73)","v":"30.06.2022"},null,1]
[null,null,null,null,null,null,null,null,null,null,null,null,null,null,null,null,null,null,"Добавить вид теплоносителя",null,null,null,null,null,null,null,null,null,null,null,null,null,null,null,null,null,"add_TYPE_OneRateWithSheme_range"]
[null,null,null,null,null,null,null,null,null,null,null,null,null,null,"2022-07-01",{"$f":"IF(MONTH(O75)<7,\"30.06.\",\"31.12.\")&YEAR(O75)","v":"31.12.2022"},null,1]
[null,null,null,null,null,null,null,null,null,null,null,null,null,null,null,null,null,null,"Добавить вид теплоносителя",null,null,null,null,null,null,null,null,null,null,null,null,null,null,null,null,null,"add_TYPE_OneRateWithSheme_range"]
[null,null,null,null,null,null,null,null,null,null,null,null,null,null,"2023-01-01",{"$f":"IF(MONTH(O77)<7,\"30.06.\",\"31.12.\")&YEAR(O77)","v":"30.06.2023"},null,1]
[null,null,null,null,null,null,null,null,null,null,null,null,null,null,null,null,null,null,"Добавить вид теплоносителя",null,null,null,null,null,null,null,null,null,null,null,null,null,null,null,null,null,"add_TYPE_OneRateWithSheme_range"]
[null,null,null,null,null,null,null,null,null,null,null,null,null,null,"2023-07-01",{"$f":"IF(MONTH(O79)<7,\"30.06.\",\"31.12.\")&YEAR(O79)","v":"31.12.2023"},null,1]
[null,null,null,null,null,null,null,null,null,null,null,null,null,null,null,null,null,null,"Добавить вид теплоносителя",null,null,null,null,null,null,null,null,null,null,null,null,null,null,null,null,null,"add_TYPE_OneRateWithSheme_range"]
[null,null,null,null,null,null,null,null,null,null,null,null,null,null,null,null,null,null,null,null,null,null,null,null,null,null,null,null,null,null,null,null,null,null,"add_PERIOD_OneRateWithSheme_range"]
[null,null,null,null,null,null,null,null,null,null,null,"Добавить схему подключения",null,null,null,null,null,null,null,null,null,null,null,null,null,null,null,null,null,"add_SHEME_OneRateWithSheme_range"]
[null,null,null,null,null,null,null,null,"Добавить систему",null,null,null,null,null,null,null,null,null,null,null,null,null,null,null,null,null,"add_SYSTEM_OneRateWithSheme_range"]
["add_SYSTEM_OneRateWithSheme_range"]
[null,null,null,null,null,null,null,"1",null,null,"1",null,null,null,{"$f":"List02_StartDate","v":"2019-01-01"},{"$f":"IF(MONTH(O85)<7,\"30.06.\",\"31.12.\")&YEAR(O85)","v":"30.06.2019"},null,1]
[null,null,null,null,null,null,null,null,null,null,null,null,null,null,null,null,null,null,"Добавить вид теплоносителя",null,null,null,null,null,null,null,null,null,null,null,null,null,null,null,null,null,"add_TYPE_OneRateWithSheme_range"]
[null,null,null,null,null,null,null,null,null,null,null,null,null,null,"2019-07-01",{"$f":"IF(MONTH(O87)<7,\"30.06.\",\"31.12.\")&YEAR(O87)","v":"31.12.2019"},null,1]
[null,null,null,null,null,null,null,null,null,null,null,null,null,null,null,null,null,null,"Добавить вид теплоносителя",null,null,null,null,null,null,null,null,null,null,null,null,null,null,null,null,null,"add_TYPE_OneRateWithSheme_range"]
[null,null,null,null,null,null,null,null,null,null,null,null,null,null,"2020-01-01",{"$f":"IF(MONTH(O89)<7,\"30.06.\",\"31.12.\")&YEAR(O89)","v":"30.06.2020"},null,1]
[null,null,null,null,null,null,null,null,null,null,null,null,null,null,null,null,null,null,"Добавить вид теплоносителя",null,null,null,null,null,null,null,null,null,null,null,null,null,null,null,null,null,"add_TYPE_OneRateWithSheme_range"]
[null,null,null,null,null,null,null,null,null,null,null,null,null,null,"2020-07-01",{"$f":"IF(MONTH(O91)<7,\"30.06.\",\"31.12.\")&YEAR(O91)","v":"31.12.2020"},null,1]
[null,null,null,null,null,null,null,null,null,null,null,null,null,null,null,null,null,null,"Добавить вид теплоносителя",null,null,null,null,null,null,null,null,null,null,null,null,null,null,null,null,null,"add_TYPE_OneRateWithSheme_range"]
[null,null,null,null,null,null,null,null,null,null,null,null,null,null,"2021-01-01",{"$f":"IF(MONTH(O93)<7,\"30.06.\",\"31.12.\")&YEAR(O93)","v":"30.06.2021"},null,1]
[null,null,null,null,null,null,null,null,null,null,null,null,null,null,null,null,null,null,"Добавить вид теплоносителя",null,null,null,null,null,null,null,null,null,null,null,null,null,null,null,null,null,"add_TYPE_OneRateWithSheme_range"]
[null,null,null,null,null,null,null,null,null,null,null,null,null,null,"2021-07-01",{"$f":"IF(MONTH(O95)<7,\"30.06.\",\"31.12.\")&YEAR(O95)","v":"31.12.2021"},null,1]
[null,null,null,null,null,null,null,null,null,null,null,null,null,null,null,null,null,null,"Добавить вид теплоносителя",null,null,null,null,null,null,null,null,null,null,null,null,null,null,null,null,null,"add_TYPE_OneRateWithSheme_range"]
[null,null,null,null,null,null,null,null,null,null,null,null,null,null,"2022-01-01",{"$f":"IF(MONTH(O97)<7,\"30.06.\",\"31.12.\")&YEAR(O97)","v":"30.06.2022"},null,1]
[null,null,null,null,null,null,null,null,null,null,null,null,null,null,null,null,null,null,"Добавить вид теплоносителя",null,null,null,null,null,null,null,null,null,null,null,null,null,null,null,null,null,"add_TYPE_OneRateWithSheme_range"]
[null,null,null,null,null,null,null,null,null,null,null,null,null,null,"2022-07-01",{"$f":"IF(MONTH(O99)<7,\"30.06.\",\"31.12.\")&YEAR(O99)","v":"31.12.2022"},null,1]
[null,null,null,null,null,null,null,null,null,null,null,null,null,null,null,null,null,null,"Добавить вид теплоносителя",null,null,null,null,null,null,null,null,null,null,null,null,null,null,null,null,null,"add_TYPE_OneRateWithSheme_range"]
[null,null,null,null,null,null,null,null,null,null,null,null,null,null,"2023-01-01",{"$f":"IF(MONTH(O101)<7,\"30.06.\",\"31.12.\")&YEAR(O101)","v":"30.06.2023"},null,1]
[null,null,null,null,null,null,null,null,null,null,null,null,null,null,null,null,null,null,"Добавить вид теплоносителя",null,null,null,null,null,null,null,null,null,null,null,null,null,null,null,null,null,"add_TYPE_OneRateWithSheme_range"]
[null,null,null,null,null,null,null,null,null,null,null,null,null,null,"2023-07-01",{"$f":"IF(MONTH(O103)<7,\"30.06.\",\"31.12.\")&YEAR(O103)","v":"31.12.2023"},null,1]
[null,null,null,null,null,null,null,null,null,null,null,null,null,null,null,null,null,null,"Добавить вид теплоносителя",null,null,null,null,null,null,null,null,null,null,null,null,null,null,null,null,null,"add_TYPE_OneRateWithSheme_range"]
[null,null,null,null,null,null,null,null,null,null,null,null,null,null,null,null,null,null,null,null,null,null,null,null,null,null,null,null,null,null,null,null,null,null,"add_PERIOD_OneRateWithSheme_range"]
[null,null,null,null,null,null,null,null,null,null,null,"Добавить схему подключения",null,null,null,null,null,null,null,null,null,null,null,null,null,null,null,null,null,"add_SHEME_OneRateWithSheme_range"]
["add_SHEME_OneRateWithSheme_range"]
[null,null,null,null,null,null,null,null,null,null,"1",null,null,null,{"$f":"List02_StartDate","v":"2019-01-01"},{"$f":"IF(MONTH(O108)<7,\"30.06.\",\"31.12.\")&YEAR(O108)","v":"30.06.2019"},null,1]
[null,null,null,null,null,null,null,null,null,null,null,null,null,null,null,null,null,null,"Добавить вид теплоносителя",null,null,null,null,null,null,null,null,null,null,null,null,null,null,null,null,null,"add_TYPE_OneRateWithSheme_range"]
[null,null,null,null,null,null,null,null,null,null,null,null,null,null,"2019-07-01",{"$f":"IF(MONTH(O110)<7,\"30.06.\",\"31.12.\")&YEAR(O110)","v":"31.12.2019"},null,1]
[null,null,null,null,null,null,null,null,null,null,null,null,null,null,null,null,null,null,"Добавить вид теплоносителя",null,null,null,null,null,null,null,null,null,null,null,null,null,null,null,null,null,"add_TYPE_OneRateWithSheme_range"]
[null,null,null,null,null,null,null,null,null,null,null,null,null,null,"2020-01-01",{"$f":"IF(MONTH(O112)<7,\"30.06.\",\"31.12.\")&YEAR(O112)","v":"30.06.2020"},null,1]
[null,null,null,null,null,null,null,null,null,null,null,null,null,null,null,null,null,null,"Добавить вид теплоносителя",null,null,null,null,null,null,null,null,null,null,null,null,null,null,null,null,null,"add_TYPE_OneRateWithSheme_range"]
[null,null,null,null,null,null,null,null,null,null,null,null,null,null,"2020-07-01",{"$f":"IF(MONTH(O114)<7,\"30.06.\",\"31.12.\")&YEAR(O114)","v":"31.12.2020"},null,1]
[null,null,null,null,null,null,null,null,null,null,null,null,null,null,null,null,null,null,"Добавить вид теплоносителя",null,null,null,null,null,null,null,null,null,null,null,null,null,null,null,null,null,"add_TYPE_OneRateWithSheme_range"]
[null,null,null,null,null,null,null,null,null,null,null,null,null,null,"2021-01-01",{"$f":"IF(MONTH(O116)<7,\"30.06.\",\"31.12.\")&YEAR(O116)","v":"30.06.2021"},null,1]
[null,null,null,null,null,null,null,null,null,null,null,null,null,null,null,null,null,null,"Добавить вид теплоносителя",null,null,null,null,null,null,null,null,null,null,null,null,null,null,null,null,null,"add_TYPE_OneRateWithSheme_range"]
[null,null,null,null,null,null,null,null,null,null,null,null,null,null,"2021-07-01",{"$f":"IF(MONTH(O118)<7,\"30.06.\",\"31.12.\")&YEAR(O118)","v":"31.12.2021"},null,1]
[null,null,null,null,null,null,null,null,null,null,null,null,null,null,null,null,null,null,"Добавить вид теплоносителя",null,null,null,null,null,null,null,null,null,null,null,null,null,null,null,null,null,"add_TYPE_OneRateWithSheme_range"]
[null,null,null,null,null,null,null,null,null,null,null,null,null,null,"2022-01-01",{"$f":"IF(MONTH(O120)<7,\"30.06.\",\"31.12.\")&YEAR(O120)","v":"30.06.2022"},null,1]
[null,null,null,null,null,null,null,null,null,null,null,null,null,null,null,null,null,null,"Добавить вид теплоносителя",null,null,null,null,null,null,null,null,null,null,null,null,null,null,null,null,null,"add_TYPE_OneRateWithSheme_range"]
[null,null,null,null,null,null,null,null,null,null,null,null,null,null,"2022-07-01",{"$f":"IF(MONTH(O122)<7,\"30.06.\",\"31.12.\")&YEAR(O122)","v":"31.12.2022"},null,1]
[null,null,null,null,null,null,null,null,null,null,null,null,null,null,null,null,null,null,"Добавить вид теплоносителя",null,null,null,null,null,null,null,null,null,null,null,null,null,null,null,null,null,"add_TYPE_OneRateWithSheme_range"]
[null,null,null,null,null,null,null,null,null,null,null,null,null,null,"2023-01-01",{"$f":"IF(MONTH(O124)<7,\"30.06.\",\"31.12.\")&YEAR(O124)","v":"30.06.2023"},null,1]
[null,null,null,null,null,null,null,null,null,null,null,null,null,null,null,null,null,null,"Добавить вид теплоносителя",null,null,null,null,null,null,null,null,null,null,null,null,null,null,null,null,null,"add_TYPE_OneRateWithSheme_range"]
[null,null,null,null,null,null,null,null,null,null,null,null,null,null,"2023-07-01",{"$f":"IF(MONTH(O126)<7,\"30.06.\",\"31.12.\")&YEAR(O126)","v":"31.12.2023"},null,1]
[null,null,null,null,null,null,null,null,null,null,null,null,null,null,null,null,null,null,"Добавить вид теплоносителя",null,null,null,null,null,null,null,null,null,null,null,null,null,null,null,null,null,"add_TYPE_OneRateWithSheme_range"]
[null,null,null,null,null,null,null,null,null,null,null,null,null,null,null,null,null,null,null,null,null,null,null,null,null,null,null,null,null,null,null,null,null,null,"add_PERIOD_OneRateWithSheme_range"]
["add_PERIOD_OneRateWithSheme_range"]
[null,null,null,null,null,null,null,null,null,null,null,null,null,null,null,{"$f":"IF(MONTH(O130)<7,\"30.06.\",\"31.12.\")&YEAR(O130)","v":"30.06.1900"},null,1]
[null,null,null,null,null,null,null,null,null,null,null,null,null,null,null,null,null,null,"Добавить вид теплоносителя",null,null,null,null,null,null,null,null,null,null,null,null,null,null,null,null,null,"add_TYPE_OneRateWithSheme_range"]
["add_TYPE_OneRateWithSheme_range"]
[null,null,null,null,null,null,null,null,null,null,null,null,null,null,null,null,null,1]
[]
[]
[]
[]
["add_OFFERS_range"]
[null,null,null,null,null,1]
[]
[]
["add_GOODS_range"]
[]
[]
["add_TERRITORY_CONNECT_range","лист Плата за подключение"]
[null,null,null,null,1,null,"да",1,"","да",1,"",null,"1","нет",null,"нет",null,"нет",null,null,null,{"$f":"List02_StartDate","v":"2019-01-01"},{"$f":"IF(MONTH(W146)<7,\"30.06.\",\"31.12.\")&YEAR(W146)","v":"30.06.2019"}]
[null,null,null,null,null,null,null,null,null,null,null,null,null,null,null,null,null,null,null,null,null,null,"2019-07-01","31.12.2019"]
[null,null,null,null,null,null,null,null,null,null,null,null,null,null,null,null,null,null,null,null,null,null,"2020-01-01","30.06.2020"]
[null,null,null,null,null,null,null,null,null,null,null,null,null,null,null,null,null,null,null,null,null,null,"2020-07-01","31.12.2020"]
[null,null,null,null,null,null,null,null,null,null,null,null,null,null,null,null,null,null,null,null,null,null,"2021-01-01","30.06.2021"]
[null,null,null,null,null,null,null,null,null,null,null,null,null,null,null,null,null,null,null,null,null,null,"2021-07-01","31.12.2021"]
[null,null,null,null,null,null,null,null,null,null,null,null,null,null,null,null,null,null,null,null,null,null,"2022-01-01","30.06.2022"]
[null,null,null,null,null,null,null,null,null,null,null,null,null,null,null,null,null,null,null,null,null,null,"2022-07-01","31.12.2022"]
[null,null,null,null,null,null,null,null,null,null,null,null,null,null,null,null,null,null,null,null,null,null,"2023-01-01","30.06.2023"]
[null,null,null,null,null,null,null,null,null,null,null,null,null,null,null,null,null,null,null,null,null,null,"2023-07-01","31.12.2023"]
[null,null,null,null,null,null,null,null,null,null,null,null,null,null,null,null,null,null,null,null,null,null,null,null,null,null,null,null,null,null,null,null,null,null,null,null,null,null,null,null,null,null,"add_PERIOD_range"]
[null,null,null,null,null,null,null,null,null,null,null,null,null,null,"Добавить строку",null,null,null,null,null,null,null,null,null,null,null,null,null,null,null,null,null,null,null,"add_CONNECT_range"]
[null,null,null,null,null,null,null,null,null,null,null,"Добавить источник",null,null,null,null,null,null,null,null,null,null,null,null,null,null,null,null,null,null,null,"add_CONNECT_SOURCE_range"]
[null,null,null,null,null,null,null,null,"Добавить систему",null,null,null,null,null,null,null,null,null,null,null,null,null,null,null,null,null,null,null,"add_SYSTEM_CONNECT_range"]
["add_SYSTEM_CONNECT_range","лист Плата за подключение"]
[null,null,null,null,null,null,null,1,"","да",1,"",null,"1","нет",null,"нет",null,"нет",null,null,null,{"$f":"List02_StartDate","v":"2019-01-01"},{"$f":"IF(MONTH(W161)<7,\"30.06.\",\"31.12.\")&YEAR(W161)","v":"30.06.2019"}]
[null,null,null,null,null,null,null,null,null,null,null,null,null,null,null,null,null,null,null,null,null,null,"2019-07-01","31.12.2019"]
[null,null,null,null,null,null,null,null,null,null,null,null,null,null,null,null,null,null,null,null,null,null,"2020-01-01","30.06.2020"]
[null,null,null,null,null,null,null,null,null,null,null,null,null,null,null,null,null,null,null,null,null,null,"2020-07-01","31.12.2020"]
[null,null,null,null,null,null,null,null,null,null,null,null,null,null,null,null,null,null,null,null,null,null,"2021-01-01","30.06.2021"]
[null,null,null,null,null,null,null,null,null,null,null,null,null,null,null,null,null,null,null,null,null,null,"2021-07-01","31.12.2021"]
[null,null,null,null,null,null,null,null,null,null,null,null,null,null,null,null,null,null,null,null,null,null,"2022-01-01","30.06.2022"]
[null,null,null,null,null,null,null,null,null,null,null,null,null,null,null,null,null,null,null,null,null,null,"2022-07-01","31.12.2022"]
[null,null,null,null,null,null,null,null,null,null,null,null,null,null,null,null,null,null,null,null,null,null,"2023-01-01","30.06.2023"]
[null,null,null,null,null,null,null,null,null,null,null,null,null,null,null,null,null,null,null,null,null,null,"2023-07-01","31.12.2023"]
[null,null,null,null,null,null,null,null,null,null,null,null,null,null,null,null,null,null,null,null,null,null,null,null,null,null,null,null,null,null,null,null,null,null,null,null,null,null,null,null,null,null,"add_PERIOD_range"]
[null,null,null,null,null,null,null,null,null,null,null,null,null,null,"Добавить строку",null,null,null,null,null,null,null,null,null,null,null,null,null,null,null,null,null,null,null,"add_CONNECT_range"]
[null,null,null,null,null,null,null,null,null,null,null,"Добавить источник",null,null,null,null,null,null,null,null,null,null,null,null,null,null,null,null,null,null,null,"add_CONNECT_SOURCE_range"]
["add_CONNECT_SOURCE_range","лист Плата за подключение"]
[null,null,null,null,null,null,null,null,null,null,1,"",null,"1","нет",null,"нет",null,"нет",null,null,null,{"$f":"List02_StartDate","v":"2019-01-01"},{"$f":"IF(MONTH(W175)<7,\"30.06.\",\"31.12.\")&YEAR(W175)","v":"30.06.2019"}]
[null,null,null,null,null,null,null,null,null,null,null,null,null,null,null,null,null,null,null,null,null,null,"2019-07-01","31.12.2019"]
[null,null,null,null,null,null,null,null,null,null,null,null,null,null,null,null,null,null,null,null,null,null,"2020-01-01","30.06.2020"]
[null,null,null,null,null,null,null,null,null,null,null,null,null,null,null,null,null,null,null,null,null,null,"2020-07-01","31.12.2020"]
[null,null,null,null,null,null,null,null,null,null,null,null,null,null,null,null,null,null,null,null,null,null,"2021-01-01","30.06.2021"]
[null,null,null,null,null,null,null,null,null,null,null,null,null,null,null,null,null,null,null,null,null,null,"2021-07-01","31.12.2021"]
[null,null,null,null,null,null,null,null,null,null,null,null,null,null,null,null,null,null,null,null,null,null,"2022-01-01","30.06.2022"]
[null,null,null,null,null,null,null,null,null,null,null,null,null,null,null,null,null,null,null,null,null,null,"2022-07-01","31.12.2022"]
[null,null,null,null,null,null,null,null,null,null,null,null,null,null,null,null,null,null,null,null,null,null,"2023-01-01","30.06.2023"]
[null,null,null,null,null,null,null,null,null,null,null,null,null,null,null,null,null,null,null,null,null,null,"2023-07-01","31.12.2023"]
[null,null,null,null,null,null,null,null,null,null,null,null,null,null,null,null,null,null,null,null,null,null,null,null,null,null,null,null,null,null,null,null,null,null,null,null,null,null,null,null,null,null,"add_PERIOD_range"]
[null,null,null,null,null,null,null,null,null,null,null,null,null,null,"Добавить строку",null,null,null,null,null,null,null,null,null,null,null,null,null,null,null,null,null,null,null,"add_CONNECT_range"]
["add_info_tariff_range"]
[null,null,null,"Предлагаемый метод регулирования",null,1]
[null,null,null,null,null,null,"Добавить период",null,null,null,null,null,"add_METHOD_range"]
[null,null,null,"Сведения о необходимой валовой выручке на соответствующий период, в том числе с разбивкой по годам, тыс. руб.",null,1]
[null,null,null,null,null,null,"Добавить период",null,null,null,null,null,"add_OFFERS_range"]
[null,null,null,"Годовой объем полезного отпуска тепловой энергии (теплоносителя), тыс. Гкал",null,1]
[]
[null,null,null,null,null,null,"Добавить период",null,null,null,null,null,"add_OFFERS_range"]
[null,null,null,"Размер экономически обоснованных расходов, не учтенных при регулировании тарифов в предыдущий период регулирования (при их наличии), определенный в соответствии с законодательством Российской Федерации, тыс.руб.",null,1]
[]
[]
[]
[]
[]
[]
[null,null,null,null,null,null,"Добавить период",null,null,null,null,null,"add_OFFERS_range"]
[]
[]
[]
[]
[]
["add_PARAM_range"]
[null,null,null,null,null,1]
["add_METHOD_range"]
[null,null,null,null,null,1]
["add_NameOneRate_range"]
[null,null,null,null,"1",null,"да","1",null,null,null,null,null,null,{"$f":"List02_StartDate","v":"2019-01-01"},{"$f":"IF(MONTH(O213)<7,\"30.06.\",\"31.12.\")&YEAR(O213)","v":"30.06.2019"},null,1]
[null,null,null,null,null,null,null,null,null,null,null,null,null,null,null,null,null,null,"Добавить вид теплоносителя",null,null,null,null,null,null,null,null,null,null,null,null,null,null,null,null,null,null,"add_TYPE_OneRate_range"]
[null,null,null,null,null,null,null,null,null,null,null,null,null,null,"2019-07-01",{"$f":"IF(MONTH(O215)<7,\"30.06.\",\"31.12.\")&YEAR(O215)","v":"31.12.2019"},null,1]
[null,null,null,null,null,null,null,null,null,null,null,null,null,null,null,null,null,null,"Добавить вид теплоносителя",null,null,null,null,null,null,null,null,null,null,null,null,null,null,null,null,null,null,"add_TYPE_OneRate_range"]
[null,null,null,null,null,null,null,null,null,null,null,null,null,null,"2020-01-01",{"$f":"IF(MONTH(O217)<7,\"30.06.\",\"31.12.\")&YEAR(O217)","v":"30.06.2020"},null,1]
[null,null,null,null,null,null,null,null,null,null,null,null,null,null,null,null,null,null,"Добавить вид теплоносителя",null,null,null,null,null,null,null,null,null,null,null,null,null,null,null,null,null,null,"add_TYPE_OneRate_range"]
[null,null,null,null,null,null,null,null,null,null,null,null,null,null,"2020-07-01",{"$f":"IF(MONTH(O219)<7,\"30.06.\",\"31.12.\")&YEAR(O219)","v":"31.12.2020"},null,1]
[null,null,null,null,null,null,null,null,null,null,null,null,null,null,null,null,null,null,"Добавить вид теплоносителя",null,null,null,null,null,null,null,null,null,null,null,null,null,null,null,null,null,null,"add_TYPE_OneRate_range"]
[null,null,null,null,null,null,null,null,null,null,null,null,null,null,"2021-01-01",{"$f":"IF(MONTH(O221)<7,\"30.06.\",\"31.12.\")&YEAR(O221)","v":"30.06.2021"},null,1]
[null,null,null,null,null,null,null,null,null,null,null,null,null,null,null,null,null,null,"Добавить вид теплоносителя",null,null,null,null,null,null,null,null,null,null,null,null,null,null,null,null,null,null,"add_TYPE_OneRate_range"]
[null,null,null,null,null,null,null,null,null,null,null,null,null,null,"2021-07-01",{"$f":"IF(MONTH(O223)<7,\"30.06.\",\"31.12.\")&YEAR(O223)","v":"31.12.2021"},null,1]
[null,null,null,null,null,null,null,null,null,null,null,null,null,null,null,null,null,null,"Добавить вид теплоносителя",null,null,null,null,null,null,null,null,null,null,null,null,null,null,null,null,null,null,"add_TYPE_OneRate_range"]
[null,null,null,null,null,null,null,null,null,null,null,null,null,null,"2022-01-01",{"$f":"IF(MONTH(O225)<7,\"30.06.\",\"31.12.\")&YEAR(O225)","v":"30.06.2022"},null,1]
[null,null,null,null,null,null,null,null,null,null,null,null,null,null,null,null,null,null,"Добавить вид теплоносителя",null,null,null,null,null,null,null,null,null,null,null,null,null,null,null,null,null,null,"add_TYPE_OneRate_range"]
[null,null,null,null,null,null,null,null,null,null,null,null,null,null,"2022-07-01",{"$f":"IF(MONTH(O227)<7,\"30.06.\",\"31.12.\")&YEAR(O227)","v":"31.12.2022"},null,1]
[null,null,null,null,null,null,null,null,null,null,null,null,null,null,null,null,null,null,"Добавить вид теплоносителя",null,null,null,null,null,null,null,null,null,null,null,null,null,null,null,null,null,null,"add_TYPE_OneRate_range"]
[null,null,null,null,null,null,null,null,null,null,null,null,null,null,"2023-01-01",{"$f":"IF(MONTH(O229)<7,\"30.06.\",\"31.12.\")&YEAR(O229)","v":"30.06.2023"},null,1]
[null,null,null,null,null,null,null,null,null,null,null,null,null,null,null,null,null,null,"Добавить вид теплоносителя",null,null,null,null,null,null,null,null,null,null,null,null,null,null,null,null,null,null,"add_TYPE_OneRate_range"]
[null,null,null,null,null,null,null,null,null,null,null,null,null,null,"2023-07-01",{"$f":"IF(MONTH(O231)<7,\"30.06.\",\"31.12.\")&YEAR(O231)","v":"31.12.2023"},null,1]
[null,null,null,null,null,null,null,null,null,null,null,null,null,null,null,null,null,null,"Добавить вид теплоносителя",null,null,null,null,null,null,null,null,null,null,null,null,null,null,null,null,null,null,"add_TYPE_OneRate_range"]
[]
[null,null,null,null,null,null,null,null,"Добавить систему",null,null,null,null,null,null,null,null,null,null,null,null,null,null,null,null,null,null,"add_SYSTEM_OneRate_range"]
[null,null,null,null,null,"Добавить территорию",null,null,null,null,null,null,null,null,null,null,null,null,null,null,null,null,null,null,"add_TERRITORY_OneRate_range"]
["add_TERRITORY_OneRate_range"]
[null,null,null,null,"1",null,"да","1",null,null,null,null,null,null,{"$f":"List02_StartDate","v":"2019-01-01"},{"$f":"IF(MONTH(O237)<7,\"30.06.\",\"31.12.\")&YEAR(O237)","v":"30.06.2019"},null,1]
[null,null,null,null,null,null,null,null,null,null,null,null,null,null,null,null,null,null,"Добавить вид теплоносителя",null,null,null,null,null,null,null,null,null,null,null,null,null,null,null,null,null,null,"add_TYPE_OneRate_range"]
[null,null,null,null,null,null,null,null,null,null,null,null,null,null,"2019-07-01",{"$f":"IF(MONTH(O239)<7,\"30.06.\",\"31.12.\")&YEAR(O239)","v":"31.12.2019"},null,1]
[null,null,null,null,null,null,null,null,null,null,null,null,null,null,null,null,null,null,"Добавить вид теплоносителя",null,null,null,null,null,null,null,null,null,null,null,null,null,null,null,null,null,null,"add_TYPE_OneRate_range"]
[null,null,null,null,null,null,null,null,null,null,null,null,null,null,"2020-01-01",{"$f":"IF(MONTH(O241)<7,\"30.06.\",\"31.12.\")&YEAR(O241)","v":"30.06.2020"},null,1]
[null,null,null,null,null,null,null,null,null,null,null,null,null,null,null,null,null,null,"Добавить вид теплоносителя",null,null,null,null,null,null,null,null,null,null,null,null,null,null,null,null,null,null,"add_TYPE_OneRate_range"]
[null,null,null,null,null,null,null,null,null,null,null,null,null,null,"2020-07-01",{"$f":"IF(MONTH(O243)<7,\"30.06.\",\"31.12.\")&YEAR(O243)","v":"31.12.2020"},null,1]
[null,null,null,null,null,null,null,null,null,null,null,null,null,null,null,null,null,null,"Добавить вид теплоносителя",null,null,null,null,null,null,null,null,null,null,null,null,null,null,null,null,null,null,"add_TYPE_OneRate_range"]
[null,null,null,null,null,null,null,null,null,null,null,null,null,null,"2021-01-01",{"$f":"IF(MONTH(O245)<7,\"30.06.\",\"31.12.\")&YEAR(O245)","v":"30.06.2021"},null,1]
[null,null,null,null,null,null,null,null,null,null,null,null,null,null,null,null,null,null,"Добавить вид теплоносителя",null,null,null,null,null,null,null,null,null,null,null,null,null,null,null,null,null,null,"add_TYPE_OneRate_range"]
[null,null,null,null,null,null,null,null,null,null,null,null,null,null,"2021-07-01",{"$f":"IF(MONTH(O247)<7,\"30.06.\",\"31.12.\")&YEAR(O247)","v":"31.12.2021"},null,1]
[null,null,null,null,null,null,null,null,null,null,null,null,null,null,null,null,null,null,"Добавить вид теплоносителя",null,null,null,null,null,null,null,null,null,null,null,null,null,null,null,null,null,null,"add_TYPE_OneRate_range"]
[null,null,null,null,null,null,null,null,null,null,null,null,null,null,"2022-01-01",{"$f":"IF(MONTH(O249)<7,\"30.06.\",\"31.12.\")&YEAR(O249)","v":"30.06.2022"},null,1]
[null,null,null,null,null,null,null,null,null,null,null,null,null,null,null,null,null,null,"Добавить вид теплоносителя",null,null,null,null,null,null,null,null,null,null,null,null,null,null,null,null,null,null,"add_TYPE_OneRate_range"]
[null,null,null,null,null,null,null,null,null,null,null,null,null,null,"2022-07-01",{"$f":"IF(MONTH(O251)<7,\"30.06.\",\"31.12.\")&YEAR(O251)","v":"31.12.2022"},null,1]
[null,null,null,null,null,null,null,null,null,null,null,null,null,null,null,null,null,null,"Добавить вид теплоносителя",null,null,null,null,null,null,null,null,null,null,null,null,null,null,null,null,null,null,"add_TYPE_OneRate_range"]
[null,null,null,null,null,null,null,null,null,null,null,null,null,null,"2023-01-01",{"$f":"IF(MONTH(O253)<7,\"30.06.\",\"31.12.\")&YEAR(O253)","v":"30.06.2023"},null,1]
[null,null,null,null,null,null,null,null,null,null,null,null,null,null,null,null,null,null,"Добавить вид теплоносителя",null,null,null,null,null,null,null,null,null,null,null,null,null,null,null,null,null,null,"add_TYPE_OneRate_range"]
[null,null,null,null,null,null,null,null,null,null,null,null,null,null,"2023-07-01",{"$f":"IF(MONTH(O255)<7,\"30.06.\",\"31.12.\")&YEAR(O255)","v":"31.12.2023"},null,1]
[null,null,null,null,null,null,null,null,null,null,null,null,null,null,null,null,null,null,"Добавить вид теплоносителя",null,null,null,null,null,null,null,null,null,null,null,null,null,null,null,null,null,null,"add_TYPE_OneRate_range"]
[]
[null,null,null,null,null,null,null,null,"Добавить систему",null,null,null,null,null,null,null,null,null,null,null,null,null,null,null,null,null,null,"add_SYSTEM_OneRate_range"]
["add_SYSTEM_OneRate_range"]
[null,null,null,null,null,null,null,"1",null,null,null,null,null,null,{"$f":"List02_StartDate","v":"2019-01-01"},{"$f":"IF(MONTH(O260)<7,\"30.06.\",\"31.12.\")&YEAR(O260)","v":"30.06.2019"},null,1]
[null,null,null,null,null,null,null,null,null,null,null,null,null,null,null,null,null,null,"Добавить вид теплоносителя",null,null,null,null,null,null,null,null,null,null,null,null,null,null,null,null,null,null,"add_TYPE_OneRate_range"]
[null,null,null,null,null,null,null,null,null,null,null,null,null,null,"2019-07-01",{"$f":"IF(MONTH(O262)<7,\"30.06.\",\"31.12.\")&YEAR(O262)","v":"31.12.2019"},null,1]
[null,null,null,null,null,null,null,null,null,null,null,null,null,null,null,null,null,null,"Добавить вид теплоносителя",null,null,null,null,null,null,null,null,null,null,null,null,null,null,null,null,null,null,"add_TYPE_OneRate_range"]
[null,null,null,null,null,null,null,null,null,null,null,null,null,null,"2020-01-01",{"$f":"IF(MONTH(O264)<7,\"30.06.\",\"31.12.\")&YEAR(O264)","v":"30.06.2020"},null,1]
[null,null,null,null,null,null,null,null,null,null,null,null,null,null,null,null,null,null,"Добавить вид теплоносителя",null,null,null,null,null,null,null,null,null,null,null,null,null,null,null,null,null,null,"add_TYPE_OneRate_range"]
[null,null,null,null,null,null,null,null,null,null,null,null,null,null,"2020-07-01",{"$f":"IF(MONTH(O266)<7,\"30.06.\",\"31.12.\")&YEAR(O266)","v":"31.12.2020"},null,1]
[null,null,null,null,null,null,null,null,null,null,null,null,null,null,null,null,null,null,"Добавить вид теплоносителя",null,null,null,null,null,null,null,null,null,null,null,null,null,null,null,null,null,null,"add_TYPE_OneRate_range"]
[null,null,null,null,null,null,null,null,null,null,null,null,null,null,"2021-01-01",{"$f":"IF(MONTH(O268)<7,\"30.06.\",\"31.12.\")&YEAR(O268)","v":"30.06.2021"},null,1]
[null,null,null,null,null,null,null,null,null,null,null,null,null,null,null,null,null,null,"Добавить вид теплоносителя",null,null,null,null,null,null,null,null,null,null,null,null,null,null,null,null,null,null,"add_TYPE_OneRate_range"]
[null,null,null,null,null,null,null,null,null,null,null,null,null,null,"2021-07-01",{"$f":"IF(MONTH(O270)<7,\"30.06.\",\"31.12.\")&YEAR(O270)","v":"31.12.2021"},null,1]
[null,null,null,null,null,null,null,null,null,null,null,null,null,null,null,null,null,null,"Добавить вид теплоносителя",null,null,null,null,null,null,null,null,null,null,null,null,null,null,null,null,null,null,"add_TYPE_OneRate_range"]
[null,null,null,null,null,null,null,null,null,null,null,null,null,null,"2022-01-01",{"$f":"IF(MONTH(O272)<7,\"30.06.\",\"31.12.\")&YEAR(O272)","v":"30.06.2022"},null,1]
[null,null,null,null,null,null,null,null,null,null,null,null,null,null,null,null,null,null,"Добавить вид теплоносителя",null,null,null,null,null,null,null,null,null,null,null,null,null,null,null,null,null,null,"add_TYPE_OneRate_range"]
[null,null,null,null,null,null,null,null,null,null,null,null,null,null,"2022-07-01",{"$f":"IF(MONTH(O274)<7,\"30.06.\",\"31.12.\")&YEAR(O274)","v":"31.12.2022"},null,1]
[null,null,null,null,null,null,null,null,null,null,null,null,null,null,null,null,null,null,"Добавить вид теплоносителя",null,null,null,null,null,null,null,null,null,null,null,null,null,null,null,null,null,null,"add_TYPE_OneRate_range"]
[null,null,null,null,null,null,null,null,null,null,null,null,null,null,"2023-01-01",{"$f":"IF(MONTH(O276)<7,\"30.06.\",\"31.12.\")&YEAR(O276)","v":"30.06.2023"},null,1]
[null,null,null,null,null,null,null,null,null,null,null,null,null,null,null,null,null,null,"Добавить вид теплоносителя",null,null,null,null,null,null,null,null,null,null,null,null,null,null,null,null,null,null,"add_TYPE_OneRate_range"]
[null,null,null,null,null,null,null,null,null,null,null,null,null,null,"2023-07-01",{"$f":"IF(MONTH(O278)<7,\"30.06.\",\"31.12.\")&YEAR(O278)","v":"31.12.2023"},null,1]
[null,null,null,null,null,null,null,null,null,null,null,null,null,null,null,null,null,null,"Добавить вид теплоносителя",null,null,null,null,null,null,null,null,null,null,null,null,null,null,null,null,null,null,"add_TYPE_OneRate_range"]
[]
["add_PERIOD_OneRate_range"]
[null,null,null,null,null,null,null,null,null,null,null,null,null,null,null,{"$f":"IF(MONTH(O282)<7,\"30.06.\",\"31.12.\")&YEAR(O282)","v":"30.06.1900"},null,1]
[null,null,null,null,null,null,null,null,null,null,null,null,null,null,null,null,null,null,"Добавить вид теплоносителя",null,null,null,null,null,null,null,null,null,null,null,null,null,null,null,null,null,null,"add_TYPE_OneRate_range"]
["add_TYPE_OneRate_range"]
[null,null,null,null,null,null,null,null,null,null,null,null,null,null,null,null,null,1]
["add_NameTwoRate_range","2cстав без комп"]
[null,null,null,null,"1",null,"да","1",null,null,null,null,null,null,{"$f":"List02_StartDate","v":"2019-01-01"},{"$f":"IF(MONTH(O287)<7,\"30.06.\",\"31.12.\")&YEAR(O287)","v":"30.06.2019"},null,1]
[null,null,null,null,null,null,null,null,null,null,null,null,null,null,null,null,null,null,"Добавить вид теплоносителя",null,null,null,null,null,null,null,null,null,null,null,null,null,null,null,null,null,null,"add_TYPE_TwoRate_range"]
[null,null,null,null,null,null,null,null,null,null,null,null,null,null,"2019-07-01",{"$f":"IF(MONTH(O289)<7,\"30.06.\",\"31.12.\")&YEAR(O289)","v":"31.12.2019"},null,1]
[null,null,null,null,null,null,null,null,null,null,null,null,null,null,null,null,null,null,"Добавить вид теплоносителя",null,null,null,null,null,null,null,null,null,null,null,null,null,null,null,null,null,null,"add_TYPE_TwoRate_range"]
[null,null,null,null,null,null,null,null,null,null,null,null,null,null,"2020-01-01",{"$f":"IF(MONTH(O291)<7,\"30.06.\",\"31.12.\")&YEAR(O291)","v":"30.06.2020"},null,1]
[null,null,null,null,null,null,null,null,null,null,null,null,null,null,null,null,null,null,"Добавить вид теплоносителя",null,null,null,null,null,null,null,null,null,null,null,null,null,null,null,null,null,null,"add_TYPE_TwoRate_range"]
[null,null,null,null,null,null,null,null,null,null,null,null,null,null,"2020-07-01",{"$f":"IF(MONTH(O293)<7,\"30.06.\",\"31.12.\")&YEAR(O293)","v":"31.12.2020"},null,1]
[null,null,null,null,null,null,null,null,null,null,null,null,null,null,null,null,null,null,"Добавить вид теплоносителя",null,null,null,null,null,null,null,null,null,null,null,null,null,null,null,null,null,null,"add_TYPE_TwoRate_range"]
[null,null,null,null,null,null,null,null,null,null,null,null,null,null,"2021-01-01",{"$f":"IF(MONTH(O295)<7,\"30.06.\",\"31.12.\")&YEAR(O295)","v":"30.06.2021"},null,1]
[null,null,null,null,null,null,null,null,null,null,null,null,null,null,null,null,null,null,"Добавить вид теплоносителя",null,null,null,null,null,null,null,null,null,null,null,null,null,null,null,null,null,null,"add_TYPE_TwoRate_range"]
[null,null,null,null,null,null,null,null,null,null,null,null,null,null,"2021-07-01",{"$f":"IF(MONTH(O297)<7,\"30.06.\",\"31.12.\")&YEAR(O297)","v":"31.12.2021"},null,1]
[null,null,null,null,null,null,null,null,null,null,null,null,null,null,null,null,null,null,"Добавить вид теплоносителя",null,null,null,null,null,null,null,null,null,null,null,null,null,null,null,null,null,null,"add_TYPE_TwoRate_range"]
[null,null,null,null,null,null,null,null,null,null,null,null,null,null,"2022-01-01",{"$f":"IF(MONTH(O299)<7,\"30.06.\",\"31.12.\")&YEAR(O299)","v":"30.06.2022"},null,1]
[null,null,null,null,null,null,null,null,null,null,null,null,null,null,null,null,null,null,"Добавить вид теплоносителя",null,null,null,null,null,null,null,null,null,null,null,null,null,null,null,null,null,null,"add_TYPE_TwoRate_range"]
[null,null,null,null,null,null,null,null,null,null,null,null,null,null,"2022-07-01",{"$f":"IF(MONTH(O301)<7,\"30.06.\",\"31.12.\")&YEAR(O301)","v":"31.12.2022"},null,1]
[null,null,null,null,null,null,null,null,null,null,null,null,null,null,null,null,null,null,"Добавить вид теплоносителя",null,null,null,null,null,null,null,null,null,null,null,null,null,null,null,null,null,null,"add_TYPE_TwoRate_range"]
[null,null,null,null,null,null,null,null,null,null,null,null,null,null,"2023-01-01",{"$f":"IF(MONTH(O303)<7,\"30.06.\",\"31.12.\")&YEAR(O303)","v":"30.06.2023"},null,1]
[null,null,null,null,null,null,null,null,null,null,null,null,null,null,null,null,null,null,"Добавить вид теплоносителя",null,null,null,null,null,null,null,null,null,null,null,null,null,null,null,null,null,null,"add_TYPE_TwoRate_range"]
[null,null,null,null,null,null,null,null,null,null,null,null,null,null,"2023-07-01",{"$f":"IF(MONTH(O305)<7,\"30.06.\",\"31.12.\")&YEAR(O305)","v":"31.12.2023"},null,1]
[null,null,null,null,null,null,null,null,null,null,null,null,null,null,null,null,null,null,"Добавить вид теплоносителя",null,null,null,null,null,null,null,null,null,null,null,null,null,null,null,null,null,null,"add_TYPE_TwoRate_range"]
[]
[null,null,null,null,null,null,null,null,"Добавить систему",null,null,null,null,null,null,null,null,null,null,null,null,null,null,null,null,null,null,"add_SYSTEM_TwoRate_range"]
[null,null,null,null,null,"Добавить территорию",null,null,null,null,null,null,null,null,null,null,null,null,null,null,null,null,null,null,"add_TERRITORY_TwoRate_range"]
["add_TERRITORY_TwoRate_range","2cстав без комп"]
[null,null,null,null,"1",null,"да","1",null,null,null,null,null,null,{"$f":"List02_StartDate","v":"2019-01-01"},{"$f":"IF(MONTH(O311)<7,\"30.06.\",\"31.12.\")&YEAR(O311)","v":"30.06.2019"},null,1]
[null,null,null,null,null,null,null,null,null,null,null,null,null,null,null,null,null,null,"Добавить вид теплоносителя",null,null,null,null,null,null,null,null,null,null,null,null,null,null,null,null,null,null,"add_TYPE_TwoRate_range"]
[null,null,null,null,null,null,null,null,null,null,null,null,null,null,"2019-07-01",{"$f":"IF(MONTH(O313)<7,\"30.06.\",\"31.12.\")&YEAR(O313)","v":"31.12.2019"},null,1]
[null,null,null,null,null,null,null,null,null,null,null,null,null,null,null,null,null,null,"Добавить вид теплоносителя",null,null,null,null,null,null,null,null,null,null,null,null,null,null,null,null,null,null,"add_TYPE_TwoRate_range"]
[null,null,null,null,null,null,null,null,null,null,null,null,null,null,"2020-01-01",{"$f":"IF(MONTH(O315)<7,\"30.06.\",\"31.12.\")&YEAR(O315)","v":"30.06.2020"},null,1]
[null,null,null,null,null,null,null,null,null,null,null,null,null,null,null,null,null,null,"Добавить вид теплоносителя",null,null,null,null,null,null,null,null,null,null,null,null,null,null,null,null,null,null,"add_TYPE_TwoRate_range"]
[null,null,null,null,null,null,null,null,null,null,null,null,null,null,"2020-07-01",{"$f":"IF(MONTH(O317)<7,\"30.06.\",\"31.12.\")&YEAR(O317)","v":"31.12.2020"},null,1]
[null,null,null,null,null,null,null,null,null,null,null,null,null,null,null,null,null,null,"Добавить вид теплоносителя",null,null,null,null,null,null,null,null,null,null,null,null,null,null,null,null,null,null,"add_TYPE_TwoRate_range"]
[null,null,null,null,null,null,null,null,null,null,null,null,null,null,"2021-01-01",{"$f":"IF(MONTH(O319)<7,\"30.06.\",\"31.12.\")&YEAR(O319)","v":"30.06.2021"},null,1]
[null,null,null,null,null,null,null,null,null,null,null,null,null,null,null,null,null,null,"Добавить вид теплоносителя",null,null,null,null,null,null,null,null,null,null,null,null,null,null,null,null,null,null,"add_TYPE_TwoRate_range"]
[null,null,null,null,null,null,null,null,null,null,null,null,null,null,"2021-07-01",{"$f":"IF(MONTH(O321)<7,\"30.06.\",\"31.12.\")&YEAR(O321)","v":"31.12.2021"},null,1]
[null,null,null,null,null,null,null,null,null,null,null,null,null,null,null,null,null,null,"Добавить вид теплоносителя",null,null,null,null,null,null,null,null,null,null,null,null,null,null,null,null,null,null,"add_TYPE_TwoRate_range"]
[null,null,null,null,null,null,null,null,null,null,null,null,null,null,"2022-01-01",{"$f":"IF(MONTH(O323)<7,\"30.06.\",\"31.12.\")&YEAR(O323)","v":"30.06.2022"},null,1]
[null,null,null,null,null,null,null,null,null,null,null,null,null,null,null,null,null,null,"Добавить вид теплоносителя",null,null,null,null,null,null,null,null,null,null,null,null,null,null,null,null,null,null,"add_TYPE_TwoRate_range"]
[null,null,null,null,null,null,null,null,null,null,null,null,null,null,"2022-07-01",{"$f":"IF(MONTH(O325)<7,\"30.06.\",\"31.12.\")&YEAR(O325)","v":"31.12.2022"},null,1]
[null,null,null,null,null,null,null,null,null,null,null,null,null,null,null,null,null,null,"Добавить вид теплоносителя",null,null,null,null,null,null,null,null,null,null,null,null,null,null,null,null,null,null,"add_TYPE_TwoRate_range"]
[null,null,null,null,null,null,null,null,null,null,null,null,null,null,"2023-01-01",{"$f":"IF(MONTH(O327)<7,\"30.06.\",\"31.12.\")&YEAR(O327)","v":"30.06.2023"},null,1]
[null,null,null,null,null,null,null,null,null,null,null,null,null,null,null,null,null,null,"Добавить вид теплоносителя",null,null,null,null,null,null,null,null,null,null,null,null,null,null,null,null,null,null,"add_TYPE_TwoRate_range"]
[null,null,null,null,null,null,null,null,null,null,null,null,null,null,"2023-07-01",{"$f":"IF(MONTH(O329)<7,\"30.06.\",\"31.12.\")&YEAR(O329)","v":"31.12.2023"},null,1]
[null,null,null,null,null,null,null,null,null,null,null,null,null,null,null,null,null,null,"Добавить вид теплоносителя",null,null,null,null,null,null,null,null,null,null,null,null,null,null,null,null,null,null,"add_TYPE_TwoRate_range"]
[]
[null,null,null,null,null,null,null,null,"Добавить систему",null,null,null,null,null,null,null,null,null,null,null,null,null,null,null,null,null,null,"add_SYSTEM_TwoRate_range"]
["add_SYSTEM_TwoRate_range","2cстав без комп"]
[null,null,null,null,null,null,null,"1",null,null,null,null,null,null,{"$f":"List02_StartDate","v":"2019-01-01"},{"$f":"IF(MONTH(O334)<7,\"30.06.\",\"31.12.\")&YEAR(O334)","v":"30.06.2019"},null,1]
[null,null,null,null,null,null,null,null,null,null,null,null,null,null,null,null,null,null,"Добавить вид теплоносителя",null,null,null,null,null,null,null,null,null,null,null,null,null,null,null,null,null,null,"add_TYPE_TwoRate_range"]
[null,null,null,null,null,null,null,null,null,null,null,null,null,null,"2019-07-01",{"$f":"IF(MONTH(O336)<7,\"30.06.\",\"31.12.\")&YEAR(O336)","v":"31.12.2019"},null,1]
[null,null,null,null,null,null,null,null,null,null,null,null,null,null,null,null,null,null,"Добавить вид теплоносителя",null,null,null,null,null,null,null,null,null,null,null,null,null,null,null,null,null,null,"add_TYPE_TwoRate_range"]
[null,null,null,null,null,null,null,null,null,null,null,null,null,null,"2020-01-01",{"$f":"IF(MONTH(O338)<7,\"30.06.\",\"31.12.\")&YEAR(O338)","v":"30.06.2020"},null,1]
[null,null,null,null,null,null,null,null,null,null,null,null,null,null,null,null,null,null,"Добавить вид теплоносителя",null,null,null,null,null,null,null,null,null,null,null,null,null,null,null,null,null,null,"add_TYPE_TwoRate_range"]
[null,null,null,null,null,null,null,null,null,null,null,null,null,null,"2020-07-01",{"$f":"IF(MONTH(O340)<7,\"30.06.\",\"31.12.\")&YEAR(O340)","v":"31.12.2020"},null,1]
[null,null,null,null,null,null,null,null,null,null,null,null,null,null,null,null,null,null,"Добавить вид теплоносителя",null,null,null,null,null,null,null,null,null,null,null,null,null,null,null,null,null,null,"add_TYPE_TwoRate_range"]
[null,null,null,null,null,null,null,null,null,null,null,null,null,null,"2021-01-01",{"$f":"IF(MONTH(O342)<7,\"30.06.\",\"31.12.\")&YEAR(O342)","v":"30.06.2021"},null,1]
[null,null,null,null,null,null,null,null,null,null,null,null,null,null,null,null,null,null,"Добавить вид теплоносителя",null,null,null,null,null,null,null,null,null,null,null,null,null,null,null,null,null,null,"add_TYPE_TwoRate_range"]
[null,null,null,null,null,null,null,null,null,null,null,null,null,null,"2021-07-01",{"$f":"IF(MONTH(O344)<7,\"30.06.\",\"31.12.\")&YEAR(O344)","v":"31.12.2021"},null,1]
[null,null,null,null,null,null,null,null,null,null,null,null,null,null,null,null,null,null,"Добавить вид теплоносителя",null,null,null,null,null,null,null,null,null,null,null,null,null,null,null,null,null,null,"add_TYPE_TwoRate_range"]
[null,null,null,null,null,null,null,null,null,null,null,null,null,null,"2022-01-01",{"$f":"IF(MONTH(O346)<7,\"30.06.\",\"31.12.\")&YEAR(O346)","v":"30.06.2022"},null,1]
[null,null,null,null,null,null,null,null,null,null,null,null,null,null,null,null,null,null,"Добавить вид теплоносителя",null,null,null,null,null,null,null,null,null,null,null,null,null,null,null,null,null,null,"add_TYPE_TwoRate_range"]
[null,null,null,null,null,null,null,null,null,null,null,null,null,null,"2022-07-01",{"$f":"IF(MONTH(O348)<7,\"30.06.\",\"31.12.\")&YEAR(O348)","v":"31.12.2022"},null,1]
[null,null,null,null,null,null,null,null,null,null,null,null,null,null,null,null,null,null,"Добавить вид теплоносителя",null,null,null,null,null,null,null,null,null,null,null,null,null,null,null,null,null,null,"add_TYPE_TwoRate_range"]
[null,null,null,null,null,null,null,null,null,null,null,null,null,null,"2023-01-01",{"$f":"IF(MONTH(O350)<7,\"30.06.\",\"31.12.\")&YEAR(O350)","v":"30.06.2023"},null,1]
[null,null,null,null,null,null,null,null,null,null,null,null,null,null,null,null,null,null,"Добавить вид теплоносителя",null,null,null,null,null,null,null,null,null,null,null,null,null,null,null,null,null,null,"add_TYPE_TwoRate_range"]
[null,null,null,null,null,null,null,null,null,null,null,null,null,null,"2023-07-01",{"$f":"IF(MONTH(O352)<7,\"30.06.\",\"31.12.\")&YEAR(O352)","v":"31.12.2023"},null,1]
[null,null,null,null,null,null,null,null,null,null,null,null,null,null,null,null,null,null,"Добавить вид теплоносителя",null,null,null,null,null,null,null,null,null,null,null,null,null,null,null,null,null,null,"add_TYPE_TwoRate_range"]
[]
["add_PERIOD_TwoRate_range","2cстав без комп"]
[null,null,null,null,null,null,null,null,null,null,null,null,null,null,null,{"$f":"IF(MONTH(O356)<7,\"30.06.\",\"31.12.\")&YEAR(O356)","v":"30.06.1900"},null,1]
[null,null,null,null,null,null,null,null,null,null,null,null,null,null,null,null,null,null,"Добавить вид теплоносителя",null,null,null,null,null,null,null,null,null,null,null,null,null,null,null,null,null,null,"add_TYPE_TwoRate_range"]
["add_TYPE_TwoRate_range","2cстав без комп"]
[null,null,null,null,null,null,null,null,null,null,null,null,null,null,null,null,null,1]
["add_NameOneRateWithComp_range","1став с комп"]
[null,null,null,null,"1",null,"да","1",null,null,null,null,null,null,{"$f":"List02_StartDate","v":"2019-01-01"},{"$f":"IF(MONTH(O361)<7,\"30.06.\",\"31.12.\")&YEAR(O361)","v":"30.06.2019"},null,1]
[null,null,null,null,null,null,null,null,null,null,null,null,null,null,null,null,null,null,"Добавить вид теплоносителя",null,null,null,null,null,null,null,null,null,null,null,null,null,null,null,null,null,null,"add_TYPE_OneRateWithComp_range"]
[null,null,null,null,null,null,null,null,null,null,null,null,null,null,"2019-07-01",{"$f":"IF(MONTH(O363)<7,\"30.06.\",\"31.12.\")&YEAR(O363)","v":"31.12.2019"},null,1]
[null,null,null,null,null,null,null,null,null,null,null,null,null,null,null,null,null,null,"Добавить вид теплоносителя",null,null,null,null,null,null,null,null,null,null,null,null,null,null,null,null,null,null,"add_TYPE_OneRateWithComp_range"]
[null,null,null,null,null,null,null,null,null,null,null,null,null,null,"2020-01-01",{"$f":"IF(MONTH(O365)<7,\"30.06.\",\"31.12.\")&YEAR(O365)","v":"30.06.2020"},null,1]
[null,null,null,null,null,null,null,null,null,null,null,null,null,null,null,null,null,null,"Добавить вид теплоносителя",null,null,null,null,null,null,null,null,null,null,null,null,null,null,null,null,null,null,"add_TYPE_OneRateWithComp_range"]
[null,null,null,null,null,null,null,null,null,null,null,null,null,null,"2020-07-01",{"$f":"IF(MONTH(O367)<7,\"30.06.\",\"31.12.\")&YEAR(O367)","v":"31.12.2020"},null,1]
[null,null,null,null,null,null,null,null,null,null,null,null,null,null,null,null,null,null,"Добавить вид теплоносителя",null,null,null,null,null,null,null,null,null,null,null,null,null,null,null,null,null,null,"add_TYPE_OneRateWithComp_range"]
[null,null,null,null,null,null,null,null,null,null,null,null,null,null,"2021-01-01",{"$f":"IF(MONTH(O369)<7,\"30.06.\",\"31.12.\")&YEAR(O369)","v":"30.06.2021"},null,1]
[null,null,null,null,null,null,null,null,null,null,null,null,null,null,null,null,null,null,"Добавить вид теплоносителя",null,null,null,null,null,null,null,null,null,null,null,null,null,null,null,null,null,null,"add_TYPE_OneRateWithComp_range"]
[null,null,null,null,null,null,null,null,null,null,null,null,null,null,"2021-07-01",{"$f":"IF(MONTH(O371)<7,\"30.06.\",\"31.12.\")&YEAR(O371)","v":"31.12.2021"},null,1]
[null,null,null,null,null,null,null,null,null,null,null,null,null,null,null,null,null,null,"Добавить вид теплоносителя",null,null,null,null,null,null,null,null,null,null,null,null,null,null,null,null,null,null,"add_TYPE_OneRateWithComp_range"]
[null,null,null,null,null,null,null,null,null,null,null,null,null,null,"2022-01-01",{"$f":"IF(MONTH(O373)<7,\"30.06.\",\"31.12.\")&YEAR(O373)","v":"30.06.2022"},null,1]
[null,null,null,null,null,null,null,null,null,null,null,null,null,null,null,null,null,null,"Добавить вид теплоносителя",null,null,null,null,null,null,null,null,null,null,null,null,null,null,null,null,null,null,"add_TYPE_OneRateWithComp_range"]
[null,null,null,null,null,null,null,null,null,null,null,null,null,null,"2022-07-01",{"$f":"IF(MONTH(O375)<7,\"30.06.\",\"31.12.\")&YEAR(O375)","v":"31.12.2022"},null,1]
[null,null,null,null,null,null,null,null,null,null,null,null,null,null,null,null,null,null,"Добавить вид теплоносителя",null,null,null,null,null,null,null,null,null,null,null,null,null,null,null,null,null,null,"add_TYPE_OneRateWithComp_range"]
[null,null,null,null,null,null,null,null,null,null,null,null,null,null,"2023-01-01",{"$f":"IF(MONTH(O377)<7,\"30.06.\",\"31.12.\")&YEAR(O377)","v":"30.06.2023"},null,1]
[null,null,null,null,null,null,null,null,null,null,null,null,null,null,null,null,null,null,"Добавить вид теплоносителя",null,null,null,null,null,null,null,null,null,null,null,null,null,null,null,null,null,null,"add_TYPE_OneRateWithComp_range"]
[null,null,null,null,null,null,null,null,null,null,null,null,null,null,"2023-07-01",{"$f":"IF(MONTH(O379)<7,\"30.06.\",\"31.12.\")&YEAR(O379)","v":"31.12.2023"},null,1]
[null,null,null,null,null,null,null,null,null,null,null,null,null,null,null,null,null,null,"Добавить вид теплоносителя",null,null,null,null,null,null,null,null,null,null,null,null,null,null,null,null,null,null,"add_TYPE_OneRateWithComp_range"]
[]
[null,null,null,null,null,null,null,null,"Добавить систему",null,null,null,null,null,null,null,null,null,null,null,null,null,null,null,null,null,null,"add_SYSTEM_OneRateWithComp_range"]
[null,null,null,null,null,"Добавить территорию",null,null,null,null,null,null,null,null,null,null,null,null,null,null,null,null,null,null,"add_TERRITORY_OneRateWithComp_range"]
["add_TERRITORY_OneRateWithComp_range","1став с комп"]
[null,null,null,null,"1",null,"да","1",null,null,null,null,null,null,{"$f":"List02_StartDate","v":"2019-01-01"},{"$f":"IF(MONTH(O385)<7,\"30.06.\",\"31.12.\")&YEAR(O385)","v":"30.06.2019"},null,1]
[null,null,null,null,null,null,null,null,null,null,null,null,null,null,null,null,null,null,"Добавить вид теплоносителя",null,null,null,null,null,null,null,null,null,null,null,null,null,null,null,null,null,null,"add_TYPE_OneRateWithComp_range"]
[null,null,null,null,null,null,null,null,null,null,null,null,null,null,"2019-07-01",{"$f":"IF(MONTH(O387)<7,\"30.06.\",\"31.12.\")&YEAR(O387)","v":"31.12.2019"},null,1]
[null,null,null,null,null,null,null,null,null,null,null,null,null,null,null,null,null,null,"Добавить вид теплоносителя",null,null,null,null,null,null,null,null,null,null,null,null,null,null,null,null,null,null,"add_TYPE_OneRateWithComp_range"]
[null,null,null,null,null,null,null,null,null,null,null,null,null,null,"2020-01-01",{"$f":"IF(MONTH(O389)<7,\"30.06.\",\"31.12.\")&YEAR(O389)","v":"30.06.2020"},null,1]
[null,null,null,null,null,null,null,null,null,null,null,null,null,null,null,null,null,null,"Добавить вид теплоносителя",null,null,null,null,null,null,null,null,null,null,null,null,null,null,null,null,null,null,"add_TYPE_OneRateWithComp_range"]
[null,null,null,null,null,null,null,null,null,null,null,null,null,null,"2020-07-01",{"$f":"IF(MONTH(O391)<7,\"30.06.\",\"31.12.\")&YEAR(O391)","v":"31.12.2020"},null,1]
[null,null,null,null,null,null,null,null,null,null,null,null,null,null,null,null,null,null,"Добавить вид теплоносителя",null,null,null,null,null,null,null,null,null,null,null,null,null,null,null,null,null,null,"add_TYPE_OneRateWithComp_range"]
[null,null,null,null,null,null,null,null,null,null,null,null,null,null,"2021-01-01",{"$f":"IF(MONTH(O393)<7,\"30.06.\",\"31.12.\")&YEAR(O393)","v":"30.06.2021"},null,1]
[null,null,null,null,null,null,null,null,null,null,null,null,null,null,null,null,null,null,"Добавить вид теплоносителя",null,null,null,null,null,null,null,null,null,null,null,null,null,null,null,null,null,null,"add_TYPE_OneRateWithComp_range"]
[null,null,null,null,null,null,null,null,null,null,null,null,null,null,"2021-07-01",{"$f":"IF(MONTH(O395)<7,\"30.06.\",\"31.12.\")&YEAR(O395)","v":"31.12.2021"},null,1]
[null,null,null,null,null,null,null,null,null,null,null,null,null,null,null,null,null,null,"Добавить вид теплоносителя",null,null,null,null,null,null,null,null,null,null,null,null,null,null,null,null,null,null,"add_TYPE_OneRateWithComp_range"]
[null,null,null,null,null,null,null,null,null,null,null,null,null,null,"2022-01-01",{"$f":"IF(MONTH(O397)<7,\"30.06.\",\"31.12.\")&YEAR(O397)","v":"30.06.2022"},null,1]
[null,null,null,null,null,null,null,null,null,null,null,null,null,null,null,null,null,null,"Добавить вид теплоносителя",null,null,null,null,null,null,null,null,null,null,null,null,null,null,null,null,null,null,"add_TYPE_OneRateWithComp_range"]
[null,null,null,null,null,null,null,null,null,null,null,null,null,null,"2022-07-01",{"$f":"IF(MONTH(O399)<7,\"30.06.\",\"31.12.\")&YEAR(O399)","v":"31.12.2022"},null,1]
[null,null,null,null,null,null,null,null,null,null,null,null,null,null,null,null,null,null,"Добавить вид теплоносителя",null,null,null,null,null,null,null,null,null,null,null,null,null,null,null,null,null,null,"add_TYPE_OneRateWithComp_range"]
[null,null,null,null,null,null,null,null,null,null,null,null,null,null,"2023-01-01",{"$f":"IF(MONTH(O401)<7,\"30.06.\",\"31.12.\")&YEAR(O401)","v":"30.06.2023"},null,1]
[null,null,null,null,null,null,null,null,null,null,null,null,null,null,null,null,null,null,"Добавить вид теплоносителя",null,null,null,null,null,null,null,null,null,null,null,null,null,null,null,null,null,null,"add_TYPE_OneRateWithComp_range"]
[null,null,null,null,null,null,null,null,null,null,null,null,null,null,"2023-07-01",{"$f":"IF(MONTH(O403)<7,\"30.06.\",\"31.12.\")&YEAR(O403)","v":"31.12.2023"},null,1]
[null,null,null,null,null,null,null,null,null,null,null,null,null,null,null,null,null,null,"Добавить вид теплоносителя",null,null,null,null,null,null,null,null,null,null,null,null,null,null,null,null,null,null,"add_TYPE_OneRateWithComp_range"]
[]
[null,null,null,null,null,null,null,null,"Добавить систему",null,null,null,null,null,null,null,null,null,null,null,null,null,null,null,null,null,null,"add_SYSTEM_OneRateWithComp_range"]
["add_SYSTEM_OneRateWithComp_range","1став с комп"]
[null,null,null,null,null,null,null,"1",null,null,null,null,null,null,{"$f":"List02_StartDate","v":"2019-01-01"},{"$f":"IF(MONTH(O408)<7,\"30.06.\",\"31.12.\")&YEAR(O408)","v":"30.06.2019"},null,1]
[null,null,null,null,null,null,null,null,null,null,null,null,null,null,null,null,null,null,"Добавить вид теплоносителя",null,null,null,null,null,null,null,null,null,null,null,null,null,null,null,null,null,null,"add_TYPE_OneRateWithComp_range"]
[null,null,null,null,null,null,null,null,null,null,null,null,null,null,"2019-07-01",{"$f":"IF(MONTH(O410)<7,\"30.06.\",\"31.12.\")&YEAR(O410)","v":"31.12.2019"},null,1]
[null,null,null,null,null,null,null,null,null,null,null,null,null,null,null,null,null,null,"Добавить вид теплоносителя",null,null,null,null,null,null,null,null,null,null,null,null,null,null,null,null,null,null,"add_TYPE_OneRateWithComp_range"]
[null,null,null,null,null,null,null,null,null,null,null,null,null,null,"2020-01-01",{"$f":"IF(MONTH(O412)<7,\"30.06.\",\"31.12.\")&YEAR(O412)","v":"30.06.2020"},null,1]
[null,null,null,null,null,null,null,null,null,null,null,null,null,null,null,null,null,null,"Добавить вид теплоносителя",null,null,null,null,null,null,null,null,null,null,null,null,null,null,null,null,null,null,"add_TYPE_OneRateWithComp_range"]
[null,null,null,null,null,null,null,null,null,null,null,null,null,null,"2020-07-01",{"$f":"IF(MONTH(O414)<7,\"30.06.\",\"31.12.\")&YEAR(O414)","v":"31.12.2020"},null,1]
[null,null,null,null,null,null,null,null,null,null,null,null,null,null,null,null,null,null,"Добавить вид теплоносителя",null,null,null,null,null,null,null,null,null,null,null,null,null,null,null,null,null,null,"add_TYPE_OneRateWithComp_range"]
[null,null,null,null,null,null,null,null,null,null,null,null,null,null,"2021-01-01",{"$f":"IF(MONTH(O416)<7,\"30.06.\",\"31.12.\")&YEAR(O416)","v":"30.06.2021"},null,1]
[null,null,null,null,null,null,null,null,null,null,null,null,null,null,null,null,null,null,"Добавить вид теплоносителя",null,null,null,null,null,null,null,null,null,null,null,null,null,null,null,null,null,null,"add_TYPE_OneRateWithComp_range"]
[null,null,null,null,null,null,null,null,null,null,null,null,null,null,"2021-07-01",{"$f":"IF(MONTH(O418)<7,\"30.06.\",\"31.12.\")&YEAR(O418)","v":"31.12.2021"},null,1]
[null,null,null,null,null,null,null,null,null,null,null,null,null,null,null,null,null,null,"Добавить вид теплоносителя",null,null,null,null,null,null,null,null,null,null,null,null,null,null,null,null,null,null,"add_TYPE_OneRateWithComp_range"]
[null,null,null,null,null,null,null,null,null,null,null,null,null,null,"2022-01-01",{"$f":"IF(MONTH(O420)<7,\"30.06.\",\"31.12.\")&YEAR(O420)","v":"30.06.2022"},null,1]
[null,null,null,null,null,null,null,null,null,null,null,null,null,null,null,null,null,null,"Добавить вид теплоносителя",null,null,null,null,null,null,null,null,null,null,null,null,null,null,null,null,null,null,"add_TYPE_OneRateWithComp_range"]
[null,null,null,null,null,null,null,null,null,null,null,null,null,null,"2022-07-01",{"$f":"IF(MONTH(O422)<7,\"30.06.\",\"31.12.\")&YEAR(O422)","v":"31.12.2022"},null,1]
[null,null,null,null,null,null,null,null,null,null,null,null,null,null,null,null,null,null,"Добавить вид теплоносителя",null,null,null,null,null,null,null,null,null,null,null,null,null,null,null,null,null,null,"add_TYPE_OneRateWithComp_range"]
[null,null,null,null,null,null,null,null,null,null,null,null,null,null,"2023-01-01",{"$f":"IF(MONTH(O424)<7,\"30.06.\",\"31.12.\")&YEAR(O424)","v":"30.06.2023"},null,1]
[null,null,null,null,null,null,null,null,null,null,null,null,null,null,null,null,null,null,"Добавить вид теплоносителя",null,null,null,null,null,null,null,null,null,null,null,null,null,null,null,null,null,null,"add_TYPE_OneRateWithComp_range"]
[null,null,null,null,null,null,null,null,null,null,null,null,null,null,"2023-07-01",{"$f":"IF(MONTH(O426)<7,\"30.06.\",\"31.12.\")&YEAR(O426)","v":"31.12.2023"},null,1]
[null,null,null,null,null,null,null,null,null,null,null,null,null,null,null,null,null,null,"Добавить вид теплоносителя",null,null,null,null,null,null,null,null,null,null,null,null,null,null,null,null,null,null,"add_TYPE_OneRateWithComp_range"]
[]
["add_PERIOD_OneRateWithComp_range","1став с комп"]
[null,null,null,null,null,null,null,null,null,null,null,null,null,null,null,{"$f":"IF(MONTH(O430)<7,\"30.06.\",\"31.12.\")&YEAR(O430)","v":"30.06.1900"},null,1]
[null,null,null,null,null,null,null,null,null,null,null,null,null,null,null,null,null,null,"Добавить вид теплоносителя",null,null,null,null,null,null,null,null,null,null,null,null,null,null,null,null,null,null,"add_TYPE_OneRateWithComp_range"]
["add_TYPE_OneRateWithComp_range","1став с комп"]
[null,null,null,null,null,null,null,null,null,null,null,null,null,null,null,null,null,1]
["add_NameTwoRateWithComp_range","2став с комп"]
[null,null,null,null,"1",null,"да","1",null,null,null,null,null,null,{"$f":"List02_StartDate","v":"2019-01-01"},{"$f":"IF(MONTH(O435)<7,\"30.06.\",\"31.12.\")&YEAR(O435)","v":"30.06.2019"},null,1]
[null,null,null,null,null,null,null,null,null,null,null,null,null,null,null,null,null,null,"Добавить вид теплоносителя",null,null,null,null,null,null,null,null,null,null,null,null,null,null,null,null,null,null,"add_TYPE_TwoRateWithComp_range"]
[null,null,null,null,null,null,null,null,null,null,null,null,null,null,"2019-07-01",{"$f":"IF(MONTH(O437)<7,\"30.06.\",\"31.12.\")&YEAR(O437)","v":"31.12.2019"},null,1]
[null,null,null,null,null,null,null,null,null,null,null,null,null,null,null,null,null,null,"Добавить вид теплоносителя",null,null,null,null,null,null,null,null,null,null,null,null,null,null,null,null,null,null,"add_TYPE_TwoRateWithComp_range"]
[null,null,null,null,null,null,null,null,null,null,null,null,null,null,"2020-01-01",{"$f":"IF(MONTH(O439)<7,\"30.06.\",\"31.12.\")&YEAR(O439)","v":"30.06.2020"},null,1]
[null,null,null,null,null,null,null,null,null,null,null,null,null,null,null,null,null,null,"Добавить вид теплоносителя",null,null,null,null,null,null,null,null,null,null,null,null,null,null,null,null,null,null,"add_TYPE_TwoRateWithComp_range"]
[null,null,null,null,null,null,null,null,null,null,null,null,null,null,"2020-07-01",{"$f":"IF(MONTH(O441)<7,\"30.06.\",\"31.12.\")&YEAR(O441)","v":"31.12.2020"},null,1]
[null,null,null,null,null,null,null,null,null,null,null,null,null,null,null,null,null,null,"Добавить вид теплоносителя",null,null,null,null,null,null,null,null,null,null,null,null,null,null,null,null,null,null,"add_TYPE_TwoRateWithComp_range"]
[null,null,null,null,null,null,null,null,null,null,null,null,null,null,"2021-01-01",{"$f":"IF(MONTH(O443)<7,\"30.06.\",\"31.12.\")&YEAR(O443)","v":"30.06.2021"},null,1]
[null,null,null,null,null,null,null,null,null,null,null,null,null,null,null,null,null,null,"Добавить вид теплоносителя",null,null,null,null,null,null,null,null,null,null,null,null,null,null,null,null,null,null,"add_TYPE_TwoRateWithComp_range"]
[null,null,null,null,null,null,null,null,null,null,null,null,null,null,"2021-07-01",{"$f":"IF(MONTH(O445)<7,\"30.06.\",\"31.12.\")&YEAR(O445)","v":"31.12.2021"},null,1]
[null,null,null,null,null,null,null,null,null,null,null,null,null,null,null,null,null,null,"Добавить вид теплоносителя",null,null,null,null,null,null,null,null,null,null,null,null,null,null,null,null,null,null,"add_TYPE_TwoRateWithComp_range"]
[null,null,null,null,null,null,null,null,null,null,null,null,null,null,"2022-01-01",{"$f":"IF(MONTH(O447)<7,\"30.06.\",\"31.12.\")&YEAR(O447)","v":"30.06.2022"},null,1]
[null,null,null,null,null,null,null,null,null,null,null,null,null,null,null,null,null,null,"Добавить вид теплоносителя",null,null,null,null,null,null,null,null,null,null,null,null,null,null,null,null,null,null,"add_TYPE_TwoRateWithComp_range"]
[null,null,null,null,null,null,null,null,null,null,null,null,null,null,"2022-07-01",{"$f":"IF(MONTH(O449)<7,\"30.06.\",\"31.12.\")&YEAR(O449)","v":"31.12.2022"},null,1]
[null,null,null,null,null,null,null,null,null,null,null,null,null,null,null,null,null,null,"Добавить вид теплоносителя",null,null,null,null,null,null,null,null,null,null,null,null,null,null,null,null,null,null,"add_TYPE_TwoRateWithComp_range"]
[null,null,null,null,null,null,null,null,null,null,null,null,null,null,"2023-01-01",{"$f":"IF(MONTH(O451)<7,\"30.06.\",\"31.12.\")&YEAR(O451)","v":"30.06.2023"},null,1]
[null,null,null,null,null,null,null,null,null,null,null,null,null,null,null,null,null,null,"Добавить вид теплоносителя",null,null,null,null,null,null,null,null,null,null,null,null,null,null,null,null,null,null,"add_TYPE_TwoRateWithComp_range"]
[null,null,null,null,null,null,null,null,null,null,null,null,null,null,"2023-07-01",{"$f":"IF(MONTH(O453)<7,\"30.06.\",\"31.12.\")&YEAR(O453)","v":"31.12.2023"},null,1]
[null,null,null,null,null,null,null,null,null,null,null,null,null,null,null,null,null,null,"Добавить вид теплоносителя",null,null,null,null,null,null,null,null,null,null,null,null,null,null,null,null,null,null,"add_TYPE_TwoRateWithComp_range"]
[]
[null,null,null,null,null,null,null,null,"Добавить систему",null,null,null,null,null,null,null,null,null,null,null,null,null,null,null,null,null,null,"add_SYSTEM_TwoRateWithComp_range"]
[null,null,null,null,null,"Добавить территорию",null,null,null,null,null,null,null,null,null,null,null,null,null,null,null,null,null,null,"add_TERRITORY_TwoRateWithComp_range"]
["add_TERRITORY_TwoRateWithComp_range","2став с комп"]
[null,null,null,null,"1",null,"да","1",null,null,null,null,null,null,{"$f":"List02_StartDate","v":"2019-01-01"},{"$f":"IF(MONTH(O459)<7,\"30.06.\",\"31.12.\")&YEAR(O459)","v":"30.06.2019"},null,1]
[null,null,null,null,null,null,null,null,null,null,null,null,null,null,null,null,null,null,"Добавить вид теплоносителя",null,null,null,null,null,null,null,null,null,null,null,null,null,null,null,null,null,null,"add_TYPE_TwoRateWithComp_range"]
[null,null,null,null,null,null,null,null,null,null,null,null,null,null,"2019-07-01",{"$f":"IF(MONTH(O461)<7,\"30.06.\",\"31.12.\")&YEAR(O461)","v":"31.12.2019"},null,1]
[null,null,null,null,null,null,null,null,null,null,null,null,null,null,null,null,null,null,"Добавить вид теплоносителя",null,null,null,null,null,null,null,null,null,null,null,null,null,null,null,null,null,null,"add_TYPE_TwoRateWithComp_range"]
[null,null,null,null,null,null,null,null,null,null,null,null,null,null,"2020-01-01",{"$f":"IF(MONTH(O463)<7,\"30.06.\",\"31.12.\")&YEAR(O463)","v":"30.06.2020"},null,1]
[null,null,null,null,null,null,null,null,null,null,null,null,null,null,null,null,null,null,"Добавить вид теплоносителя",null,null,null,null,null,null,null,null,null,null,null,null,null,null,null,null,null,null,"add_TYPE_TwoRateWithComp_range"]
[null,null,null,null,null,null,null,null,null,null,null,null,null,null,"2020-07-01",{"$f":"IF(MONTH(O465)<7,\"30.06.\",\"31.12.\")&YEAR(O465)","v":"31.12.2020"},null,1]
[null,null,null,null,null,null,null,null,null,null,null,null,null,null,null,null,null,null,"Добавить вид теплоносителя",null,null,null,null,null,null,null,null,null,null,null,null,null,null,null,null,null,null,"add_TYPE_TwoRateWithComp_range"]
[null,null,null,null,null,null,null,null,null,null,null,null,null,null,"2021-01-01",{"$f":"IF(MONTH(O467)<7,\"30.06.\",\"31.12.\")&YEAR(O467)","v":"30.06.2021"},null,1]
[null,null,null,null,null,null,null,null,null,null,null,null,null,null,null,null,null,null,"Добавить вид теплоносителя",null,null,null,null,null,null,null,null,null,null,null,null,null,null,null,null,null,null,"add_TYPE_TwoRateWithComp_range"]
[null,null,null,null,null,null,null,null,null,null,null,null,null,null,"2021-07-01",{"$f":"IF(MONTH(O469)<7,\"30.06.\",\"31.12.\")&YEAR(O469)","v":"31.12.2021"},null,1]
[null,null,null,null,null,null,null,null,null,null,null,null,null,null,null,null,null,null,"Добавить вид теплоносителя",null,null,null,null,null,null,null,null,null,null,null,null,null,null,null,null,null,null,"add_TYPE_TwoRateWithComp_range"]
[null,null,null,null,null,null,null,null,null,null,null,null,null,null,"2022-01-01",{"$f":"IF(MONTH(O471)<7,\"30.06.\",\"31.12.\")&YEAR(O471)","v":"30.06.2022"},null,1]
[null,null,null,null,null,null,null,null,null,null,null,null,null,null,null,null,null,null,"Добавить вид теплоносителя",null,null,null,null,null,null,null,null,null,null,null,null,null,null,null,null,null,null,"add_TYPE_TwoRateWithComp_range"]
[null,null,null,null,null,null,null,null,null,null,null,null,null,null,"2022-07-01",{"$f":"IF(MONTH(O473)<7,\"30.06.\",\"31.12.\")&YEAR(O473)","v":"31.12.2022"},null,1]
[null,null,null,null,null,null,null,null,null,null,null,null,null,null,null,null,null,null,"Добавить вид теплоносителя",null,null,null,null,null,null,null,null,null,null,null,null,null,null,null,null,null,null,"add_TYPE_TwoRateWithComp_range"]
[null,null,null,null,null,null,null,null,null,null,null,null,null,null,"2023-01-01",{"$f":"IF(MONTH(O475)<7,\"30.06.\",\"31.12.\")&YEAR(O475)","v":"30.06.2023"},null,1]
[null,null,null,null,null,null,null,null,null,null,null,null,null,null,null,null,null,null,"Добавить вид теплоносителя",null,null,null,null,null,null,null,null,null,null,null,null,null,null,null,null,null,null,"add_TYPE_TwoRateWithComp_range"]
[null,null,null,null,null,null,null,null,null,null,null,null,null,null,"2023-07-01",{"$f":"IF(MONTH(O477)<7,\"30.06.\",\"31.12.\")&YEAR(O477)","v":"31.12.2023"},null,1]
[null,null,null,null,null,null,null,null,null,null,null,null,null,null,null,null,null,null,"Добавить вид теплоносителя",null,null,null,null,null,null,null,null,null,null,null,null,null,null,null,null,null,null,"add_TYPE_TwoRateWithComp_range"]
[]
[null,null,null,null,null,null,null,null,"Добавить систему",null,null,null,null,null,null,null,null,null,null,null,null,null,null,null,null,null,null,"add_SYSTEM_TwoRateWithComp_range"]
["add_SYSTEM_TwoRateWithComp_range","2став с комп"]
[null,null,null,null,null,null,null,"1",null,null,null,null,null,null,{"$f":"List02_StartDate","v":"2019-01-01"},{"$f":"IF(MONTH(O482)<7,\"30.06.\",\"31.12.\")&YEAR(O482)","v":"30.06.2019"},null,1]
[null,null,null,null,null,null,null,null,null,null,null,null,null,null,null,null,null,null,"Добавить вид теплоносителя",null,null,null,null,null,null,null,null,null,null,null,null,null,null,null,null,null,null,"add_TYPE_TwoRateWithComp_range"]
[null,null,null,null,null,null,null,null,null,null,null,null,null,null,"2019-07-01",{"$f":"IF(MONTH(O484)<7,\"30.06.\",\"31.12.\")&YEAR(O484)","v":"31.12.2019"},null,1]
[null,null,null,null,null,null,null,null,null,null,null,null,null,null,null,null,null,null,"Добавить вид теплоносителя",null,null,null,null,null,null,null,null,null,null,null,null,null,null,null,null,null,null,"add_TYPE_TwoRateWithComp_range"]
[null,null,null,null,null,null,null,null,null,null,null,null,null,null,"2020-01-01",{"$f":"IF(MONTH(O486)<7,\"30.06.\",\"31.12.\")&YEAR(O486)","v":"30.06.2020"},null,1]
[null,null,null,null,null,null,null,null,null,null,null,null,null,null,null,null,null,null,"Добавить вид теплоносителя",null,null,null,null,null,null,null,null,null,null,null,null,null,null,null,null,null,null,"add_TYPE_TwoRateWithComp_range"]
[null,null,null,null,null,null,null,null,null,null,null,null,null,null,"2020-07-01",{"$f":"IF(MONTH(O488)<7,\"30.06.\",\"31.12.\")&YEAR(O488)","v":"31.12.2020"},null,1]
[null,null,null,null,null,null,null,null,null,null,null,null,null,null,null,null,null,null,"Добавить вид теплоносителя",null,null,null,null,null,null,null,null,null,null,null,null,null,null,null,null,null,null,"add_TYPE_TwoRateWithComp_range"]
[null,null,null,null,null,null,null,null,null,null,null,null,null,null,"2021-01-01",{"$f":"IF(MONTH(O490)<7,\"30.06.\",\"31.12.\")&YEAR(O490)","v":"30.06.2021"},null,1]
[null,null,null,null,null,null,null,null,null,null,null,null,null,null,null,null,null,null,"Добавить вид теплоносителя",null,null,null,null,null,null,null,null,null,null,null,null,null,null,null,null,null,null,"add_TYPE_TwoRateWithComp_range"]
[null,null,null,null,null,null,null,null,null,null,null,null,null,null,"2021-07-01",{"$f":"IF(MONTH(O492)<7,\"30.06.\",\"31.12.\")&YEAR(O492)","v":"31.12.2021"},null,1]
[null,null,null,null,null,null,null,null,null,null,null,null,null,null,null,null,null,null,"Добавить вид теплоносителя",null,null,null,null,null,null,null,null,null,null,null,null,null,null,null,null,null,null,"add_TYPE_TwoRateWithComp_range"]
[null,null,null,null,null,null,null,null,null,null,null,null,null,null,"2022-01-01",{"$f":"IF(MONTH(O494)<7,\"30.06.\",\"31.12.\")&YEAR(O494)","v":"30.06.2022"},null,1]
[null,null,null,null,null,null,null,null,null,null,null,null,null,null,null,null,null,null,"Добавить вид теплоносителя",null,null,null,null,null,null,null,null,null,null,null,null,null,null,null,null,null,null,"add_TYPE_TwoRateWithComp_range"]
[null,null,null,null,null,null,null,null,null,null,null,null,null,null,"2022-07-01",{"$f":"IF(MONTH(O496)<7,\"30.06.\",\"31.12.\")&YEAR(O496)","v":"31.12.2022"},null,1]
[null,null,null,null,null,null,null,null,null,null,null,null,null,null,null,null,null,null,"Добавить вид теплоносителя",null,null,null,null,null,null,null,null,null,null,null,null,null,null,null,null,null,null,"add_TYPE_TwoRateWithComp_range"]
[null,null,null,null,null,null,null,null,null,null,null,null,null,null,"2023-01-01",{"$f":"IF(MONTH(O498)<7,\"30.06.\",\"31.12.\")&YEAR(O498)","v":"30.06.2023"},null,1]
[null,null,null,null,null,null,null,null,null,null,null,null,null,null,null,null,null,null,"Добавить вид теплоносителя",null,null,null,null,null,null,null,null,null,null,null,null,null,null,null,null,null,null,"add_TYPE_TwoRateWithComp_range"]
[null,null,null,null,null,null,null,null,null,null,null,null,null,null,"2023-07-01",{"$f":"IF(MONTH(O500)<7,\"30.06.\",\"31.12.\")&YEAR(O500)","v":"31.12.2023"},null,1]
[null,null,null,null,null,null,null,null,null,null,null,null,null,null,null,null,null,null,"Добавить вид теплоносителя",null,null,null,null,null,null,null,null,null,null,null,null,null,null,null,null,null,null,"add_TYPE_TwoRateWithComp_range"]
[]
["add_PERIOD_TwoRateWithComp_range","2став с комп"]
[null,null,null,null,null,null,null,null,null,null,null,null,null,null,null,{"$f":"IF(MONTH(O504)<7,\"30.06.\",\"31.12.\")&YEAR(O504)","v":"30.06.1900"},null,1]
[null,null,null,null,null,null,null,null,null,null,null,null,null,null,null,null,null,null,"Добавить вид теплоносителя",null,null,null,null,null,null,null,null,null,null,null,null,null,null,null,null,null,null,"add_TYPE_TwoRateWithComp_range"]
["add_TYPE_TwoRateWithComp_range","2став с комп"]
[null,null,null,null,null,null,null,null,null,null,null,null,null,null,null,null,null,1]
["add_NameTwoRateWithSheme_range"]
[null,null,null,null,"1",null,"да","1",null,null,"1",null,null,null,{"$f":"List02_StartDate","v":"2019-01-01"},{"$f":"IF(MONTH(O509)<7,\"30.06.\",\"31.12.\")&YEAR(O509)","v":"30.06.2019"},null,1]
[null,null,null,null,null,null,null,null,null,null,null,null,null,null,null,null,null,null,"Добавить вид теплоносителя",null,null,null,null,null,null,null,null,null,null,null,null,null,null,null,null,null,"add_TYPE_TwoRateWithSheme_range"]
[null,null,null,null,null,null,null,null,null,null,null,null,null,null,"2019-07-01",{"$f":"IF(MONTH(O511)<7,\"30.06.\",\"31.12.\")&YEAR(O511)","v":"31.12.2019"},null,1]
[null,null,null,null,null,null,null,null,null,null,null,null,null,null,null,null,null,null,"Добавить вид теплоносителя",null,null,null,null,null,null,null,null,null,null,null,null,null,null,null,null,null,"add_TYPE_TwoRateWithSheme_range"]
[null,null,null,null,null,null,null,null,null,null,null,null,null,null,"2020-01-01",{"$f":"IF(MONTH(O513)<7,\"30.06.\",\"31.12.\")&YEAR(O513)","v":"30.06.2020"},null,1]
[null,null,null,null,null,null,null,null,null,null,null,null,null,null,null,null,null,null,"Добавить вид теплоносителя",null,null,null,null,null,null,null,null,null,null,null,null,null,null,null,null,null,"add_TYPE_TwoRateWithSheme_range"]
[null,null,null,null,null,null,null,null,null,null,null,null,null,null,"2020-07-01",{"$f":"IF(MONTH(O515)<7,\"30.06.\",\"31.12.\")&YEAR(O515)","v":"31.12.2020"},null,1]
[null,null,null,null,null,null,null,null,null,null,null,null,null,null,null,null,null,null,"Добавить вид теплоносителя",null,null,null,null,null,null,null,null,null,null,null,null,null,null,null,null,null,"add_TYPE_TwoRateWithSheme_range"]
[null,null,null,null,null,null,null,null,null,null,null,null,null,null,"2021-01-01",{"$f":"IF(MONTH(O517)<7,\"30.06.\",\"31.12.\")&YEAR(O517)","v":"30.06.2021"},null,1]
[null,null,null,null,null,null,null,null,null,null,null,null,null,null,null,null,null,null,"Добавить вид теплоносителя",null,null,null,null,null,null,null,null,null,null,null,null,null,null,null,null,null,"add_TYPE_TwoRateWithSheme_range"]
[null,null,null,null,null,null,null,null,null,null,null,null,null,null,"2021-07-01",{"$f":"IF(MONTH(O519)<7,\"30.06.\",\"31.12.\")&YEAR(O519)","v":"31.12.2021"},null,1]
[null,null,null,null,null,null,null,null,null,null,null,null,null,null,null,null,null,null,"Добавить вид теплоносителя",null,null,null,null,null,null,null,null,null,null,null,null,null,null,null,null,null,"add_TYPE_TwoRateWithSheme_range"]
[null,null,null,null,null,null,null,null,null,null,null,null,null,null,"2022-01-01",{"$f":"IF(MONTH(O521)<7,\"30.06.\",\"31.12.\")&YEAR(O521)","v":"30.06.2022"},null,1]
[null,null,null,null,null,null,null,null,null,null,null,null,null,null,null,null,null,null,"Добавить вид теплоносителя",null,null,null,null,null,null,null,null,null,null,null,null,null,null,null,null,null,"add_TYPE_TwoRateWithSheme_range"]
[null,null,null,null,null,null,null,null,null,null,null,null,null,null,"2022-07-01",{"$f":"IF(MONTH(O523)<7,\"30.06.\",\"31.12.\")&YEAR(O523)","v":"31.12.2022"},null,1]
[null,null,null,null,null,null,null,null,null,null,null,null,null,null,null,null,null,null,"Добавить вид теплоносителя",null,null,null,null,null,null,null,null,null,null,null,null,null,null,null,null,null,"add_TYPE_TwoRateWithSheme_range"]
[null,null,null,null,null,null,null,null,null,null,null,null,null,null,"2023-01-01",{"$f":"IF(MONTH(O525)<7,\"30.06.\",\"31.12.\")&YEAR(O525)","v":"30.06.2023"},null,1]
[null,null,null,null,null,null,null,null,null,null,null,null,null,null,null,null,null,null,"Добавить вид теплоносителя",null,null,null,null,null,null,null,null,null,null,null,null,null,null,null,null,null,"add_TYPE_TwoRateWithSheme_range"]
[null,null,null,null,null,null,null,null,null,null,null,null,null,null,"2023-07-01",{"$f":"IF(MONTH(O527)<7,\"30.06.\",\"31.12.\")&YEAR(O527)","v":"31.12.2023"},null,1]
[null,null,null,null,null,null,null,null,null,null,null,null,null,null,null,null,null,null,"Добавить вид теплоносителя",null,null,null,null,null,null,null,null,null,null,null,null,null,null,null,null,null,"add_TYPE_TwoRateWithSheme_range"]
[null,null,null,null,null,null,null,null,null,null,null,null,null,null,null,null,null,null,null,null,null,null,null,null,null,null,null,null,null,null,null,null,null,null,"add_PERIOD_TwoRateWithSheme_range"]
[null,null,null,null,null,null,null,null,null,null,null,"Добавить схему подключения",null,null,null,null,null,null,null,null,null,null,null,null,null,null,null,null,null,"add_SHEME_TwoRateWithSheme_range"]
[null,null,null,null,null,null,null,null,"Добавить систему",null,null,null,null,null,null,null,null,null,null,null,null,null,null,null,null,null,"add_SYSTEM_TwoRateWithSheme_range"]
[null,null,null,null,null,"Добавить территорию",null,null,null,null,null,null,null,null,null,null,null,null,null,null,null,null,null,"add_TERRITORY_TwoRateWithSheme_range"]
["add_TERRITORY_TwoRateWithSheme_range"]
[null,null,null,null,"1",null,"да","1",null,null,"1",null,null,null,{"$f":"List02_StartDate","v":"2019-01-01"},{"$f":"IF(MONTH(O534)<7,\"30.06.\",\"31.12.\")&YEAR(O534)","v":"30.06.2019"},null,1]
[null,null,null,null,null,null,null,null,null,null,null,null,null,null,null,null,null,null,"Добавить вид теплоносителя",null,null,null,null,null,null,null,null,null,null,null,null,null,null,null,null,null,"add_TYPE_TwoRateWithSheme_range"]
[null,null,null,null,null,null,null,null,null,null,null,null,null,null,"2019-07-01",{"$f":"IF(MONTH(O536)<7,\"30.06.\",\"31.12.\")&YEAR(O536)","v":"31.12.2019"},null,1]
[null,null,null,null,null,null,null,null,null,null,null,null,null,null,null,null,null,null,"Добавить вид теплоносителя",null,null,null,null,null,null,null,null,null,null,null,null,null,null,null,null,null,"add_TYPE_TwoRateWithSheme_range"]
[null,null,null,null,null,null,null,null,null,null,null,null,null,null,"2020-01-01",{"$f":"IF(MONTH(O538)<7,\"30.06.\",\"31.12.\")&YEAR(O538)","v":"30.06.2020"},null,1]
[null,null,null,null,null,null,null,null,null,null,null,null,null,null,null,null,null,null,"Добавить вид теплоносителя",null,null,null,null,null,null,null,null,null,null,null,null,null,null,null,null,null,"add_TYPE_TwoRateWithSheme_range"]
[null,null,null,null,null,null,null,null,null,null,null,null,null,null,"2020-07-01",{"$f":"IF(MONTH(O540)<7,\"30.06.\",\"31.12.\")&YEAR(O540)","v":"31.12.2020"},null,1]
[null,null,null,null,null,null,null,null,null,null,null,null,null,null,null,null,null,null,"Добавить вид теплоносителя",null,null,null,null,null,null,null,null,null,null,null,null,null,null,null,null,null,"add_TYPE_TwoRateWithSheme_range"]
[null,null,null,null,null,null,null,null,null,null,null,null,null,null,"2021-01-01",{"$f":"IF(MONTH(O542)<7,\"30.06.\",\"31.12.\")&YEAR(O542)","v":"30.06.2021"},null,1]
[null,null,null,null,null,null,null,null,null,null,null,null,null,null,null,null,null,null,"Добавить вид теплоносителя",null,null,null,null,null,null,null,null,null,null,null,null,null,null,null,null,null,"add_TYPE_TwoRateWithSheme_range"]
[null,null,null,null,null,null,null,null,null,null,null,null,null,null,"2021-07-01",{"$f":"IF(MONTH(O544)<7,\"30.06.\",\"31.12.\")&YEAR(O544)","v":"31.12.2021"},null,1]
[null,null,null,null,null,null,null,null,null,null,null,null,null,null,null,null,null,null,"Добавить вид теплоносителя",null,null,null,null,null,null,null,null,null,null,null,null,null,null,null,null,null,"add_TYPE_TwoRateWithSheme_range"]
[null,null,null,null,null,null,null,null,null,null,null,null,null,null,"2022-01-01",{"$f":"IF(MONTH(O546)<7,\"30.06.\",\"31.12.\")&YEAR(O546)","v":"30.06.2022"},null,1]
[null,null,null,null,null,null,null,null,null,null,null,null,null,null,null,null,null,null,"Добавить вид теплоносителя",null,null,null,null,null,null,null,null,null,null,null,null,null,null,null,null,null,"add_TYPE_TwoRateWithSheme_range"]
[null,null,null,null,null,null,null,null,null,null,null,null,null,null,"2022-07-01",{"$f":"IF(MONTH(O548)<7,\"30.06.\",\"31.12.\")&YEAR(O548)","v":"31.12.2022"},null,1]
[null,null,null,null,null,null,null,null,null,null,null,null,null,null,null,null,null,null,"Добавить вид теплоносителя",null,null,null,null,null,null,null,null,null,null,null,null,null,null,null,null,null,"add_TYPE_TwoRateWithSheme_range"]
[null,null,null,null,null,null,null,null,null,null,null,null,null,null,"2023-01-01",{"$f":"IF(MONTH(O550)<7,\"30.06.\",\"31.12.\")&YEAR(O550)","v":"30.06.2023"},null,1]
[null,null,null,null,null,null,null,null,null,null,null,null,null,null,null,null,null,null,"Добавить вид теплоносителя",null,null,null,null,null,null,null,null,null,null,null,null,null,null,null,null,null,"add_TYPE_TwoRateWithSheme_range"]
[null,null,null,null,null,null,null,null,null,null,null,null,null,null,"2023-07-01",{"$f":"IF(MONTH(O552)<7,\"30.06.\",\"31.12.\")&YEAR(O552)","v":"31.12.2023"},null,1]
[null,null,null,null,null,null,null,null,null,null,null,null,null,null,null,null,null,null,"Добавить вид теплоносителя",null,null,null,null,null,null,null,null,null,null,null,null,null,null,null,null,null,"add_TYPE_TwoRateWithSheme_range"]
[null,null,null,null,null,null,null,null,null,null,null,null,null,null,null,null,null,null,null,null,null,null,null,null,null,null,null,null,null,null,null,null,null,null,"add_PERIOD_TwoRateWithSheme_range"]
[null,null,null,null,null,null,null,null,null,null,null,"Добавить схему подключения",null,null,null,null,null,null,null,null,null,null,null,null,null,null,null,null,null,"add_SHEME_TwoRateWithSheme_range"]
[null,null,null,null,null,null,null,null,"Добавить систему",null,null,null,null,null,null,null,null,null,null,null,null,null,null,null,null,null,"add_SYSTEM_TwoRateWithSheme_range"]
["add_SYSTEM_TwoRateWithSheme_range"]
[null,null,null,null,null,null,null,"1",null,null,"1",null,null,null,{"$f":"List02_StartDate","v":"2019-01-01"},{"$f":"IF(MONTH(O558)<7,\"30.06.\",\"31.12.\")&YEAR(O558)","v":"30.06.2019"},null,1]
[null,null,null,null,null,null,null,null,null,null,null,null,null,null,null,null,null,null,"Добавить вид теплоносителя",null,null,null,null,null,null,null,null,null,null,null,null,null,null,null,null,null,"add_TYPE_TwoRateWithSheme_range"]
[null,null,null,null,null,null,null,null,null,null,null,null,null,null,"2019-07-01",{"$f":"IF(MONTH(O560)<7,\"30.06.\",\"31.12.\")&YEAR(O560)","v":"31.12.2019"},null,1]
[null,null,null,null,null,null,null,null,null,null,null,null,null,null,null,null,null,null,"Добавить вид теплоносителя",null,null,null,null,null,null,null,null,null,null,null,null,null,null,null,null,null,"add_TYPE_TwoRateWithSheme_range"]
[null,null,null,null,null,null,null,null,null,null,null,null,null,null,"2020-01-01",{"$f":"IF(MONTH(O562)<7,\"30.06.\",\"31.12.\")&YEAR(O562)","v":"30.06.2020"},null,1]
[null,null,null,null,null,null,null,null,null,null,null,null,null,null,null,null,null,null,"Добавить вид теплоносителя",null,null,null,null,null,null,null,null,null,null,null,null,null,null,null,null,null,"add_TYPE_TwoRateWithSheme_range"]
[null,null,null,null,null,null,null,null,null,null,null,null,null,null,"2020-07-01",{"$f":"IF(MONTH(O564)<7,\"30.06.\",\"31.12.\")&YEAR(O564)","v":"31.12.2020"},null,1]
[null,null,null,null,null,null,null,null,null,null,null,null,null,null,null,null,null,null,"Добавить вид теплоносителя",null,null,null,null,null,null,null,null,null,null,null,null,null,null,null,null,null,"add_TYPE_TwoRateWithSheme_range"]
[null,null,null,null,null,null,null,null,null,null,null,null,null,null,"2021-01-01",{"$f":"IF(MONTH(O566)<7,\"30.06.\",\"31.12.\")&YEAR(O566)","v":"30.06.2021"},null,1]
[null,null,null,null,null,null,null,null,null,null,null,null,null,null,null,null,null,null,"Добавить вид теплоносителя",null,null,null,null,null,null,null,null,null,null,null,null,null,null,null,null,null,"add_TYPE_TwoRateWithSheme_range"]
[null,null,null,null,null,null,null,null,null,null,null,null,null,null,"2021-07-01",{"$f":"IF(MONTH(O568)<7,\"30.06.\",\"31.12.\")&YEAR(O568)","v":"31.12.2021"},null,1]
[null,null,null,null,null,null,null,null,null,null,null,null,null,null,null,null,null,null,"Добавить вид теплоносителя",null,null,null,null,null,null,null,null,null,null,null,null,null,null,null,null,null,"add_TYPE_TwoRateWithSheme_range"]
[null,null,null,null,null,null,null,null,null,null,null,null,null,null,"2022-01-01",{"$f":"IF(MONTH(O570)<7,\"30.06.\",\"31.12.\")&YEAR(O570)","v":"30.06.2022"},null,1]
[null,null,null,null,null,null,null,null,null,null,null,null,null,null,null,null,null,null,"Добавить вид теплоносителя",null,null,null,null,null,null,null,null,null,null,null,null,null,null,null,null,null,"add_TYPE_TwoRateWithSheme_range"]
[null,null,null,null,null,null,null,null,null,null,null,null,null,null,"2022-07-01",{"$f":"IF(MONTH(O572)<7,\"30.06.\",\"31.12.\")&YEAR(O572)","v":"31.12.2022"},null,1]
[null,null,null,null,null,null,null,null,null,null,null,null,null,null,null,null,null,null,"Добавить вид теплоносителя",null,null,null,null,null,null,null,null,null,null,null,null,null,null,null,null,null,"add_TYPE_TwoRateWithSheme_range"]
[null,null,null,null,null,null,null,null,null,null,null,null,null,null,"2023-01-01",{"$f":"IF(MONTH(O574)<7,\"30.06.\",\"31.12.\")&YEAR(O574)","v":"30.06.2023"},null,1]
[null,null,null,null,null,null,null,null,null,null,null,null,null,null,null,null,null,null,"Добавить вид теплоносителя",null,null,null,null,null,null,null,null,null,null,null,null,null,null,null,null,null,"add_TYPE_TwoRateWithSheme_range"]
[null,null,null,null,null,null,null,null,null,null,null,null,null,null,"2023-07-01",{"$f":"IF(MONTH(O576)<7,\"30.06.\",\"31.12.\")&YEAR(O576)","v":"31.12.2023"},null,1]
[null,null,null,null,null,null,null,null,null,null,null,null,null,null,null,null,null,null,"Добавить вид теплоносителя",null,null,null,null,null,null,null,null,null,null,null,null,null,null,null,null,null,"add_TYPE_TwoRateWithSheme_range"]
[null,null,null,null,null,null,null,null,null,null,null,null,null,null,null,null,null,null,null,null,null,null,null,null,null,null,null,null,null,null,null,null,null,null,"add_PERIOD_TwoRateWithSheme_range"]
[null,null,null,null,null,null,null,null,null,null,null,"Добавить схему подключения",null,null,null,null,null,null,null,null,null,null,null,null,null,null,null,null,null,"add_SHEME_TwoRateWithSheme_range"]
["add_SHEME_TwoRateWithSheme_range"]
[null,null,null,null,null,null,null,null,null,null,"1",null,null,null,{"$f":"List02_StartDate","v":"2019-01-01"},{"$f":"IF(MONTH(O581)<7,\"30.06.\",\"31.12.\")&YEAR(O581)","v":"30.06.2019"},null,1]
[null,null,null,null,null,null,null,null,null,null,null,null,null,null,null,null,null,null,"Добавить вид теплоносителя",null,null,null,null,null,null,null,null,null,null,null,null,null,null,null,null,null,"add_TYPE_TwoRateWithSheme_range"]
[null,null,null,null,null,null,null,null,null,null,null,null,null,null,"2019-07-01",{"$f":"IF(MONTH(O583)<7,\"30.06.\",\"31.12.\")&YEAR(O583)","v":"31.12.2019"},null,1]
[null,null,null,null,null,null,null,null,null,null,null,null,null,null,null,null,null,null,"Добавить вид теплоносителя",null,null,null,null,null,null,null,null,null,null,null,null,null,null,null,null,null,"add_TYPE_TwoRateWithSheme_range"]
[null,null,null,null,null,null,null,null,null,null,null,null,null,null,"2020-01-01",{"$f":"IF(MONTH(O585)<7,\"30.06.\",\"31.12.\")&YEAR(O585)","v":"30.06.2020"},null,1]
[null,null,null,null,null,null,null,null,null,null,null,null,null,null,null,null,null,null,"Добавить вид теплоносителя",null,null,null,null,null,null,null,null,null,null,null,null,null,null,null,null,null,"add_TYPE_TwoRateWithSheme_range"]
[null,null,null,null,null,null,null,null,null,null,null,null,null,null,"2020-07-01",{"$f":"IF(MONTH(O587)<7,\"30.06.\",\"31.12.\")&YEAR(O587)","v":"31.12.2020"},null,1]
[null,null,null,null,null,null,null,null,null,null,null,null,null,null,null,null,null,null,"Добавить вид теплоносителя",null,null,null,null,null,null,null,null,null,null,null,null,null,null,null,null,null,"add_TYPE_TwoRateWithSheme_range"]
[null,null,null,null,null,null,null,null,null,null,null,null,null,null,"2021-01-01",{"$f":"IF(MONTH(O589)<7,\"30.06.\",\"31.12.\")&YEAR(O589)","v":"30.06.2021"},null,1]
[null,null,null,null,null,null,null,null,null,null,null,null,null,null,null,null,null,null,"Добавить вид теплоносителя",null,null,null,null,null,null,null,null,null,null,null,null,null,null,null,null,null,"add_TYPE_TwoRateWithSheme_range"]
[null,null,null,null,null,null,null,null,null,null,null,null,null,null,"2021-07-01",{"$f":"IF(MONTH(O591)<7,\"30.06.\",\"31.12.\")&YEAR(O591)","v":"31.12.2021"},null,1]
[null,null,null,null,null,null,null,null,null,null,null,null,null,null,null,null,null,null,"Добавить вид теплоносителя",null,null,null,null,null,null,null,null,null,null,null,null,null,null,null,null,null,"add_TYPE_TwoRateWithSheme_range"]
[null,null,null,null,null,null,null,null,null,null,null,null,null,null,"2022-01-01",{"$f":"IF(MONTH(O593)<7,\"30.06.\",\"31.12.\")&YEAR(O593)","v":"30.06.2022"},null,1]
[null,null,null,null,null,null,null,null,null,null,null,null,null,null,null,null,null,null,"Добавить вид теплоносителя",null,null,null,null,null,null,null,null,null,null,null,null,null,null,null,null,null,"add_TYPE_TwoRateWithSheme_range"]
[null,null,null,null,null,null,null,null,null,null,null,null,null,null,"2022-07-01",{"$f":"IF(MONTH(O595)<7,\"30.06.\",\"31.12.\")&YEAR(O595)","v":"31.12.2022"},null,1]
[null,null,null,null,null,null,null,null,null,null,null,null,null,null,null,null,null,null,"Добавить вид теплоносителя",null,null,null,null,null,null,null,null,null,null,null,null,null,null,null,null,null,"add_TYPE_TwoRateWithSheme_range"]
[null,null,null,null,null,null,null,null,null,null,null,null,null,null,"2023-01-01",{"$f":"IF(MONTH(O597)<7,\"30.06.\",\"31.12.\")&YEAR(O597)","v":"30.06.2023"},null,1]
[null,null,null,null,null,null,null,null,null,null,null,null,null,null,null,null,null,null,"Добавить вид теплоносителя",null,null,null,null,null,null,null,null,null,null,null,null,null,null,null,null,null,"add_TYPE_TwoRateWithSheme_range"]
[null,null,null,null,null,null,null,null,null,null,null,null,null,null,"2023-07-01",{"$f":"IF(MONTH(O599)<7,\"30.06.\",\"31.12.\")&YEAR(O599)","v":"31.12.2023"},null,1]
[null,null,null,null,null,null,null,null,null,null,null,null,null,null,null,null,null,null,"Добавить вид теплоносителя",null,null,null,null,null,null,null,null,null,null,null,null,null,null,null,null,null,"add_TYPE_TwoRateWithSheme_range"]
[null,null,null,null,null,null,null,null,null,null,null,null,null,null,null,null,null,null,null,null,null,null,null,null,null,null,null,null,null,null,null,null,null,null,"add_PERIOD_TwoRateWithSheme_range"]
["add_PERIOD_TwoRateWithSheme_range"]
[null,null,null,null,null,null,null,null,null,null,null,null,null,null,null,{"$f":"IF(MONTH(O603)<7,\"30.06.\",\"31.12.\")&YEAR(O603)","v":"30.06.1900"},null,1]
[null,null,null,null,null,null,null,null,null,null,null,null,null,null,null,null,null,null,"Добавить вид теплоносителя",null,null,null,null,null,null,null,null,null,null,null,null,null,null,null,null,null,"add_TYPE_TwoRateWithSheme_range"]
["add_TYPE_TwoRateWithSheme_range"]
[null,null,null,null,null,null,null,null,null,null,null,null,null,null,null,null,null,1]
["add_MO_range"]
[null,null,null,null,null,null,null,null,"МО",null,1]
["add_MR_range"]
[null,null,null,null,"МР",null,1,null,"МО",null,1]
[null,null,null,null,null,null,null,null,null,null,null,"Добавить МО",null,null,null,null,null,null,null,null,null,null,null,null,null,null,null,null,null,null,null,null,null,null,"add_MO_range"]
["add_T_range"]
[null,null,null,null,"МР",null,1,null,"МО",null,1]
[null,null,null,null,null,null,null,null,null,null,null,"Добавить МО",null,null,null,null,null,null,null,null,null,null,null,null,null,null,null,null,null,null,null,null,null,null,"add_MO_range"]
[null,null,null,null,null,null,null,"Добавить ГО / МР",null,null,null,null,null,null,null,null,null,null,null,null,null,null,null,null,null,null,null,null,null,null,"add_MR_range"]

{"sheet":"RegistryMunicipal","index":15,"n_rows":896,"n_cols":7,"rows_kept":896,"cut":false,"hidden":true,"merged":[]}
["MO1","МО1_ОКТМО","ИМЯ ДИАПАЗОНА",null,"MO1","MO2","МО2_ОКТМО"]
["Абзелиловский муниципальный район","80601000","MO_LIST_2",null,"Абзелиловский муниципальный район"," Все муниципальные образования","80601000"]
["Альшеевский муниципальный район","80602000","MO_LIST_3",null,"Абзелиловский муниципальный район","Альмухаметовский сельский совет","80601404"]
["Архангельский муниципальный район","80603000","MO_LIST_4",null,"Абзелиловский муниципальный район","Амангильдинский сельский совет","80601407"]
["Аскинский муниципальный район","80604000","MO_LIST_5",null,"Абзелиловский муниципальный район","Аскаровский сельский совет","80601410"]
["Аургазинский муниципальный район","80605000","MO_LIST_6",null,"Абзелиловский муниципальный район","Баимовский сельский совет","80601413"]
["Баймакский муниципальный район","80606000","MO_LIST_7",null,"Абзелиловский муниципальный район","Бурангуловский сельский совет","80601416"]
["Бакалинский муниципальный район","80607000","MO_LIST_8",null,"Абзелиловский муниципальный район","Гусевский сельский совет","80601419"]
["Балтачевский муниципальный район","80608000","MO_LIST_9",null,"Абзелиловский муниципальный район","Давлетовский сельский совет","80601422"]
["Белебеевский муниципальный район","80609000","MO_LIST_10",null,"Абзелиловский муниципальный район","Кирдасовский сельский совет","80601425"]
["Белокатайский муниципальный район","80610000","MR_LIST_11",null,"Абзелиловский муниципальный район","Краснобашкирский сельский совет","80601428"]
["Белорецкий муниципальный район","80611000","MO_LIST_12",null,"Абзелиловский муниципальный район","Равиловский сельский совет","80601431"]
["Бижбулякский муниципальный район","80612000","MO_LIST_13",null,"Абзелиловский муниципальный район","Ташбулатовский сельский совет","80601434"]
["Бирский муниципальный район","80613000","MO_LIST_14",null,"Абзелиловский муниципальный район","Таштимеровский сельский совет","80601437"]
["Благоварский муниципальный район","80614000","MO_LIST_15",null,"Абзелиловский муниципальный район","Халиловский сельский совет","80601440"]
["Благовещенский муниципальный район","80615000","MO_LIST_16",null,"Абзелиловский муниципальный район","Хамитовский сельский совет","80601443"]
["Буздякский муниципальный район","80617000","MO_LIST_17",null,"Абзелиловский муниципальный район","Янгильский сельский совет","80601446"]
["Бураевский муниципальный район","80618000","MO_LIST_18",null,"Альшеевский муниципальный район"," Все муниципальные образования","80602000"]
["Бурзянский муниципальный район","80619000","MO_LIST_19",null,"Альшеевский муниципальный район","Абдрашитовский сельский совет","80602404"]
["Гафурийский муниципальный район","80621000","MO_LIST_20",null,"Альшеевский муниципальный район","Аксеновский сельский совет","80602406"]
["Город Агидель","80703000","MO_LIST_21",null,"Альшеевский муниципальный район","Воздвиженский сельский совет","80602413"]
["Город Кумертау","80723000","MO_LIST_22",null,"Альшеевский муниципальный район","Гайниямакский сельский совет","80602416"]
["Город Нефтекамск","80727000","MO_LIST_23",null,"Альшеевский муниципальный район","Зеленоклиновский сельский совет","80602418"]
["Город Октябрьский","80735000","MO_LIST_24",null,"Альшеевский муниципальный район","Ибраевский сельский совет","80602419"]
["Город Салават","80739000","MO_LIST_25",null,"Альшеевский муниципальный район","Казанский сельский совет","80602422"]
["Город Сибай","80743000","MO_LIST_26",null,"Альшеевский муниципальный район","Кармышевский сельский совет","80602428"]
["Город Стерлитамак","80745000","MO_LIST_27",null,"Альшеевский муниципальный район","Кипчак-Аскаровский сельский совет","80602431"]
["Город Уфа","80701000","MO_LIST_28",null,"Альшеевский муниципальный район","Кызыльский сельский совет","80602437"]
["Давлекановский муниципальный район","80622000","MO_LIST_29",null,"Альшеевский муниципальный район","Мендяновский сельский совет","80602440"]
["Дуванский муниципальный район","80623000","MO_LIST_30",null,"Альшеевский муниципальный район","Нигматуллинский сельский совет","80602443"]
["Дюртюлинский муниципальный район","80624000","MO_LIST_31",null,"Альшеевский муниципальный район","Нижнеаврюзовский сельский совет","80602446"]
["Ермекеевский муниципальный район","80625000\n","MO_LIST_32",null,"Альшеевский муниципальный район","Никифаровский сельский совет","80602449"]
["ЗАТО город Межгорье","80707000","MO_LIST_33",null,"Альшеевский муниципальный район","Раевский сельский совет","80602451"]
["Зианчуринский муниципальный район","80626000","MO_LIST_34",null,"Альшеевский муниципальный район","Слаковский сельский совет","80602455"]
["Зилаирский муниципальный район","80627000","MO_LIST_35",null,"Альшеевский муниципальный район","Ташлинский сельский совет","80602458"]
["Иглинский муниципальный район","80628000","MO_LIST_36",null,"Альшеевский муниципальный район","Трунтаишевский сельский совет","80602461"]
["Илишевский муниципальный район","80630000","MO_LIST_37",null,"Альшеевский муниципальный район","Чебенлинский сельский совет","80602464"]
["Ишимбайский муниципальный район","80631000","MO_LIST_38",null,"Альшеевский муниципальный район","Шафрановский сельский совет","80602470"]
["Калтасинский муниципальный район","80633000","MO_LIST_39",null,"Архангельский муниципальный район"," Все муниципальные образования","80603000"]
["Караидельский муниципальный район","80634000","MO_LIST_40",null,"Архангельский муниципальный район","Абзановский сельский совет","80603404"]
["Кармаскалинский муниципальный район","80635000","MO_LIST_41",null,"Архангельский муниципальный район","Арх-Латышский сельский совет","80603413"]
["Кигинский муниципальный район","80636000","MO_LIST_42",null,"Архангельский муниципальный район","Архангельский сельский совет","80603410"]
["Краснокамский муниципальный район","80637000","MO_LIST_43",null,"Архангельский муниципальный район","Бакалдинский сельский совет","80603416"]
["Кугарчинский муниципальный район","80638000","MO_LIST_44",null,"Архангельский муниципальный район","Инзерский сельский совет","80603419"]
["Кушнаренковский муниципальный район","80640000","MO_LIST_45",null,"Архангельский муниципальный район","Ирныкшинский сельский совет","80603422"]
["Куюргазинский муниципальный район","80639000","MO_LIST_46",null,"Архангельский муниципальный район","Краснозилимский сельский совет","80603425"]
["Мелеузовский муниципальный район","80641000","MO_LIST_47",null,"Архангельский муниципальный район","Краснокуртовский сельский совет","80603428"]
["Мечетлинский муниципальный район","80642000","MO_LIST_48",null,"Архангельский муниципальный район","Липовский сельский совет","80603434"]
["Мишкинский муниципальный район","80643000","MO_LIST_49",null,"Архангельский муниципальный район","Орловский сельский совет","80603440"]
["Миякинский муниципальный район","80644000","MO_LIST_50",null,"Архангельский муниципальный район","Тавакачевский сельский совет","80603446"]
["Нуримановский муниципальный район","80645000","MO_LIST_51",null,"Архангельский муниципальный район","Узунларовский сельский совет","80603450"]
["Салаватский муниципальный район","80647000","MO_LIST_52",null,"Аскинский муниципальный район"," Все муниципальные образования","80604000"]
["Стерлибашевский муниципальный район","80648000","MO_LIST_53",null,"Аскинский муниципальный район","Арбашевский сельский совет","80604402"]
["Стерлитамакский муниципальный район","80649000","MO_LIST_54",null,"Аскинский муниципальный район","Аскинский сельский совет","80604404"]
["Татышлинский муниципальный район","80650000","MO_LIST_55",null,"Аскинский муниципальный район","Евбулякский сельский совет","80604413"]
["Туймазинский муниципальный район","80651000","MO_LIST_56",null,"Аскинский муниципальный район","Казанчинский сельский совет","80604416"]
["Уфимский муниципальный район","80652000","MO_LIST_57",null,"Аскинский муниципальный район","Карткисяковский сельский совет","80604418"]
["Учалинский муниципальный район","80653000","MO_LIST_58",null,"Аскинский муниципальный район","Кашкинский сельский совет","80604419"]
["Федоровский муниципальный район","80654000","MO_LIST_59",null,"Аскинский муниципальный район","Ключевский сельский совет","80604425"]
["Хайбуллинский муниципальный район","80655000","MO_LIST_60",null,"Аскинский муниципальный район","Кубиязовский сельский совет","80604428"]
["Чекмагушевский муниципальный район","80656000","MO_LIST_61",null,"Аскинский муниципальный район","Кунгаковский сельский совет","80604431"]
["Чишминский муниципальный район","80657000","MO_LIST_62",null,"Аскинский муниципальный район","Кшлау-Елгинский сельский совет","80604437"]
["Шаранский муниципальный район","80658000","MO_LIST_63",null,"Аскинский муниципальный район","Мутабашевский сельский совет","80604440"]
["Янаульский муниципальный район","80659000","MO_LIST_64",null,"Аскинский муниципальный район","Петропавловский сельский совет","80604442"]
[null,null,null,null,"Аскинский муниципальный район","Султанбековский сельский совет","80604443"]
[null,null,null,null,"Аскинский муниципальный район","Урмиязовский сельский совет","80604446"]
[null,null,null,null,"Аскинский муниципальный район","Усть-Табасский сельский совет","80604450"]
[null,null,null,null,"Аургазинский муниципальный район"," Все муниципальные образования","80605000"]
[null,null,null,null,"Аургазинский муниципальный район","Балыклыкульский сельский совет","80605402"]
[null,null,null,null,"Аургазинский муниципальный район","Батыровский сельский совет","80605404"]
[null,null,null,null,"Аургазинский муниципальный район","Бишкаинский сельский совет","80605407"]
[null,null,null,null,"Аургазинский муниципальный район","Ибраевский сельский совет","80605410"]
[null,null,null,null,"Аургазинский муниципальный район","Исмагиловский сельский совет","80605413"]
[null,null,null,null,"Аургазинский муниципальный район","Ишлинский сельский совет","80605416"]
[null,null,null,null,"Аургазинский муниципальный район","Кебячевский сельский совет","80605419"]
[null,null,null,null,"Аургазинский муниципальный район","Меселинский сельский совет","80605422"]
[null,null,null,null,"Аургазинский муниципальный район","Михайловский сельский совет","80605425"]
[null,null,null,null,"Аургазинский муниципальный район","Нагадакский сельский совет","80605428"]
[null,null,null,null,"Аургазинский муниципальный район","Новокальчировский сельский совет","80605431"]
[null,null,null,null,"Аургазинский муниципальный район","Семенкинский сельский совет","80605434"]
[null,null,null,null,"Аургазинский муниципальный район","Степановский сельский совет","80605437"]
[null,null,null,null,"Аургазинский муниципальный район","Султанмуратовский сельский совет","80605440"]
[null,null,null,null,"Аургазинский муниципальный район","Таштамакский сельский совет","80605443"]
[null,null,null,null,"Аургазинский муниципальный район","Толбазинский сельский совет","80605446"]
[null,null,null,null,"Аургазинский муниципальный район","Тряпинский сельский совет","80605449"]
[null,null,null,null,"Аургазинский муниципальный район","Тукаевский сельский совет","80605452"]
[null,null,null,null,"Аургазинский муниципальный район","Турумбетовский сельский совет","80605458"]
[null,null,null,null,"Аургазинский муниципальный район","Уршакский сельский совет","80605461"]
[null,null,null,null,"Аургазинский муниципальный район","Чуваш-Карамалинский сельский совет","80605472"]
[null,null,null,null,"Баймакский муниципальный район"," Все муниципальные образования","80606000"]
[null,null,null,null,"Баймакский муниципальный район","1-й Иткуловский сельский совет","80606416"]
[null,null,null,null,"Баймакский муниципальный район","Абдулкаримовский сельский совет","80606404"]
[null,null,null,null,"Баймакский муниципальный район","Акмурунский сельский совет","80606407"]
[null,null,null,null,"Баймакский муниципальный район","Бекешевский сельский совет","80606409"]
[null,null,null,null,"Баймакский муниципальный район","Биляловский сельский совет","80606410"]
[null,null,null,null,"Баймакский муниципальный район","Город Баймак","80606101"]
[null,null,null,null,"Баймакский муниципальный район","Зилаирский сельский совет","80606413"]
[null,null,null,null,"Баймакский муниципальный район","Ишбердинский сельский совет","80606428"]
[null,null,null,null,"Баймакский муниципальный район","Ишмурзинский сельский совет","80606422"]
[null,null,null,null,"Баймакский муниципальный район","Ишмухаметовский сельский совет","80606425"]
[null,null,null,null,"Баймакский муниципальный район","Кульчуровский сельский совет","80606437"]
[null,null,null,null,"Баймакский муниципальный район","Кусеевский сельский совет","80606431"]
[null,null,null,null,"Баймакский муниципальный район","Мерясовский сельский совет","80606438"]
[null,null,null,null,"Баймакский муниципальный район","Мукасовский сельский совет","80606434"]
[null,null,null,null,"Баймакский муниципальный район","Нигаматовский сельский совет","80606440"]
[null,null,null,null,"Баймакский муниципальный район","Семеновский сельский совет","80606442"]
[null,null,null,null,"Баймакский муниципальный район","Сибайский сельский совет","80606443"]
[null,null,null,null,"Баймакский муниципальный район","Тавлыкаевский сельский совет","80606446"]
[null,null,null,null,"Баймакский муниципальный район","Татлыбаевский сельский совет","80606449"]
[null,null,null,null,"Баймакский муниципальный район","Темясовский сельский совет","80606452"]
[null,null,null,null,"Баймакский муниципальный район","Тубинский сельский совет","80606453"]
[null,null,null,null,"Баймакский муниципальный район","Юмашевский сельский совет","80606455"]
[null,null,null,null,"Баймакский муниципальный район","Яратовский сельский совет","80606459"]
[null,null,null,null,"Бакалинский муниципальный район"," Все муниципальные образования","80607000"]
[null,null,null,null,"Бакалинский муниципальный район","Ахмановский сельский совет","80607404"]
[null,null,null,null,"Бакалинский муниципальный район","Бакалинский сельский совет","80607407"]
[null,null,null,null,"Бакалинский муниципальный район","Бузюровский сельский совет","80607413"]
[null,null,null,null,"Бакалинский муниципальный район","Дияшевский сельский совет","80607419"]
[null,null,null,null,"Бакалинский муниципальный район","Камышлытамакский сельский совет","80607425"]
[null,null,null,null,"Бакалинский муниципальный район","Килеевский сельский совет","80607428"]
[null,null,null,null,"Бакалинский муниципальный район","Куштиряковский сельский совет","80607431"]
[null,null,null,null,"Бакалинский муниципальный район","Михайловский сельский совет","80607410"]
[null,null,null,null,"Бакалинский муниципальный район","Мустафинский сельский совет","80607434"]
[null,null,null,null,"Бакалинский муниципальный район","Новокатаевский сельский совет","80607440"]
[null,null,null,null,"Бакалинский муниципальный район","Новоурсаевский сельский совет","80607446"]
[null,null,null,null,"Бакалинский муниципальный район","Старокостеевский сельский совет","80607451"]
[null,null,null,null,"Бакалинский муниципальный район","Старокуручевский сельский совет","80607449"]
[null,null,null,null,"Бакалинский муниципальный район","Староматинский сельский совет","80607455"]
[null,null,null,null,"Бакалинский муниципальный район","Старошарашлинский сельский совет","80607458"]
[null,null,null,null,"Бакалинский муниципальный район","Тактагуловский сельский совет","80607461"]
[null,null,null,null,"Бакалинский муниципальный район","Урманаевский сельский совет","80607464"]
[null,null,null,null,"Балтачевский муниципальный район"," Все муниципальные образования","80608000"]
[null,null,null,null,"Балтачевский муниципальный район","Богдановский сельский совет","80608404"]
[null,null,null,null,"Балтачевский муниципальный район","Верхнеянактаевский сельский совет","80608407"]
[null,null,null,null,"Балтачевский муниципальный район","Кундашлинский сельский совет","80608413"]
[null,null,null,null,"Балтачевский муниципальный район","Кунтугушевский сельский совет","80608416"]
[null,null,null,null,"Балтачевский муниципальный район","Нижнекарышевский сельский совет","80608419"]
[null,null,null,null,"Балтачевский муниципальный район","Нижнесикиязовский сельский совет","80608422"]
[null,null,null,null,"Балтачевский муниципальный район","Норкинский сельский совет","80608425"]
[null,null,null,null,"Балтачевский муниципальный район","Сейтяковский сельский совет","80608428"]
[null,null,null,null,"Балтачевский муниципальный район","Старобалтачевский сельский совет","80608431"]
[null,null,null,null,"Балтачевский муниципальный район","Староянбаевский сельский совет","80608434"]
[null,null,null,null,"Балтачевский муниципальный район","Тошкуровский сельский совет","80608437"]
[null,null,null,null,"Балтачевский муниципальный район","Тучубаевский сельский совет","80608440"]
[null,null,null,null,"Балтачевский муниципальный район","Шавьядинский сельский совет","80608441"]
[null,null,null,null,"Балтачевский муниципальный район","Штандинский сельский совет","80608443"]
[null,null,null,null,"Балтачевский муниципальный район","Ялангачевский сельский совет","80608448"]
[null,null,null,null,"Белебеевский муниципальный район"," Все муниципальные образования","80609000"]
[null,null,null,null,"Белебеевский муниципальный район","Аксаковский сельский совет","80609401"]
[null,null,null,null,"Белебеевский муниципальный район","Анновский сельский совет","80609413"]
[null,null,null,null,"Белебеевский муниципальный район","Баженовский сельский совет","80609402"]
[null,null,null,null,"Белебеевский муниципальный район","Город Белебей","80609101"]
[null,null,null,null,"Белебеевский муниципальный район","Донской сельский совет","80609404"]
[null,null,null,null,"Белебеевский муниципальный район","Ермолкинский сельский совет","80609407"]
[null,null,null,null,"Белебеевский муниципальный район","Знаменский сельский совет","80609410"]
[null,null,null,null,"Белебеевский муниципальный район","Максим-Горьковский сельский совет","80609416"]
[null,null,null,null,"Белебеевский муниципальный район","Малиновский сельский совет","80609419"]
[null,null,null,null,"Белебеевский муниципальный район","Метевбашевский сельский совет","80609425"]
[null,null,null,null,"Белебеевский муниципальный район","Приютовский поссовет","80609165"]
[null,null,null,null,"Белебеевский муниципальный район","Рассветовский сельский совет","80609428"]
[null,null,null,null,"Белебеевский муниципальный район","Семенкинский сельский совет","80609431"]
[null,null,null,null,"Белебеевский муниципальный район","Слакбашевский сельский совет","80609434"]
[null,null,null,null,"Белебеевский муниципальный район","Тузлукушевский сельский совет","80609437"]
[null,null,null,null,"Белебеевский муниципальный район","Усень-Ивановский сельский совет","80609440"]
[null,null,null,null,"Белебеевский муниципальный район","Шаровский сельский совет","80609443"]
[null,null,null,null,"Белокатайский муниципальный район"," Все муниципальные образования","80610000"]
[null,null,null,null,"Белокатайский муниципальный район","Атаршинский сельский совет","80610402"]
[null,null,null,null,"Белокатайский муниципальный район","Белянковский сельский совет","80610404"]
[null,null,null,null,"Белокатайский муниципальный район","Емашинский сельский совет","80610407"]
[null,null,null,null,"Белокатайский муниципальный район","Карлыхановский сельский совет","80610413"]
[null,null,null,null,"Белокатайский муниципальный район","Майгазинский сельский совет","80610416"]
[null,null,null,null,"Белокатайский муниципальный район","Нижнеискушинский сельский совет","80610419"]
[null,null,null,null,"Белокатайский муниципальный район","Новобелокатайский сельский совет","80610422"]
[null,null,null,null,"Белокатайский муниципальный район","Ногушинский сельский совет","80610425"]
[null,null,null,null,"Белокатайский муниципальный район","Старобелокатайский сельский совет","80610428"]
[null,null,null,null,"Белокатайский муниципальный район","Тардавский сельский совет","80610431"]
[null,null,null,null,"Белокатайский муниципальный район","Ургалинский сельский совет","80610434"]
[null,null,null,null,"Белокатайский муниципальный район","Утяшевский сельский совет","80610437"]
[null,null,null,null,"Белокатайский муниципальный район","Яныбаевский сельский совет","80610440"]
[null,null,null,null,"Белорецкий муниципальный район"," Все муниципальные образования","80611000"]
[null,null,null,null,"Белорецкий муниципальный район","Абзаковский сельский совет","80611404"]
[null,null,null,null,"Белорецкий муниципальный район","Азикеевский сельский совет","80611407"]
[null,null,null,null,"Белорецкий муниципальный район","Ассинский сельский совет","80611410"]
[null,null,null,null,"Белорецкий муниципальный район","Верхнеавзянский сельский совет","80611415"]
[null,null,null,null,"Белорецкий муниципальный район","Город Белорецк","80611101"]
[null,null,null,null,"Белорецкий муниципальный район","Железнодорожный сельский совет","80611418"]
[null,null,null,null,"Белорецкий муниципальный район","Зигазинский сельский совет","80611416"]
[null,null,null,null,"Белорецкий муниципальный район","Зуяковский сельский совет","80611417"]
[null,null,null,null,"Белорецкий муниципальный район","Инзерский сельский совет","80611420"]
[null,null,null,null,"Белорецкий муниципальный район","Ишлинский сельский совет","80611422"]
[null,null,null,null,"Белорецкий муниципальный район","Кагинский сельский совет","80611425"]
[null,null,null,null,"Белорецкий муниципальный район","Ломовский сельский совет","80611427"]
[null,null,null,null,"Белорецкий муниципальный район","Николаевский сельский совет","80611434"]
[null,null,null,null,"Белорецкий муниципальный район","Нурский сельский совет","80611440"]
[null,null,null,null,"Белорецкий муниципальный район","Серменевский сельский совет","80611443"]
[null,null,null,null,"Белорецкий муниципальный район","Сосновский сельский совет","80611446"]
[null,null,null,null,"Белорецкий муниципальный район","Тирлянский сельский совет","80611448"]
[null,null,null,null,"Белорецкий муниципальный район","Туканский сельский совет","80611449"]
[null,null,null,null,"Белорецкий муниципальный район","Узянский сельский совет","80611452"]
[null,null,null,null,"Белорецкий муниципальный район","Шигаевский сельский совет","80611455"]
[null,null,null,null,"Бижбулякский муниципальный район"," Все муниципальные образования","80612000"]
[null,null,null,null,"Бижбулякский муниципальный район","Аитовский сельский совет","80612404"]
[null,null,null,null,"Бижбулякский муниципальный район","Базлыкский сельский совет","80612407"]
[null,null,null,null,"Бижбулякский муниципальный район","Бижбулякский сельский совет","80612410"]
[null,null,null,null,"Бижбулякский муниципальный район","Биккуловский сельский совет","80612413"]
[null,null,null,null,"Бижбулякский муниципальный район","Демский сельский совет","80612416"]
[null,null,null,null,"Бижбулякский муниципальный район","Елбулактамакский сельский совет","80612419"]
[null,null,null,null,"Бижбулякский муниципальный район","Зириклинский сельский совет","80612422"]
[null,null,null,null,"Бижбулякский муниципальный район","Калининский сельский совет","80612425"]
[null,null,null,null,"Бижбулякский муниципальный район","Каменский сельский совет","80612428"]
[null,null,null,null,"Бижбулякский муниципальный район","Кенгер-Менеузовский сельский совет","80612431"]
[null,null,null,null,"Бижбулякский муниципальный район","Кош-Елгинский сельский совет","80612440"]
[null,null,null,null,"Бижбулякский муниципальный район","Михайловский сельский совет","80612442"]
[null,null,null,null,"Бижбулякский муниципальный район","Сухореченский сельский совет","80612443"]
[null,null,null,null,"Бирский муниципальный район"," Все муниципальные образования","80613000"]
[null,null,null,null,"Бирский муниципальный район","Бахтыбаевский сельский совет","80613407"]
[null,null,null,null,"Бирский муниципальный район","Березовский сельский совет","80613409"]
[null,null,null,null,"Бирский муниципальный район","Бурновский сельский совет","80613408"]
[null,null,null,null,"Бирский муниципальный район","Верхнелачентауский сельский совет","80613410"]
[null,null,null,null,"Бирский муниципальный район","Город Бирск","80613101"]
[null,null,null,null,"Бирский муниципальный район","Калинниковский сельский совет","80613416"]
[null,null,null,null,"Бирский муниципальный район","Кусекеевский сельский совет","80613419"]
[null,null,null,null,"Бирский муниципальный район","Маядыковский сельский совет","80613422"]
[null,null,null,null,"Бирский муниципальный район","Осиновский сельский совет","80613425"]
[null,null,null,null,"Бирский муниципальный район","Силантьевский сельский совет","80613431"]
[null,null,null,null,"Бирский муниципальный район","Старобазановский сельский совет","80613434"]
[null,null,null,null,"Бирский муниципальный район","Старопетровский сельский совет","80613437"]
[null,null,null,null,"Бирский муниципальный район","Сусловский сельский совет","80613440"]
[null,null,null,null,"Бирский муниципальный район","Угузевский сельский совет","80613443"]
[null,null,null,null,"Бирский муниципальный район","Чишминский сельский совет","80613446"]
[null,null,null,null,"Благоварский муниципальный район"," Все муниципальные образования","80614000"]
[null,null,null,null,"Благоварский муниципальный район","Алексеевский сельский совет","80614404"]
[null,null,null,null,"Благоварский муниципальный район","Балышлинский сельский совет","80614407"]
[null,null,null,null,"Благоварский муниципальный район","Благоварский сельский совет","80614410"]
[null,null,null,null,"Благоварский муниципальный район","Дмитриевский сельский совет","80614413"]
[null,null,null,null,"Благоварский муниципальный район","Каргалинский сельский совет","80614416"]
[null,null,null,null,"Благоварский муниципальный район","Кашкалашинский сельский совет","80614419"]
[null,null,null,null,"Благоварский муниципальный район","Кучербаевский сельский совет","80614422"]
[null,null,null,null,"Благоварский муниципальный район","Мирновский сельский совет","80614423"]
[null,null,null,null,"Благоварский муниципальный район","Первомайский сельский совет","80614424"]
[null,null,null,null,"Благоварский муниципальный район","Тановский сельский совет","80614428"]
[null,null,null,null,"Благоварский муниципальный район","Троицкий сельский совет","80614431"]
[null,null,null,null,"Благоварский муниципальный район","Удрякбашевский сельский совет","80614434"]
[null,null,null,null,"Благоварский муниципальный район","Языковский сельский совет","80614437"]
[null,null,null,null,"Благоварский муниципальный район","Ямакаевский сельский совет","80614440"]
[null,null,null,null,"Благоварский муниципальный район","Янышевский сельский совет","80614443"]
[null,null,null,null,"Благовещенский муниципальный район"," Все муниципальные образования","80615000"]
[null,null,null,null,"Благовещенский муниципальный район","Бедеево-Полянский сельский совет","80615404"]
[null,null,null,null,"Благовещенский муниципальный район","Богородский сельский совет","80615407"]
[null,null,null,null,"Благовещенский муниципальный район","Волковский сельский совет","80615413"]
[null,null,null,null,"Благовещенский муниципальный район","Город Благовещенск","80615101"]
[null,null,null,null,"Благовещенский муниципальный район","Изяковский сельский совет","80615419"]
[null,null,null,null,"Благовещенский муниципальный район","Иликовский сельский совет","80615422"]
[null,null,null,null,"Благовещенский муниципальный район","Ильино-Полянский сельский совет","80615425"]
[null,null,null,null,"Благовещенский муниципальный район","Николаевский сельский совет","80615428"]
[null,null,null,null,"Благовещенский муниципальный район","Новонадеждинский сельский совет","80615431"]
[null,null,null,null,"Благовещенский муниципальный район","Октябрьский сельский совет","80615434"]
[null,null,null,null,"Благовещенский муниципальный район","Орловский сельский совет","80615437"]
[null,null,null,null,"Благовещенский муниципальный район","Покровский сельский совет","80615440"]
[null,null,null,null,"Благовещенский муниципальный район","Саннинский сельский совет","80615443"]
[null,null,null,null,"Благовещенский муниципальный район","Старонадеждинский сельский совет","80615449"]
[null,null,null,null,"Благовещенский муниципальный район","Тугайский сельский совет","80615453"]
[null,null,null,null,"Благовещенский муниципальный район","Удельно-Дуванейский сельский совет","80615461"]
[null,null,null,null,"Буздякский муниципальный район"," Все муниципальные образования","80617000"]
[null,null,null,null,"Буздякский муниципальный район","Арслановский сельский совет","80617404"]
[null,null,null,null,"Буздякский муниципальный район","Буздякский сельский совет","80617407"]
[null,null,null,null,"Буздякский муниципальный район","Гафурийский сельский совет","80617410"]
[null,null,null,null,"Буздякский муниципальный район","Канлы-Туркеевский сельский совет","80617413"]
[null,null,null,null,"Буздякский муниципальный район","Каранский сельский совет","80617416"]
[null,null,null,null,"Буздякский муниципальный район","Килимовский сельский совет","80617419"]
[null,null,null,null,"Буздякский муниципальный район","Копей-Кубовский сельский совет","80617422"]
[null,null,null,null,"Буздякский муниципальный район","Кузеевский сельский совет","80617425"]
[null,null,null,null,"Буздякский муниципальный район","Сабаевский сельский совет","80617431"]
[null,null,null,null,"Буздякский муниципальный район","Тавларовский сельский совет","80617437"]
[null,null,null,null,"Буздякский муниципальный район","Тюрюшевский сельский совет","80617440"]
[null,null,null,null,"Буздякский муниципальный район","Уртакульский сельский совет","80617446"]
[null,null,null,null,"Бураевский муниципальный район"," Все муниципальные образования","80618000"]
[null,null,null,null,"Бураевский муниципальный район","Азяковский сельский совет","80618404"]
[null,null,null,null,"Бураевский муниципальный район","Бадраковский сельский совет","80618407"]
[null,null,null,null,"Бураевский муниципальный район","Бураевский сельский совет","80618413"]
[null,null,null,null,"Бураевский муниципальный район","Ванышевский сельский совет","80618416"]
[null,null,null,null,"Бураевский муниципальный район","Вострецовский сельский совет","80618419"]
[null,null,null,null,"Бураевский муниципальный район","Каинлыковский сельский совет","80618422"]
[null,null,null,null,"Бураевский муниципальный район","Кашкалевский сельский совет","80618425"]
[null,null,null,null,"Бураевский муниципальный район","Кузбаевский сельский совет","80618431"]
[null,null,null,null,"Бураевский муниципальный район","Кушманаковский сельский совет","80618428"]
[null,null,null,null,"Бураевский муниципальный район","Тазларовский сельский совет","80618437"]
[null,null,null,null,"Бураевский муниципальный район","Тангатаровский сельский совет","80618440"]
[null,null,null,null,"Бураевский муниципальный район","Тепляковский сельский совет","80618443"]
[null,null,null,null,"Бураевский муниципальный район","Челкаковский сельский совет","80618446"]
[null,null,null,null,"Бурзянский муниципальный район"," Все муниципальные образования","80619000"]
[null,null,null,null,"Бурзянский муниципальный район","Аскаровский сельский совет","80619404"]
[null,null,null,null,"Бурзянский муниципальный район","Атиковский сельский совет","80619407"]
[null,null,null,null,"Бурзянский муниципальный район","Байгазинский сельский совет","80619409"]
[null,null,null,null,"Бурзянский муниципальный район","Байназаровский сельский совет","80619410"]
[null,null,null,null,"Бурзянский муниципальный район","Галиакберовский сельский совет","80619413"]
[null,null,null,null,"Бурзянский муниципальный район","Иргизлинский сельский совет","80619416"]
[null,null,null,null,"Бурзянский муниципальный район","Киекбаевский сельский совет","80619419"]
[null,null,null,null,"Бурзянский муниципальный район","Кипчакский сельский совет","80619420"]
[null,null,null,null,"Бурзянский муниципальный район","Кулганинский сельский совет","80619440"]
[null,null,null,null,"Бурзянский муниципальный район","Старомунасиповский сельский совет","80619422"]
[null,null,null,null,"Бурзянский муниципальный район","Старосубхангуловский сельский совет","80619425"]
[null,null,null,null,"Бурзянский муниципальный район","Тимировский сельский совет","80619430"]
[null,null,null,null,"Гафурийский муниципальный район"," Все муниципальные образования","80621000"]
[null,null,null,null,"Гафурийский муниципальный район","Белоозерский сельский совет","80621407"]
[null,null,null,null,"Гафурийский муниципальный район","Бельский сельский совет","80621410"]
[null,null,null,null,"Гафурийский муниципальный район","Бурлинский сельский совет","80621413"]
[null,null,null,null,"Гафурийский муниципальный район","Буруновский сельский совет","80621414"]
[null,null,null,null,"Гафурийский муниципальный район","Зилим-Карановский сельский совет","80621416"]
[null,null,null,null,"Гафурийский муниципальный район","Имендяшевский сельский совет","80621419"]
[null,null,null,null,"Гафурийский муниципальный район","Ковардинский сельский совет","80621422"]
[null,null,null,null,"Гафурийский муниципальный район","Красноусольский сельский совет","80621423"]
[null,null,null,null,"Гафурийский муниципальный район","Мраковский сельский совет","80621425"]
[null,null,null,null,"Гафурийский муниципальный район","Саитбабинский сельский совет","80621428"]
[null,null,null,null,"Гафурийский муниципальный район","Табынский сельский совет","80621431"]
[null,null,null,null,"Гафурийский муниципальный район","Ташбукановский сельский совет","80621434"]
[null,null,null,null,"Гафурийский муниципальный район","Ташлинский сельский совет","80621437"]
[null,null,null,null,"Гафурийский муниципальный район","Толпаровский сельский совет","80621440"]
[null,null,null,null,"Гафурийский муниципальный район","Утяковский сельский совет","80621443"]
[null,null,null,null,"Гафурийский муниципальный район","Янгискаинский сельский совет","80621446"]
[null,null,null,null,"Город Агидель","Город Агидель","80703000"]
[null,null,null,null,"Город Кумертау","Город Кумертау","80723000"]
[null,null,null,null,"Город Нефтекамск","Город Нефтекамск","80727000"]
[null,null,null,null,"Город Октябрьский","Город Октябрьский","80735000"]
[null,null,null,null,"Город Салават","Город Салават","80739000"]
[null,null,null,null,"Город Сибай","Город Сибай","80743000"]
[null,null,null,null,"Город Стерлитамак","Город Стерлитамак","80745000"]
[null,null,null,null,"Город Уфа","Город Уфа","80701000"]
[null,null,null,null,"Давлекановский муниципальный район"," Все муниципальные образования","80622000"]
[null,null,null,null,"Давлекановский муниципальный район","Алгинский сельский совет","80622404"]
[null,null,null,null,"Давлекановский муниципальный район","Бик-Кармалинский сельский совет","80622410"]
[null,null,null,null,"Давлекановский муниципальный район","Город Давлеканово","80622101"]
[null,null,null,null,"Давлекановский муниципальный район","Ивановский сельский совет","80622413"]
[null,null,null,null,"Давлекановский муниципальный район","Имай-Кармалинский сельский совет","80622416"]
[null,null,null,null,"Давлекановский муниципальный район","Кадыргуловский сельский совет","80622419"]
[null,null,null,null,"Давлекановский муниципальный район","Казангуловский сельский совет","80622422"]
[null,null,null,null,"Давлекановский муниципальный район","Кидрячевский сельский совет","80622425"]
[null,null,null,null,"Давлекановский муниципальный район","Курманкеевский сельский совет","80622428"]
[null,null,null,null,"Давлекановский муниципальный район","Микяшевский сельский совет","80622431"]
[null,null,null,null,"Давлекановский муниципальный район","Поляковский сельский совет","80622434"]
[null,null,null,null,"Давлекановский муниципальный район","Раевский сельский совет","80622437"]
[null,null,null,null,"Давлекановский муниципальный район","Рассветовский сельский совет","80622440"]
[null,null,null,null,"Давлекановский муниципальный район","Сергиопольский сельский совет","80622443"]
[null,null,null,null,"Давлекановский муниципальный район","Соколовский сельский совет","80622444"]
[null,null,null,null,"Давлекановский муниципальный район","Чуюнчинский сельский совет","80622446"]
[null,null,null,null,"Давлекановский муниципальный район","Шестаевский сельский совет","80622449"]
[null,null,null,null,"Дуванский муниципальный район"," Все муниципальные образования","80623000"]
[null,null,null,null,"Дуванский муниципальный район","Ариевский сельский совет","80623404"]
[null,null,null,null,"Дуванский муниципальный район","Вознесенский сельский совет","80623406"]
[null,null,null,null,"Дуванский муниципальный район","Дуванский сельский совет","80623407"]
[null,null,null,null,"Дуванский муниципальный район","Заимкинский сельский совет","80623413"]
[null,null,null,null,"Дуванский муниципальный район","Лемазинский сельский совет","80623419"]
[null,null,null,null,"Дуванский муниципальный район","Месягутовский сельский совет","80623422"]
[null,null,null,null,"Дуванский муниципальный район","Метелинский сельский совет","80623425"]
[null,null,null,null,"Дуванский муниципальный район","Михайловский сельский совет","80623428"]
[null,null,null,null,"Дуванский муниципальный район","Рухтинский сельский совет","80623431"]
[null,null,null,null,"Дуванский муниципальный район","Сальевский сельский совет","80623433"]
[null,null,null,null,"Дуванский муниципальный район","Сикиязский сельский совет","80623434"]
[null,null,null,null,"Дуванский муниципальный район","Улькундинский сельский совет","80623440"]
[null,null,null,null,"Дуванский муниципальный район","Ярославский сельский совет","80623443"]
[null,null,null,null,"Дюртюлинский муниципальный район"," Все муниципальные образования","80624000"]
[null,null,null,null,"Дюртюлинский муниципальный район","Ангасякский сельский совет","80624404"]
[null,null,null,null,"Дюртюлинский муниципальный район","Асяновский сельский совет","80624407"]
[null,null,null,null,"Дюртюлинский муниципальный район","Город Дюртюли","80624101"]
[null,null,null,null,"Дюртюлинский муниципальный район","Исмаиловский сельский совет","80624410"]
[null,null,null,null,"Дюртюлинский муниципальный район","Куккуяновский сельский совет","80624413"]
[null,null,null,null,"Дюртюлинский муниципальный район","Маядыковский сельский совет","80624416"]
[null,null,null,null,"Дюртюлинский муниципальный район","Московский сельский совет","80624422"]
[null,null,null,null,"Дюртюлинский муниципальный район","Семилетовский сельский совет","80624430"]
[null,null,null,null,"Дюртюлинский муниципальный район","Старобаишевский сельский совет","80624431"]
[null,null,null,null,"Дюртюлинский муниципальный район","Староянтузовский сельский совет","80624434"]
[null,null,null,null,"Дюртюлинский муниципальный район","Суккуловский сельский совет","80624437"]
[null,null,null,null,"Дюртюлинский муниципальный район","Таймурзинский сельский совет","80624440"]
[null,null,null,null,"Дюртюлинский муниципальный район","Такарликовский сельский совет","80624443"]
[null,null,null,null,"Дюртюлинский муниципальный район","Учпилинский сельский совет","80624447"]
[null,null,null,null,"Дюртюлинский муниципальный район","Черлаковский сельский совет","80624449"]
[null,null,null,null,"Ермекеевский муниципальный район"," Все муниципальные образования","80625000"]
[null,null,null,null,"Ермекеевский муниципальный район","Бекетовский сельский совет","80625402"]
[null,null,null,null,"Ермекеевский муниципальный район","Восьмомартовский сельский совет","80625404"]
[null,null,null,null,"Ермекеевский муниципальный район","Ермекеевский сельский совет","80625407"]
[null,null,null,null,"Ермекеевский муниципальный район","Кызыл-Ярский сельский совет","80625411"]
[null,null,null,null,"Ермекеевский муниципальный район","Нижнеулу-Елгинский сельский совет","80625413"]
[null,null,null,null,"Ермекеевский муниципальный район","Рятамакский сельский совет","80625416"]
[null,null,null,null,"Ермекеевский муниципальный район","Спартакский сельский совет","80625422"]
[null,null,null,null,"Ермекеевский муниципальный район","Среднекарамалинский сельский совет","80625425"]
[null,null,null,null,"Ермекеевский муниципальный район","Старосуллинский сельский совет","80625428"]
[null,null,null,null,"Ермекеевский муниципальный район","Старотураевский сельский совет","80625431"]
[null,null,null,null,"Ермекеевский муниципальный район","Суккуловский сельский совет","80625434"]
[null,null,null,null,"Ермекеевский муниципальный район","Тарказинский сельский совет","80625437"]
[null,null,null,null,"Ермекеевский муниципальный район","Усман-Ташлинский сельский совет","80625440"]
[null,null,null,null,"ЗАТО город Межгорье","ЗАТО город Межгорье","80707000"]
[null,null,null,null,"Зианчуринский муниципальный район"," Все муниципальные образования","80626000"]
[null,null,null,null,"Зианчуринский муниципальный район","Абзановский сельский совет","80626404"]
[null,null,null,null,"Зианчуринский муниципальный район","Абуляисовский сельский совет","80626405"]
[null,null,null,null,"Зианчуринский муниципальный район","Баишевский сельский совет","80626406"]
[null,null,null,null,"Зианчуринский муниципальный район","Байдавлетовский сельский совет","80626407"]
[null,null,null,null,"Зианчуринский муниципальный район","Бикбауский сельский совет","80626410"]
[null,null,null,null,"Зианчуринский муниципальный район","Исянгуловский сельский совет","80626416"]
[null,null,null,null,"Зианчуринский муниципальный район","Казанбулакский сельский совет","80626419"]
[null,null,null,null,"Зианчуринский муниципальный район","Муйнакский сельский совет","80626422"]
[null,null,null,null,"Зианчуринский муниципальный район","Новопетровский сельский совет","80626425"]
[null,null,null,null,"Зианчуринский муниципальный район","Новочебенкинский сельский совет","80626428"]
[null,null,null,null,"Зианчуринский муниципальный район","Сакмарский сельский совет","80626431"]
[null,null,null,null,"Зианчуринский муниципальный район","Суренский сельский совет","80626434"]
[null,null,null,null,"Зианчуринский муниципальный район","Тазларовский сельский совет","80626437"]
[null,null,null,null,"Зианчуринский муниципальный район","Утягуловский сельский совет","80626440"]
[null,null,null,null,"Зианчуринский муниципальный район","Яныбаевский сельский совет","80626443"]
[null,null,null,null,"Зилаирский муниципальный район"," Все муниципальные образования","80627000"]
[null,null,null,null,"Зилаирский муниципальный район","Бердяшский сельский совет","80627404"]
[null,null,null,null,"Зилаирский муниципальный район","Верхнегалеевский сельский совет","80627410"]
[null,null,null,null,"Зилаирский муниципальный район","Дмитриевский сельский совет","80627413"]
[null,null,null,null,"Зилаирский муниципальный район","Зилаирский сельский совет","80627416"]
[null,null,null,null,"Зилаирский муниципальный район","Ивано-Кувалатский сельский совет","80627419"]
[null,null,null,null,"Зилаирский муниципальный район","Кананикольский сельский совет","80627421"]
[null,null,null,null,"Зилаирский муниципальный район","Канзафаровский сельский совет","80627422"]
[null,null,null,null,"Зилаирский муниципальный район","Кашкаровский сельский совет","80627423"]
[null,null,null,null,"Зилаирский муниципальный район","Матраевский сельский совет","80627425"]
[null,null,null,null,"Зилаирский муниципальный район","Сабыровский сельский совет","80627432"]
[null,null,null,null,"Зилаирский муниципальный район","Уркасский сельский совет","80627434"]
[null,null,null,null,"Зилаирский муниципальный район","Юлдыбаевский сельский совет","80627436"]
[null,null,null,null,"Зилаирский муниципальный район","Ямансазский сельский совет","80627442"]
[null,null,null,null,"Иглинский муниципальный район"," Все муниципальные образования","80628000"]
[null,null,null,null,"Иглинский муниципальный район","Акбердинский сельский совет","80628403"]
[null,null,null,null,"Иглинский муниципальный район","Ауструмский сельский совет","80628405"]
[null,null,null,null,"Иглинский муниципальный район","Балтийский сельский совет","80628410"]
[null,null,null,null,"Иглинский муниципальный район","Ивано-Казанский сельский совет","80628415"]
[null,null,null,null,"Иглинский муниципальный район","Иглинский сельский совет","80628416"]
[null,null,null,null,"Иглинский муниципальный район","Калтымановский сельский совет","80628420"]
[null,null,null,null,"Иглинский муниципальный район","Кальтовский сельский совет","80628425"]
[null,null,null,null,"Иглинский муниципальный район","Красновосходский сельский совет","80628430"]
[null,null,null,null,"Иглинский муниципальный район","Кудеевский сельский совет","80628432"]
[null,null,null,null,"Иглинский муниципальный район","Лемезинский сельский совет","80628435"]
[null,null,null,null,"Иглинский муниципальный район","Майский сельский совет","80628440"]
[null,null,null,null,"Иглинский муниципальный район","Надеждинский сельский совет","80628445"]
[null,null,null,null,"Иглинский муниципальный район","Охлебининский сельский совет","80628450"]
[null,null,null,null,"Иглинский муниципальный район","Тавтимановский сельский совет","80628455"]
[null,null,null,null,"Иглинский муниципальный район","Турбаслинский сельский совет","80628460"]
[null,null,null,null,"Иглинский муниципальный район","Уктеевский сельский совет","80628470"]
[null,null,null,null,"Иглинский муниципальный район","Улу-Телякский сельский совет","80628472"]
[null,null,null,null,"Иглинский муниципальный район","Урманский сельский совет","80628474"]
[null,null,null,null,"Иглинский муниципальный район","Чуваш-Кубовский сельский совет","80628480"]
[null,null,null,null,"Илишевский муниципальный район"," Все муниципальные образования","80630000"]
[null,null,null,null,"Илишевский муниципальный район","Аккузевский сельский совет","80630404"]
[null,null,null,null,"Илишевский муниципальный район","Андреевский сельский совет","80630408"]
[null,null,null,null,"Илишевский муниципальный район","Базитамакский сельский совет","80630412"]
[null,null,null,null,"Илишевский муниципальный район","Бишкураевский сельский совет","80630416"]
[null,null,null,null,"Илишевский муниципальный район","Дюмеевский сельский совет","80630424"]
[null,null,null,null,"Илишевский муниципальный район","Игметовский сельский совет","80630426"]
[null,null,null,null,"Илишевский муниципальный район","Исаметовский сельский совет","80630428"]
[null,null,null,null,"Илишевский муниципальный район","Исанбаевский сельский совет","80630432"]
[null,null,null,null,"Илишевский муниципальный район","Итеевский сельский совет","80630436"]
[null,null,null,null,"Илишевский муниципальный район","Ишкаровский сельский совет","80630440"]
[null,null,null,null,"Илишевский муниципальный район","Кадыровский сельский совет","80630444"]
[null,null,null,null,"Илишевский муниципальный район","Карабашевский сельский совет","80630448"]
[null,null,null,null,"Илишевский муниципальный район","Кужбахтинский сельский совет","80630452"]
[null,null,null,null,"Илишевский муниципальный район","Новомедведевский сельский совет","80630456"]
[null,null,null,null,"Илишевский муниципальный район","Рсаевский сельский совет","80630460"]
[null,null,null,null,"Илишевский муниципальный район","Старокуктовский сельский совет","80630464"]
[null,null,null,null,"Илишевский муниципальный район","Сюльтинский сельский совет","80630468"]
[null,null,null,null,"Илишевский муниципальный район","Урметовский сельский совет","80630472"]
[null,null,null,null,"Илишевский муниципальный район","Черекулевский сельский совет","80630476"]
[null,null,null,null,"Илишевский муниципальный район","Юнновский сельский совет","80630478"]
[null,null,null,null,"Илишевский муниципальный район","Ябалаковский сельский совет","80630480"]
[null,null,null,null,"Илишевский муниципальный район","Яркеевский сельский совет","80630484"]
[null,null,null,null,"Ишимбайский муниципальный район"," Все муниципальные образования","80631000"]
[null,null,null,null,"Ишимбайский муниципальный район","Арметовский сельский совет","80631405"]
[null,null,null,null,"Ишимбайский муниципальный район","Байгузинский сельский совет","80631415"]
[null,null,null,null,"Ишимбайский муниципальный район","Верхоторский сельский совет","80631425"]
[null,null,null,null,"Ишимбайский муниципальный район","Город Ишимбай","80631101"]
[null,null,null,null,"Ишимбайский муниципальный район","Иткуловский сельский совет","80631430"]
[null,null,null,null,"Ишимбайский муниципальный район","Ишеевский сельский совет","80631435"]
[null,null,null,null,"Ишимбайский муниципальный район","Кузяновский сельский совет","80631440"]
[null,null,null,null,"Ишимбайский муниципальный район","Кулгунинский сельский совет","80631445"]
[null,null,null,null,"Ишимбайский муниципальный район","Макаровский сельский совет","80631450"]
[null,null,null,null,"Ишимбайский муниципальный район","Петровский сельский совет","80631455"]
[null,null,null,null,"Ишимбайский муниципальный район","Сайрановский сельский совет","80631460"]
[null,null,null,null,"Ишимбайский муниципальный район","Скворчихинский сельский совет","80631470"]
[null,null,null,null,"Ишимбайский муниципальный район","Урман-Бишкадакский сельский совет","80631475"]
[null,null,null,null,"Ишимбайский муниципальный район","Янурусовский сельский совет","80631480"]
[null,null,null,null,"Калтасинский муниципальный район"," Все муниципальные образования","80633000"]
[null,null,null,null,"Калтасинский муниципальный район","Амзибашевский сельский совет","80633403"]
[null,null,null,null,"Калтасинский муниципальный район","Большекачаковский сельский совет","80633405"]
[null,null,null,null,"Калтасинский муниципальный район","Калегинский сельский совет","80633415"]
[null,null,null,null,"Калтасинский муниципальный район","Калмиябашевский сельский совет","80633420"]
[null,null,null,null,"Калтасинский муниципальный район","Калтасинский сельский совет","80633425"]
[null,null,null,null,"Калтасинский муниципальный район","Кельтеевский сельский совет","80633430"]
[null,null,null,null,"Калтасинский муниципальный район","Краснохолмский сельский совет","80633447"]
[null,null,null,null,"Калтасинский муниципальный район","Нижнекачмашевский сельский совет","80633445"]
[null,null,null,null,"Калтасинский муниципальный район","Новокильбахтинский сельский совет","80633446"]
[null,null,null,null,"Калтасинский муниципальный район","Старояшевский сельский совет","80633452"]
[null,null,null,null,"Калтасинский муниципальный район","Тюльдинский сельский совет","80633450"]
[null,null,null,null,"Караидельский муниципальный район"," Все муниципальные образования","80634000"]
[null,null,null,null,"Караидельский муниципальный район","Артакульский сельский совет","80634404"]
[null,null,null,null,"Караидельский муниципальный район","Байкибашевский сельский совет","80634412"]
[null,null,null,null,"Караидельский муниципальный район","Байкинский сельский совет","80634416"]
[null,null,null,null,"Караидельский муниципальный район","Верхнесуянский сельский совет","80634424"]
[null,null,null,null,"Караидельский муниципальный район","Караидельский сельский совет","80634432"]
[null,null,null,null,"Караидельский муниципальный район","Караярский сельский совет","80634436"]
[null,null,null,null,"Караидельский муниципальный район","Кирзинский сельский совет","80634440"]
[null,null,null,null,"Караидельский муниципальный район","Куртлыкульский сельский совет","80634444"]
[null,null,null,null,"Караидельский муниципальный район","Магинский сельский совет","80634445"]
[null,null,null,null,"Караидельский муниципальный район","Новобердяшский сельский совет","80634452"]
[null,null,null,null,"Караидельский муниципальный район","Новомуллакаевский сельский совет","80634456"]
[null,null,null,null,"Караидельский муниципальный район","Озеркинский сельский совет","80634460"]
[null,null,null,null,"Караидельский муниципальный район","Подлубовский сельский совет","80634464"]
[null,null,null,null,"Караидельский муниципальный район","Староакбуляковский сельский совет","80634472"]
[null,null,null,null,"Караидельский муниципальный район","Ургушевский сельский совет","80634480"]
[null,null,null,null,"Караидельский муниципальный район","Урюш-Битуллинский сельский совет","80634484"]
[null,null,null,null,"Караидельский муниципальный район","Явгильдинский сельский совет","80634488"]
[null,null,null,null,"Кармаскалинский муниципальный район"," Все муниципальные образования","80635000"]
[null,null,null,null,"Кармаскалинский муниципальный район","Адзитаровский сельский совет","80635405"]
[null,null,null,null,"Кармаскалинский муниципальный район","Бузовьязовский сельский совет","80635415"]
[null,null,null,null,"Кармаскалинский муниципальный район","Ефремкинский сельский совет","80635420"]
[null,null,null,null,"Кармаскалинский муниципальный район","Кабаковский сельский совет","80635423"]
[null,null,null,null,"Кармаскалинский муниципальный район","Камышлинский сельский совет","80635425"]
[null,null,null,null,"Кармаскалинский муниципальный район","Карламанский сельский совет","80635430"]
[null,null,null,null,"Кармаскалинский муниципальный район","Кармаскалинский сельский совет","80635435"]
[null,null,null,null,"Кармаскалинский муниципальный район","Николаевский сельский совет","80635440"]
[null,null,null,null,"Кармаскалинский муниципальный район","Новокиешкинский сельский совет","80635445"]
[null,null,null,null,"Кармаскалинский муниципальный район","Подлубовский сельский совет","80635450"]
[null,null,null,null,"Кармаскалинский муниципальный район","Прибельский сельский совет","80635451"]
[null,null,null,null,"Кармаскалинский муниципальный район","Савалеевский сельский совет","80635455"]
[null,null,null,null,"Кармаскалинский муниципальный район","Сахаевский сельский совет","80635475"]
[null,null,null,null,"Кармаскалинский муниципальный район","Старобабичевский сельский совет","80635465"]
[null,null,null,null,"Кармаскалинский муниципальный район","Старомусинский сельский совет","80635470"]
[null,null,null,null,"Кармаскалинский муниципальный район","Шаймуратовский сельский совет","80635480"]
[null,null,null,null,"Кигинский муниципальный район"," Все муниципальные образования","80636000"]
[null,null,null,null,"Кигинский муниципальный район","Абзаевский сельский совет","80636405"]
[null,null,null,null,"Кигинский муниципальный район","Арслановский сельский совет","80636410"]
[null,null,null,null,"Кигинский муниципальный район","Верхнекигинский сельский совет","80636415"]
[null,null,null,null,"Кигинский муниципальный район","Душанбековский сельский совет","80636425"]
[null,null,null,null,"Кигинский муниципальный район","Еланлинский сельский совет","80636420"]
[null,null,null,null,"Кигинский муниципальный район","Ибраевский сельский совет","80636430"]
[null,null,null,null,"Кигинский муниципальный район","Кандаковский сельский совет","80636435"]
[null,null,null,null,"Кигинский муниципальный район","Леузинский сельский совет","80636440"]
[null,null,null,null,"Кигинский муниципальный район","Нижнекигинский сельский совет","80636445"]
[null,null,null,null,"Краснокамский муниципальный район"," Все муниципальные образования","80637000"]
[null,null,null,null,"Краснокамский муниципальный район","Арлановский сельский совет","80637405"]
[null,null,null,null,"Краснокамский муниципальный район","Кариевский сельский совет","80637410"]
[null,null,null,null,"Краснокамский муниципальный район","Куяновский сельский совет","80637412"]
[null,null,null,null,"Краснокамский муниципальный район","Музяковский сельский совет","80637415"]
[null,null,null,null,"Краснокамский муниципальный район","Николо-Березовский сельский совет","80637421"]
[null,null,null,null,"Краснокамский муниципальный район","Никольский сельский совет","80637420"]
[null,null,null,null,"Краснокамский муниципальный район","Новобуринский сельский совет","80637425"]
[null,null,null,null,"Краснокамский муниципальный район","Новокабановский сельский совет","80637430"]
[null,null,null,null,"Краснокамский муниципальный район","Новокаинлыковский сельский совет","80637435"]
[null,null,null,null,"Краснокамский муниципальный район","Новонагаевский сельский совет","80637440"]
[null,null,null,null,"Краснокамский муниципальный район","Новоянзигитовский сельский совет","80637461"]
[null,null,null,null,"Краснокамский муниципальный район","Раздольевский сельский совет","80637443"]
[null,null,null,null,"Краснокамский муниципальный район","Саузбашевский сельский совет","80637450"]
[null,null,null,null,"Краснокамский муниципальный район","Шушнурский сельский совет","80637465"]
[null,null,null,null,"Кугарчинский муниципальный район"," Все муниципальные образования","80638000"]
[null,null,null,null,"Кугарчинский муниципальный район","Волостновский сельский совет","80638405"]
[null,null,null,null,"Кугарчинский муниципальный район","Зареченский сельский совет","80638410"]
[null,null,null,null,"Кугарчинский муниципальный район","Ибраевский сельский совет","80638415"]
[null,null,null,null,"Кугарчинский муниципальный район","Ижбердинский сельский совет","80638420"]
[null,null,null,null,"Кугарчинский муниципальный район","Иртюбякский сельский совет","80638425"]
[null,null,null,null,"Кугарчинский муниципальный район","Исимовский сельский совет","80638430"]
[null,null,null,null,"Кугарчинский муниципальный район","Кугарчинский сельский совет","80638440"]
[null,null,null,null,"Кугарчинский муниципальный район","Максютовский сельский совет","80638445"]
[null,null,null,null,"Кугарчинский муниципальный район","Мраковский сельский совет","80638450"]
[null,null,null,null,"Кугарчинский муниципальный район","Нижнебиккузинский сельский совет","80638455"]
[null,null,null,null,"Кугарчинский муниципальный район","Новопетровский сельский совет","80638460"]
[null,null,null,null,"Кугарчинский муниципальный район","Нукаевский сельский совет","80638463"]
[null,null,null,null,"Кугарчинский муниципальный район","Побоищенский сельский совет","80638470"]
[null,null,null,null,"Кугарчинский муниципальный район","Санзяповский сельский совет","80638473"]
[null,null,null,null,"Кугарчинский муниципальный район","Тляумбетовский сельский совет","80638475"]
[null,null,null,null,"Кугарчинский муниципальный район","Уральский сельский совет","80638480"]
[null,null,null,null,"Кугарчинский муниципальный район","Чапаевский сельский совет","80638483"]
[null,null,null,null,"Кугарчинский муниципальный район","Юлдыбаевский сельский совет","80638485"]
[null,null,null,null,"Кугарчинский муниципальный район","Юмагузинский сельский совет","80638487"]
[null,null,null,null,"Кугарчинский муниципальный район","Ялчинский сельский совет","80638495"]
[null,null,null,null,"Кушнаренковский муниципальный район"," Все муниципальные образования","80640000"]
[null,null,null,null,"Кушнаренковский муниципальный район","Ахметовский сельский совет","80640405"]
[null,null,null,null,"Кушнаренковский муниципальный район","Бакаевский сельский совет","80640410"]
[null,null,null,null,"Кушнаренковский муниципальный район","Горьковский сельский совет","80640415"]
[null,null,null,null,"Кушнаренковский муниципальный район","Карача-Елгинский сельский совет","80640430"]
[null,null,null,null,"Кушнаренковский муниципальный район","Кушнаренковский сельский совет","80640435"]
[null,null,null,null,"Кушнаренковский муниципальный район","Матвеевский сельский совет","80640440"]
[null,null,null,null,"Кушнаренковский муниципальный район","Расмекеевский сельский совет","80640465"]
[null,null,null,null,"Кушнаренковский муниципальный район","Старогумеровский сельский совет","80640470"]
[null,null,null,null,"Кушнаренковский муниципальный район","Старокамышлинский сельский совет","80640475"]
[null,null,null,null,"Кушнаренковский муниципальный район","Старокурмашевский сельский совет","80640477"]
[null,null,null,null,"Кушнаренковский муниципальный район","Старотукмаклинский сельский совет","80640480"]
[null,null,null,null,"Кушнаренковский муниципальный район","Шариповский сельский совет","80640490"]
[null,null,null,null,"Куюргазинский муниципальный район"," Все муниципальные образования","80639000"]
[null,null,null,null,"Куюргазинский муниципальный район","Бахмутский сельский совет","80639410"]
[null,null,null,null,"Куюргазинский муниципальный район","Ермолаевский сельский совет","80639412"]
[null,null,null,null,"Куюргазинский муниципальный район","Зяк-Ишметовский сельский совет","80639417"]
[null,null,null,null,"Куюргазинский муниципальный район","Илькинеевский сельский совет","80639415"]
[null,null,null,null,"Куюргазинский муниципальный район","Кривле-Илюшкинский сельский совет","80639420"]
[null,null,null,null,"Куюргазинский муниципальный район","Ленинский сельский совет","80639425"]
[null,null,null,null,"Куюргазинский муниципальный район","Мурапталовский сельский совет","80639435"]
[null,null,null,null,"Куюргазинский муниципальный район","Отрадинский сельский совет","80639440"]
[null,null,null,null,"Куюргазинский муниципальный район","Свободинский сельский совет","80639450"]
[null,null,null,null,"Куюргазинский муниципальный район","Таймасовский сельский совет","80639455"]
[null,null,null,null,"Куюргазинский муниципальный район","Шабагишский сельский совет","80639460"]
[null,null,null,null,"Куюргазинский муниципальный район","Якшимбетовский сельский совет","80639465"]
[null,null,null,null,"Мелеузовский муниципальный район"," Все муниципальные образования","80641000"]
[null,null,null,null,"Мелеузовский муниципальный район","Абитовский сельский совет","80641402"]
[null,null,null,null,"Мелеузовский муниципальный район","Александровский сельский совет","80641405"]
[null,null,null,null,"Мелеузовский муниципальный район","Аптраковский сельский совет","80641410"]
[null,null,null,null,"Мелеузовский муниципальный район","Араслановский сельский совет","80641415"]
[null,null,null,null,"Мелеузовский муниципальный район","Воскресенский сельский совет","80641422"]
[null,null,null,null,"Мелеузовский муниципальный район","Город Мелеуз","80641101"]
[null,null,null,null,"Мелеузовский муниципальный район","Денисовский сельский совет","80641435"]
[null,null,null,null,"Мелеузовский муниципальный район","Зирганский сельский совет","80641430"]
[null,null,null,null,"Мелеузовский муниципальный район","Иштугановский сельский совет","80641445"]
[null,null,null,null,"Мелеузовский муниципальный район","Корнеевский сельский совет","80641480"]
[null,null,null,null,"Мелеузовский муниципальный район","Мелеузовский сельский совет","80641450"]
[null,null,null,null,"Мелеузовский муниципальный район","Нордовский сельский совет","80641455"]
[null,null,null,null,"Мелеузовский муниципальный район","Нугушевский сельский совет","80641460"]
[null,null,null,null,"Мелеузовский муниципальный район","Партизанский сельский совет","80641465"]
[null,null,null,null,"Мелеузовский муниципальный район","Первомайский сельский совет","80641470"]
[null,null,null,null,"Мелеузовский муниципальный район","Сарышевский сельский совет","80641475"]
[null,null,null,null,"Мелеузовский муниципальный район","Шевченковский сельский совет","80641485"]
[null,null,null,null,"Мечетлинский муниципальный район"," Все муниципальные образования","80642000"]
[null,null,null,null,"Мечетлинский муниципальный район","Абдуллинский сельский совет","80642401"]
[null,null,null,null,"Мечетлинский муниципальный район","Алегазовский сельский совет","80642405"]
[null,null,null,null,"Мечетлинский муниципальный район","Большеокинский сельский совет","80642410"]
[null,null,null,null,"Мечетлинский муниципальный район","Большеустьикинский сельский совет","80642415"]
[null,null,null,null,"Мечетлинский муниципальный район","Дуван-Мечетлинский сельский совет","80642420"]
[null,null,null,null,"Мечетлинский муниципальный район","Кургатовский сельский совет","80642423"]
[null,null,null,null,"Мечетлинский муниципальный район","Лемез-Тамакский сельский совет","80642425"]
[null,null,null,null,"Мечетлинский муниципальный район","Малоустьикинский сельский совет","80642430"]
[null,null,null,null,"Мечетлинский муниципальный район","Новомещеровский сельский совет","80642435"]
[null,null,null,null,"Мечетлинский муниципальный район","Новояушевский сельский совет","80642442"]
[null,null,null,null,"Мечетлинский муниципальный район","Ростовский сельский совет","80642445"]
[null,null,null,null,"Мечетлинский муниципальный район","Юнусовский сельский совет","80642450"]
[null,null,null,null,"Мишкинский муниципальный район"," Все муниципальные образования","80643000"]
[null,null,null,null,"Мишкинский муниципальный район","Акбулатовский сельский совет","80643405"]
[null,null,null,null,"Мишкинский муниципальный район","Баймурзинский сельский совет","80643410"]
[null,null,null,null,"Мишкинский муниципальный район","Большесухоязовский сельский совет","80643415"]
[null,null,null,null,"Мишкинский муниципальный район","Большешадинский сельский совет","80643420"]
[null,null,null,null,"Мишкинский муниципальный район","Ирсаевский сельский совет","80643425"]
[null,null,null,null,"Мишкинский муниципальный район","Кайраковский сельский совет","80643430"]
[null,null,null,null,"Мишкинский муниципальный район","Камеевский сельский совет","80643435"]
[null,null,null,null,"Мишкинский муниципальный район","Мавлютовский сельский совет","80643445"]
[null,null,null,null,"Мишкинский муниципальный район","Мишкинский сельский совет","80643450"]
[null,null,null,null,"Мишкинский муниципальный район","Новотроицкий сельский совет","80643455"]
[null,null,null,null,"Мишкинский муниципальный район","Староарзаматовский сельский совет","80643460"]
[null,null,null,null,"Мишкинский муниципальный район","Тынбаевский сельский совет","80643465"]
[null,null,null,null,"Мишкинский муниципальный район","Урьядинский сельский совет","80643470"]
[null,null,null,null,"Мишкинский муниципальный район","Чураевский сельский совет","80643480"]
[null,null,null,null,"Миякинский муниципальный район"," Все муниципальные образования","80644000"]
[null,null,null,null,"Миякинский муниципальный район","Биккуловский сельский совет","80644405"]
[null,null,null,null,"Миякинский муниципальный район","Богдановский сельский совет","80644410"]
[null,null,null,null,"Миякинский муниципальный район","Большекаркалинский сельский совет","80644415"]
[null,null,null,null,"Миякинский муниципальный район","Енебей-Урсаевский сельский совет","80644420"]
[null,null,null,null,"Миякинский муниципальный район","Зильдяровский сельский совет","80644425"]
[null,null,null,null,"Миякинский муниципальный район","Ильчигуловский сельский совет","80644428"]
[null,null,null,null,"Миякинский муниципальный район","Карановский сельский совет","80644429"]
[null,null,null,null,"Миякинский муниципальный район","Качегановский сельский совет","80644430"]
[null,null,null,null,"Миякинский муниципальный район","Кожай-Семеновский сельский совет","80644435"]
[null,null,null,null,"Миякинский муниципальный район","Менеузтамакский сельский совет","80644440"]
[null,null,null,null,"Миякинский муниципальный район","Миякибашевский сельский совет","80644445"]
[null,null,null,null,"Миякинский муниципальный район","Миякинский сельский совет","80644450"]
[null,null,null,null,"Миякинский муниципальный район","Новокарамалинский сельский совет","80644460"]
[null,null,null,null,"Миякинский муниципальный район","Сатыевский сельский совет","80644465"]
[null,null,null,null,"Миякинский муниципальный район","Уршакбашкарамалинский сельский совет","80644470"]
[null,null,null,null,"Нуримановский муниципальный район"," Все муниципальные образования","80645000"]
[null,null,null,null,"Нуримановский муниципальный район","Байгильдинский сельский совет","80645405"]
[null,null,null,null,"Нуримановский муниципальный район","Баш-Шидинский сельский совет","80645410"]
[null,null,null,null,"Нуримановский муниципальный район","Красногорский сельский совет","80645415"]
[null,null,null,null,"Нуримановский муниципальный район","Красноключевский сельский совет","80645416"]
[null,null,null,null,"Нуримановский муниципальный район","Никольский сельский совет","80645420"]
[null,null,null,null,"Нуримановский муниципальный район","Новокулевский сельский совет","80645435"]
[null,null,null,null,"Нуримановский муниципальный район","Новосубаевский сельский совет","80645440"]
[null,null,null,null,"Нуримановский муниципальный район","Павловский сельский совет","80645444"]
[null,null,null,null,"Нуримановский муниципальный район","Первомайский сельский совет","80645445"]
[null,null,null,null,"Нуримановский муниципальный район","Сарвинский сельский совет","80645450"]
[null,null,null,null,"Нуримановский муниципальный район","Старобедеевский сельский совет","80645452"]
[null,null,null,null,"Нуримановский муниципальный район","Староисаевский сельский совет","80645455"]
[null,null,null,null,"Салаватский муниципальный район"," Все муниципальные образования","80647000"]
[null,null,null,null,"Салаватский муниципальный район","Алькинский сельский совет","80647405"]
[null,null,null,null,"Салаватский муниципальный район","Аркауловский сельский совет","80647410"]
[null,null,null,null,"Салаватский муниципальный район","Ишимбаевский сельский совет","80647415"]
[null,null,null,null,"Салаватский муниципальный район","Лагеревский сельский совет","80647425"]
[null,null,null,null,"Салаватский муниципальный район","Лаклинский сельский совет","80647430"]
[null,null,null,null,"Салаватский муниципальный район","Малоязовский сельский совет","80647435"]
[null,null,null,null,"Салаватский муниципальный район","Мечетлинский сельский совет","80647440"]
[null,null,null,null,"Салаватский муниципальный район","Мещегаровский сельский совет","80647445"]
[null,null,null,null,"Салаватский муниципальный район","Мурсалимкинский сельский совет","80647447"]
[null,null,null,null,"Салаватский муниципальный район","Насибашевский сельский совет","80647450"]
[null,null,null,null,"Салаватский муниципальный район","Первомайский сельский совет","80647476"]
[null,null,null,null,"Салаватский муниципальный район","Салаватский сельский совет","80647453"]
[null,null,null,null,"Салаватский муниципальный район","Таймеевский сельский совет","80647455"]
[null,null,null,null,"Салаватский муниципальный район","Терменевский сельский совет","80647460"]
[null,null,null,null,"Салаватский муниципальный район","Турналинский сельский совет","80647465"]
[null,null,null,null,"Салаватский муниципальный район","Янгантауский сельский совет","80647475"]
[null,null,null,null,"Стерлибашевский муниципальный район"," Все муниципальные образования","80648000"]
[null,null,null,null,"Стерлибашевский муниципальный район","Айдаралинский сельский совет","80648405"]
[null,null,null,null,"Стерлибашевский муниципальный район","Аллагуватский сельский совет","80648402"]
[null,null,null,null,"Стерлибашевский муниципальный район","Бакеевский сельский совет","80648410"]
[null,null,null,null,"Стерлибашевский муниципальный район","Бузатовский сельский совет","80648415"]
[null,null,null,null,"Стерлибашевский муниципальный район","Кабакушский сельский совет","80648418"]
[null,null,null,null,"Стерлибашевский муниципальный район","Карагушский сельский совет","80648420"]
[null,null,null,null,"Стерлибашевский муниципальный район","Куганакбашевский сельский совет","80648425"]
[null,null,null,null,"Стерлибашевский муниципальный район","Кундрякский сельский совет","80648430"]
[null,null,null,null,"Стерлибашевский муниципальный район","Сарайсинский сельский совет","80648435"]
[null,null,null,null,"Стерлибашевский муниципальный район","Старокалкашевский сельский совет","80648440"]
[null,null,null,null,"Стерлибашевский муниципальный район","Стерлибашевский сельский совет","80648445"]
[null,null,null,null,"Стерлибашевский муниципальный район","Тятер-Араслановский сельский совет","80648455"]
[null,null,null,null,"Стерлибашевский муниципальный район","Халикеевский сельский совет","80648460"]
[null,null,null,null,"Стерлибашевский муниципальный район","Янгурчинский сельский совет","80648465"]
[null,null,null,null,"Стерлибашевский муниципальный район","Яшергановский сельский совет","80648470"]
[null,null,null,null,"Стерлитамакский муниципальный район"," Все муниципальные образования","80649000"]
[null,null,null,null,"Стерлитамакский муниципальный район","Айгулевский сельский совет","80649404"]
[null,null,null,null,"Стерлитамакский муниципальный район","Алатанинский сельский совет","80649412"]
[null,null,null,null,"Стерлитамакский муниципальный район","Ашкадарский сельский совет","80649416"]
[null,null,null,null,"Стерлитамакский муниципальный район","Аючевский сельский совет","80649418"]
[null,null,null,null,"Стерлитамакский муниципальный район","Буриказгановский сельский совет","80649428"]
[null,null,null,null,"Стерлитамакский муниципальный район","Казадаевский сельский совет","80649436"]
[null,null,null,null,"Стерлитамакский муниципальный район","Константиноградовский сельский совет","80649420"]
[null,null,null,null,"Стерлитамакский муниципальный район","Красноярский сельский совет","80649444"]
[null,null,null,null,"Стерлитамакский муниципальный район","Куганакский сельский совет","80649440"]
[null,null,null,null,"Стерлитамакский муниципальный район","Максимовский сельский совет","80649424"]
[null,null,null,null,"Стерлитамакский муниципальный район","Наумовский сельский совет","80649448"]
[null,null,null,null,"Стерлитамакский муниципальный район","Николаевский сельский совет","80649452"]
[null,null,null,null,"Стерлитамакский муниципальный район","Октябрьский сельский совет","80649460"]
[null,null,null,null,"Стерлитамакский муниципальный район","Отрадовский сельский совет","80649456"]
[null,null,null,null,"Стерлитамакский муниципальный район","Первомайский сельский совет","80649464"]
[null,null,null,null,"Стерлитамакский муниципальный район","Подлесненский сельский совет","80649468"]
[null,null,null,null,"Стерлитамакский муниципальный район","Рощинский сельский совет","80649478"]
[null,null,null,null,"Стерлитамакский муниципальный район","Рязановский сельский совет","80649480"]
[null,null,null,null,"Стерлитамакский муниципальный район","Тюрюшлинский сельский совет","80649488"]
[null,null,null,null,"Стерлитамакский муниципальный район","Услинский сельский совет","80649492"]
[null,null,null,null,"Татышлинский муниципальный район"," Все муниципальные образования","80650000"]
[null,null,null,null,"Татышлинский муниципальный район","Акбулатовский сельский совет","80650405"]
[null,null,null,null,"Татышлинский муниципальный район","Аксаитовский сельский совет","80650410"]
[null,null,null,null,"Татышлинский муниципальный район","Бадряшевский сельский совет","80650415"]
[null,null,null,null,"Татышлинский муниципальный район","Буль-Кайпановский сельский совет","80650420"]
[null,null,null,null,"Татышлинский муниципальный район","Верхнетатышлинский сельский совет","80650425"]
[null,null,null,null,"Татышлинский муниципальный район","Кальмияровский сельский совет","80650430"]
[null,null,null,null,"Татышлинский муниципальный район","Кальтяевский сельский совет","80650435"]
[null,null,null,null,"Татышлинский муниципальный район","Кудашевский сельский совет","80650440"]
[null,null,null,null,"Татышлинский муниципальный район","Курдымский сельский совет","80650445"]
[null,null,null,null,"Татышлинский муниципальный район","Нижнебалтачевский сельский совет","80650450"]
[null,null,null,null,"Татышлинский муниципальный район","Новотатышлинский сельский совет","80650455"]
[null,null,null,null,"Татышлинский муниципальный район","Шулгановский сельский совет","80650460"]
[null,null,null,null,"Татышлинский муниципальный район","Ялгыз-Наратский сельский совет","80650465"]
[null,null,null,null,"Туймазинский муниципальный район"," Все муниципальные образования","80651000"]
[null,null,null,null,"Туймазинский муниципальный район","Бишкураевский сельский совет","80651405"]
[null,null,null,null,"Туймазинский муниципальный район","Верхнебишиндинский сельский совет","80651410"]
[null,null,null,null,"Туймазинский муниципальный район","Верхнетроицкий сельский совет","80651415"]
[null,null,null,null,"Туймазинский муниципальный район","Гафуровский сельский совет","80651417"]
[null,null,null,null,"Туймазинский муниципальный район","Город Туймазы","80651101"]
[null,null,null,null,"Туймазинский муниципальный район","Ильчимбетовский сельский совет","80651420"]
[null,null,null,null,"Туймазинский муниципальный район","Какрыбашевский сельский совет","80651425"]
[null,null,null,null,"Туймазинский муниципальный район","Кандринский сельский совет","80651427"]
[null,null,null,null,"Туймазинский муниципальный район","Карамалы-Губеевский сельский совет","80651430"]
[null,null,null,null,"Туймазинский муниципальный район","Каратовский сельский совет","80651435"]
[null,null,null,null,"Туймазинский муниципальный район","Нижнетроицкий сельский совет","80651439"]
[null,null,null,null,"Туймазинский муниципальный район","Николаевский сельский совет","80651440"]
[null,null,null,null,"Туймазинский муниципальный район","Сайрановский сельский совет","80651445"]
[null,null,null,null,"Туймазинский муниципальный район","Серафимовский сельский совет","80651447"]
[null,null,null,null,"Туймазинский муниципальный район","Старотуймазинский сельский совет","80651455"]
[null,null,null,null,"Туймазинский муниципальный район","Субханкуловский сельский совет","80651461"]
[null,null,null,null,"Туймазинский муниципальный район","Татар-Улкановский сельский совет","80651465"]
[null,null,null,null,"Туймазинский муниципальный район","Тюменяковский сельский совет","80651470"]
[null,null,null,null,"Туймазинский муниципальный район","Чукадыбашевский сельский совет","80651475"]
[null,null,null,null,"Уфимский муниципальный район"," Все муниципальные образования","80652000"]
[null,null,null,null,"Уфимский муниципальный район","Авдонский сельский совет","80652405"]
[null,null,null,null,"Уфимский муниципальный район","Алексеевский сельский совет","80652403"]
[null,null,null,null,"Уфимский муниципальный район","Булгаковский сельский совет","80652410"]
[null,null,null,null,"Уфимский муниципальный район","Дмитриевский сельский совет","80652415"]
[null,null,null,null,"Уфимский муниципальный район","Жуковский сельский совет","80652418"]
[null,null,null,null,"Уфимский муниципальный район","Зубовский сельский совет","80652420"]
[null,null,null,null,"Уфимский муниципальный район","Кармасанский сельский совет","80652423"]
[null,null,null,null,"Уфимский муниципальный район","Кирилловский сельский совет","80652425"]
[null,null,null,null,"Уфимский муниципальный район","Красноярский сельский совет","80652430"]
[null,null,null,null,"Уфимский муниципальный район","Миловский сельский совет","80652435"]
[null,null,null,null,"Уфимский муниципальный район","Михайловский сельский совет","80652440"]
[null,null,null,null,"Уфимский муниципальный район","Николаевский сельский совет","80652450"]
[null,null,null,null,"Уфимский муниципальный район","Ольховский сельский совет","80652452"]
[null,null,null,null,"Уфимский муниципальный район","Русско-Юрмашский сельский совет","80652455"]
[null,null,null,null,"Уфимский муниципальный район","Таптыковский сельский совет","80652460"]
[null,null,null,null,"Уфимский муниципальный район","Черкасский сельский совет","80652472"]
[null,null,null,null,"Уфимский муниципальный район","Чесноковский сельский совет","80652473"]
[null,null,null,null,"Уфимский муниципальный район","Шемякский сельский совет","80652475"]
[null,null,null,null,"Уфимский муниципальный район","Юматовский сельский совет","80652480"]
[null,null,null,null,"Учалинский муниципальный район"," Все муниципальные образования","80653000"]
[null,null,null,null,"Учалинский муниципальный район","Амангильдинский сельский совет","80653410"]
[null,null,null,null,"Учалинский муниципальный район","Ахуновский сельский совет","80653415"]
[null,null,null,null,"Учалинский муниципальный район","Буйдинский сельский совет","80653416"]
[null,null,null,null,"Учалинский муниципальный район","Город Учалы","80653101"]
[null,null,null,null,"Учалинский муниципальный район","Ильчигуловский сельский совет","80653420"]
[null,null,null,null,"Учалинский муниципальный район","Ильчинский сельский совет","80653425"]
[null,null,null,null,"Учалинский муниципальный район","Имангуловский сельский совет","80653430"]
[null,null,null,null,"Учалинский муниципальный район","Кирябинский сельский совет","80653440"]
[null,null,null,null,"Учалинский муниципальный район","Кунакбаевский сельский совет","80653445"]
[null,null,null,null,"Учалинский муниципальный район","Мансуровский сельский совет","80653449"]
[null,null,null,null,"Учалинский муниципальный район","Миндякский сельский совет","80653448"]
[null,null,null,null,"Учалинский муниципальный район","Наурузовский сельский совет","80653450"]
[null,null,null,null,"Учалинский муниципальный район","Новобайрамгуловский сельский совет","80653455"]
[null,null,null,null,"Учалинский муниципальный район","Поляковский сельский совет","80653465"]
[null,null,null,null,"Учалинский муниципальный район","Сафаровский сельский совет","80653470"]
[null,null,null,null,"Учалинский муниципальный район","Тунгатаровский сельский совет","80653484"]
[null,null,null,null,"Учалинский муниципальный район","Уразовский сельский совет","80653488"]
[null,null,null,null,"Учалинский муниципальный район","Уральский сельский совет","80653491"]
[null,null,null,null,"Учалинский муниципальный район","Учалинский сельский совет","80653496"]
[null,null,null,null,"Федоровский муниципальный район"," Все муниципальные образования","80654000"]
[null,null,null,null,"Федоровский муниципальный район","Бала-Четырманский сельский совет","80654405"]
[null,null,null,null,"Федоровский муниципальный район","Балыклинский сельский совет","80654410"]
[null,null,null,null,"Федоровский муниципальный район","Булякаевский сельский совет","80654415"]
[null,null,null,null,"Федоровский муниципальный район","Верхнеяушевский сельский совет","80654416"]
[null,null,null,null,"Федоровский муниципальный район","Гончаровский сельский совет","80654417"]
[null,null,null,null,"Федоровский муниципальный район","Дедовский сельский совет","80654420"]
[null,null,null,null,"Федоровский муниципальный район","Денискинский сельский совет","80654425"]
[null,null,null,null,"Федоровский муниципальный район","Каралачикский сельский совет","80654427"]
[null,null,null,null,"Федоровский муниципальный район","Михайловский сельский совет","80654430"]
[null,null,null,null,"Федоровский муниципальный район","Покровский сельский совет","80654440"]
[null,null,null,null,"Федоровский муниципальный район","Пугачевский сельский совет","80654445"]
[null,null,null,null,"Федоровский муниципальный район","Разинский сельский совет","80654450"]
[null,null,null,null,"Федоровский муниципальный район","Теняевский сельский совет","80654455"]
[null,null,null,null,"Федоровский муниципальный район","Федоровский сельский совет","80654460"]
[null,null,null,null,"Хайбуллинский муниципальный район"," Все муниципальные образования","80655000"]
[null,null,null,null,"Хайбуллинский муниципальный район","Абишевский сельский совет","80655405"]
[null,null,null,null,"Хайбуллинский муниципальный район","Акъюловский сельский совет","80655410"]
[null,null,null,null,"Хайбуллинский муниципальный район","Акъярский сельский совет","80655415"]
[null,null,null,null,"Хайбуллинский муниципальный район","Антинганский сельский совет","80655420"]
[null,null,null,null,"Хайбуллинский муниципальный район","Бурибайский сельский совет","80655424"]
[null,null,null,null,"Хайбуллинский муниципальный район","Ивановский сельский совет","80655425"]
[null,null,null,null,"Хайбуллинский муниципальный район","Маканский сельский совет","80655430"]
[null,null,null,null,"Хайбуллинский муниципальный район","Новозирганский сельский совет","80655432"]
[null,null,null,null,"Хайбуллинский муниципальный район","Самарский сельский совет","80655433"]
[null,null,null,null,"Хайбуллинский муниципальный район","Таналыкский сельский совет","80655440"]
[null,null,null,null,"Хайбуллинский муниципальный район","Татыр-Узякский сельский совет","80655435"]
[null,null,null,null,"Хайбуллинский муниципальный район","Уфимский сельский совет","80655445"]
[null,null,null,null,"Хайбуллинский муниципальный район","Федоровский сельский совет","80655450"]
[null,null,null,null,"Хайбуллинский муниципальный район","Целинный сельский совет","80655455"]
[null,null,null,null,"Чекмагушевский муниципальный район"," Все муниципальные образования","80656000"]
[null,null,null,null,"Чекмагушевский муниципальный район","Башировский сельский совет","80656410"]
[null,null,null,null,"Чекмагушевский муниципальный район","Имянликулевский сельский совет","80656415"]
[null,null,null,null,"Чекмагушевский муниципальный район","Калмашбашевский сельский совет","80656420"]
[null,null,null,null,"Чекмагушевский муниципальный район","Новобалтачевский сельский совет","80656425"]
[null,null,null,null,"Чекмагушевский муниципальный район","Новокутовский сельский совет","80656435"]
[null,null,null,null,"Чекмагушевский муниципальный район","Рапатовский сельский совет","80656440"]
[null,null,null,null,"Чекмагушевский муниципальный район","Резяповский сельский совет","80656445"]
[null,null,null,null,"Чекмагушевский муниципальный район","Старокалмашевский сельский совет","80656450"]
[null,null,null,null,"Чекмагушевский муниципальный район","Тайняшевский сельский совет","80656455"]
[null,null,null,null,"Чекмагушевский муниципальный район","Тузлукушевский сельский совет","80656460"]
[null,null,null,null,"Чекмагушевский муниципальный район","Урнякский сельский совет","80656465"]
[null,null,null,null,"Чекмагушевский муниципальный район","Чекмагушевский сельский совет","80656470"]
[null,null,null,null,"Чекмагушевский муниципальный район","Юмашевский сельский совет","80656475"]
[null,null,null,null,"Чишминский муниципальный район"," Все муниципальные образования","80657000"]
[null,null,null,null,"Чишминский муниципальный район","Алкинский сельский совет","80657405"]
[null,null,null,null,"Чишминский муниципальный район","Аровский сельский совет","80657410"]
[null,null,null,null,"Чишминский муниципальный район","Арслановский сельский совет","80657415"]
[null,null,null,null,"Чишминский муниципальный район","Дмитриевский сельский совет","80657420"]
[null,null,null,null,"Чишминский муниципальный район","Дурасовский сельский совет","80657425"]
[null,null,null,null,"Чишминский муниципальный район","Енгалышевский сельский совет","80657430"]
[null,null,null,null,"Чишминский муниципальный район","Еремеевский сельский совет","80657435"]
[null,null,null,null,"Чишминский муниципальный район","Ибрагимовский сельский совет","80657440"]
[null,null,null,null,"Чишминский муниципальный район","Кара-Якуповский сельский совет","80657445"]
[null,null,null,null,"Чишминский муниципальный район","Лесной сельский совет","80657446"]
[null,null,null,null,"Чишминский муниципальный район","Новотроицкий сельский совет","80657450"]
[null,null,null,null,"Чишминский муниципальный район","Сафаровский сельский совет","80657455"]
[null,null,null,null,"Чишминский муниципальный район","Чишминский поссовет","80657151"]
[null,null,null,null,"Чишминский муниципальный район","Чишминский сельский совет","80657465"]
[null,null,null,null,"Чишминский муниципальный район","Чувалкиповский сельский совет","80657470"]
[null,null,null,null,"Чишминский муниципальный район","Шингак-Кульский сельский совет","80657475"]
[null,null,null,null,"Шаранский муниципальный район"," Все муниципальные образования","80658000"]
[null,null,null,null,"Шаранский муниципальный район","Акбарисовский сельский совет","80658405"]
[null,null,null,null,"Шаранский муниципальный район","Базгиевский сельский совет","80658410"]
[null,null,null,null,"Шаранский муниципальный район","Дмитриево-Полянский сельский совет","80658415"]
[null,null,null,null,"Шаранский муниципальный район","Дюртюлинский сельский совет","80658420"]
[null,null,null,null,"Шаранский муниципальный район","Зириклинский сельский совет","80658425"]
[null,null,null,null,"Шаранский муниципальный район","Мичуринский сельский совет","80658430"]
[null,null,null,null,"Шаранский муниципальный район","Нижнезаитовский сельский совет","80658435"]
[null,null,null,null,"Шаранский муниципальный район","Нижнеташлинский сельский совет","80658440"]
[null,null,null,null,"Шаранский муниципальный район","Нуреевский сельский совет","80658445"]
[null,null,null,null,"Шаранский муниципальный район","Писаревский сельский совет","80658455"]
[null,null,null,null,"Шаранский муниципальный район","Старотумбагушевский сельский совет","80658465"]
[null,null,null,null,"Шаранский муниципальный район","Чалмалинский сельский совет","80658475"]
[null,null,null,null,"Шаранский муниципальный район","Шаранский сельский совет","80658485"]
[null,null,null,null,"Янаульский муниципальный район"," Все муниципальные образования","80659000"]
[null,null,null,null,"Янаульский муниципальный район","Асавдыбашский сельский совет","80659410"]
[null,null,null,null,"Янаульский муниципальный район","Байгузинский сельский совет","80659415"]
[null,null,null,null,"Янаульский муниципальный район","Воядинский сельский совет","80659420"]
[null,null,null,null,"Янаульский муниципальный район","Город Янаул","80659101"]
[null,null,null,null,"Янаульский муниципальный район","Ижболдинский сельский совет","80659430"]
[null,null,null,null,"Янаульский муниципальный район","Истякский сельский совет","80659435"]
[null,null,null,null,"Янаульский муниципальный район","Иткинеевский сельский совет","80659440"]
[null,null,null,null,"Янаульский муниципальный район","Кармановский сельский совет","80659445"]
[null,null,null,null,"Янаульский муниципальный район","Кисак-Каинский сельский совет","80659450"]
[null,null,null,null,"Янаульский муниципальный район","Максимовский сельский совет","80659453"]
[null,null,null,null,"Янаульский муниципальный район","Месягутовский сельский совет","80659455"]
[null,null,null,null,"Янаульский муниципальный район","Новоартаульский сельский совет","80659460"]
[null,null,null,null,"Янаульский муниципальный район","Орловский сельский совет","80659465"]
[null,null,null,null,"Янаульский муниципальный район","Первомайский сельский совет","80659470"]
[null,null,null,null,"Янаульский муниципальный район","Сандугачевский сельский совет","80659475"]
[null,null,null,null,"Янаульский муниципальный район","Староваряшский сельский совет","80659480"]
[null,null,null,null,"Янаульский муниципальный район","Старокудашевский сельский совет","80659485"]
[null,null,null,null,"Янаульский муниципальный район","Шудекский сельский совет","80659490"]
[null,null,null,null,"Янаульский муниципальный район","Ямадинский сельский совет","80659495"]

{"sheet":"Ошибки и предупреждения","index":16,"n_rows":4,"n_cols":4,"rows_kept":4,"cut":false,"hidden":false,"merged":[[1,1,1,3]]}
[]
[null,"Результат проверки"]
[]
[null,"Ссылка","Причина","Статус"]

{"sheet":"SheetList","index":17,"n_rows":14,"n_cols":2,"rows_kept":14,"cut":false,"hidden":true,"merged":[]}
["Расчетные листы","Скрытые листы"]
["Инструкция","Columns"]
["Титульный","Reference"]
["Параметры","Rows"]
["Территории","RegistryMunicipal"]
["Тарифы (со схемой)","SheetList"]
["Тарифы (без схемы)"]
["Плата за подключение"]
["Информация о предложениях"]
["Информация о товарах"]
["Сведения об изменениях"]
["Публикация информации"]
["Комментарий"]
["Ошибки и предупреждения"]